Workbook

Sheet Cover
B13: =MdlTtl -> SW REZ - DRAFT - Access Fee Calculator

Sheet Instructions
A1: =MdlTtl -> SW REZ - DRAFT - Access Fee Calculator
A2: =_xlfn.SHEET() -> 2 | B2: =_xlfn.TEXTAFTER(CELL("filename",A1),"]") -> Instructions
B3: Instructions sheet
A6: =Table!B25 -> All Checks are OK
A9: =ROUNDDOWN(MAX($A$7:OFFSET(A9,-One,0),$A$2*Sht)+Sxn,0) -> 201 | B9: Model Diagram
A27: =ROUNDDOWN(MAX($A$7:OFFSET(A27,-One,0),$A$2*Sht)+Sxn,0) -> 202 | B27: Key to model colour scheme
A29: =MAX(A$2:OFFSET($A29,-One,0))+Sbsxn -> 202.01 | B29: Cell Formatting
D32: Project Inputs that can be adjusted by the Proponents.
D33: Project Inputs that can be adjusted by the Proponents to estimate adjustments to the Access Fee (Variation Events under the Access Fee Determination).
D34: Fixed Technical Inputs - should not be adjusted.
D35: Model Inputs - should not be adjusted.
D36: Cells with formulas that simply 'call-up' data from the same sheet of the model, and that don't perform operations on that data.
D37: Cells with formulas that simply 'call-up' data from other parts of the model, and that don't perform operations on that data.
D38: Cells surrounded by formula or inputs that have been deliberately left blank and where no assumptions should be added.
A40: =MAX(A$2:OFFSET($A40,-One,0))+Sbsxn -> 202.02 | B40: Sheet Tab Formatting
D42: Tabs in dark grey are for information purposes only.
D43: Worksheets containing inputs.
D44: Calculation Sheets.
D45: Output Sheets.
D46: Static table sheets.
A48: =ROUNDDOWN(MAX($A$9:OFFSET(A48,-One,0),$A$2*Sht)+Sxn,0) -> 203 | B48: General Guide to the Model
A50: =MAX(A$2:OFFSET($A50,-One,0))+Sbsxn -> 203.01 | B50: General Points
A52: ► | B52: All figures within the model are in AUD$m unless otherwise stated.
A53: ► | B53: All inputs should be entered as positive numbers, unless otherwise indicated. For example, costs should be entered as 100 rather than -100, and the model will do the conversion automatically.
A54: ► | B54: The model will also clearly indicate whether the inputs should be entered in REAL terms (ie excluding inflation) or NOMINAL terms (ie including inflation). Where inputs are entered in real terms, the model will also include appropriate inflation assumptions so that they can be converted into Real terms.
A56: =MAX(A$2:OFFSET($A56,-One,0))+Sbsxn -> 203.02 | B56: Checks
A58: ► | B58: The check sheets contains all built-in tolerance and logical checks for the model.
A59: ► | B59: The status of the checks in the model is displayed at the top of the worksheets. Ideally, the model should always say "All checks are OK". If not, you should navigate to the Table sheet using the button at the top of each worksheet, and scroll through the sheet to identify which parts of the model is causing the error.
A60: ► | B60: Wherever possible, the check error message will be tailored to inform you of the nature of the problem.
A62: END

Sheet VerCon
A1: =MdlTtl -> SW REZ - DRAFT - Access Fee Calculator
A2: =_xlfn.SHEET() -> 3 | B2: =_xlfn.TEXTAFTER(CELL("filename",A1),"]") -> VerCon
A6: =Table!B25 -> All Checks are OK
C9: Version no | D9: Date | E9: Change Made | F9: Source of Change | G9: Output 1 | H9: Output 2 | I9: Output 3 | J9: Output 4
B10: =MAX(OFFSET(B10,1,0,100000,1))+1 -> 1 | C10: [DRAFT VERSION] | D10: =NOW() -> 2024-05-22T09:45:24.280 | G10: Use these cells to link to key model outputs
C11: << insert row above for new file versions to be logged
A13: END

Sheet Assumptions
A1: =MdlTtl -> SW REZ - DRAFT - Access Fee Calculator
A2: =_xlfn.SHEET() -> 4 | B2: =_xlfn.TEXTAFTER(CELL("filename",A1),"]") -> Assumptions
B3: Key assumptions and outputs
A6: =Table!B25 -> All Checks are OK
A9: =ROUNDDOWN(MAX($A$8:OFFSET(A9,-One,0),$A$2*Sht)+Sxn,0) -> 401 | B9: Assumptions
A11: =MAX(A$2:OFFSET($A11,-One,0))+Sbsxn -> 401.01 | B11: Model
B13: Model name | C13: text | D13: SW REZ - DRAFT - Access Fee Calculator | N13: [MdlTtl]
B14: File name | C14: text | D14: =IF(ISERROR(LEFT(RIGHT(CELL("filename",$A$7),LEN(CELL("filename",$A$7))-FIND("[",CELL("filename",$A$7))),FIND("]",RIGHT(CELL("filename",$A$7),LEN(CELL("filename",$A$7))-FIND("[",CELL("filename",$A$7))))-1)),"Please save the model",LEFT(RIGHT(CELL("filename",$A$7),LEN(CELL("filename",$A$7))-FIND("[",CELL("filename",$A$7))),FIND("]",RIGHT(CELL("filename",$A$7),LEN(CELL("filename",$A$7))-FIND("[",CELL("filename",$A$7))))-1)) -> SW REZ - DRAFT - Access Fee Calculator.xlsm | N14: [MdlFileName]
B15: Model start date | C15: date | D15: 2026-01-01 | N15: [Start]
B16: Escalation Base date | C16: date | D16: 2024-07-01 | N16: Implicit Model assumption; do not change
B17: Financial year end (month number) | C17: # | D17: 6 | N17: Implicit Model assumption; do not change
B19: Scenario number | C19: # | D19: 1 | E19: 1 | F19: 2 | N19: ◀ Adjust between base case and variation case
B20: Scenario name | C20: text | D20: =+IF(ISBLANK(INDEX(E20:F20,,$D$19)),E20,INDEX(E20:F20,,$D$19)) -> Base Case | E20: Base Case | F20: Variation Case | N20: Implicit Model assumption; do not change
A22: =MAX(A$2:OFFSET($A22,-One,0))+Sbsxn -> 401.02 | B22: Project
B24: Project name | C24: text | D24: =+IF(ISBLANK(INDEX(E24:F24,,$D$19)),E24,INDEX(E24:F24,,$D$19)) -> [Insert Project Name] | E24: [Insert Project Name] | F24: [Insert Project Name] | N24: ◀ Populate with Project Name.
B25: Project type | C25: text | D25: =+IF(ISBLANK(INDEX(E25:F25,,$D$19)),E25,INDEX(E25:F25,,$D$19)) -> [Spare] | E25: [Spare] | F25: [Spare] | N25: ◀ Select project type e.g. Wind Farm, Solar Farm, Storage etc., select from dropdown.
B27: Maximum Capacity: BID VARIABLE | C27: MW | D27: =+IF(ISBLANK(INDEX(E27:F27,,$D$19)),E27,INDEX(E27:F27,,$D$19)) -> 500 | E27: 500 | F27: =F63 -> 500 | N27: ◀ REZ project specific input provided by Proponent. The Access Right Maximum Capacity is per connection point.
B28: First Commissioning Date: BID VARIABLE | C28: date | D28: =+IF(ISBLANK(INDEX(E28:F28,,$D$19)),E28,INDEX(E28:F28,,$D$19)) -> 2027-05-01 | E28: 2027-05-01 | F28: 2026-05-01 | N28: As defined in the Access PDA. Projects bid a Target First Commissioning Date, which is a milestone in the Access PDA
B30: Connection Term | C30: years | D30: =+IF(ISBLANK(INDEX(E30:F30,,$D$19)),E30,INDEX(E30:F30,,$D$19)) -> 15 | E30: 15 | F30: 15 | N30: ◀ Placeholder assumption of 15 years. Note, this should be the expected term of connection into the REZ
A32: =MAX(A$2:OFFSET($A32,-One,0))+Sbsxn -> 401.03 | B32: Dates and General
B34: Electrification of Dinawan substation date | C34: date | D34: =+IF(ISBLANK(INDEX(E34:F34,,$D$19)),E34,INDEX(E34:F34,,$D$19)) -> 2026-05-01 | E34: 2026-05-01 | F34: 2026-05-01 | N34: Current estimate for the date of the electrification of the Dinawan substation, this is anticipated to be 1 May 2026 (as at the commencement of the Tender, see the SW REZ Access Rights Supplement for more information)
B35: Years between Dinawan electrification and Scheme End | C35: years | D35: =+IF(ISBLANK(INDEX(E35:F35,,$D$19)),E35,INDEX(E35:F35,,$D$19)) -> 15 | E35: 15 | F35: =IF(ISBLANK(F73),E35,(F73-F34)/DiY) -> 15.00821918 | N35: Implicit Model assumption; do not change
B36: Scheme End date | C36: date | D36: =+IF(ISBLANK(INDEX(E36:F36,,$D$19)),E36,INDEX(E36:F36,,$D$19)) -> 2041-04-30 | E36: =EOMONTH(E34,E35*MiY-1) -> 2041-04-30 | F36: =F73 -> 2041-04-30 | N36: The Access Scheme ends 15 years after the date of the electrification of the Dinawan substation, as notified by the Infrastructure Planner
B38: Network Readiness Date | C38: date | D38: =+IF(ISBLANK(INDEX(E38:F38,,$D$19)),E38,INDEX(E38:F38,,$D$19)) -> 2027-05-01 | E38: 2027-05-01 | F38: 2027-05-01 | N38: As defined in the Access Payment Deed
B40: Access Fee Payment Start Date | C40: date | D40: =MIN(D28,D38) -> 2027-05-01 | N40: Note, payment start date is the earlier of the Project's First Commissioning OR the Network Readiness Date. Access Fees become payable from this point onward.
B41: Access Fee Payment End Date | C41: date | D41: =IF(OR(D40=0,D30=0),0,MIN((EOMONTH(D40,D30*MiY-1)),D36)) -> 2041-04-30 | N41: Earlier of a) the Access Fee Payment Date + Payment Term, and b) Scheme End Date
B43: Fixed indexation | C43: % p.a. | D43: =+IF(ISBLANK(INDEX(E43:F43,,$D$19)),E43,INDEX(E43:F43,,$D$19)) -> 0.025 | E43: 0.025 | F43: 0.025 | N43: SW REZ Access Fee Guidelines (May 2024), SW REZ draft Access Fee Calculator Assumptions (Appendix)
B44: GST Applicable | C44: text | D44: =+IF(ISBLANK(INDEX(E44:F44,,$D$19)),E44,INDEX(E44:F44,,$D$19)) -> 1 | E44: 1 | F44: 1 | N44: Access Fees set out in the draft Determination Access Fee Schedule are exclusive of GST. If GST is payable, or notionally payable, on a supply made in connection with the draft Determination, then the payment, or notional payment, of GST will be in accordance with the Access Payment Deed. The draft Access Payment Deed currently assumes GST is payable.
B45: GST | C45: % p.a. | D45: =IF($D$44=Table!$K$72,Assumptions!E45, 0) -> 0.1 | E45: 0.1 | F45: 0.1 | N45: Access Fees set out in the draft Determination Access Fee Schedule are exclusive of GST. If GST is payable, or notionally payable, on a supply made in connection with the draft Determination, then the payment, or notional payment, of GST will be in accordance with the Access Payment Deed. The draft Access Payment Deed currently assumes GST is payable.
A47: =MAX(A$2:OFFSET($A47,-One,0))+Sbsxn -> 401.04 | B47: SW Access Fee
B48: ="Note: Access Fee in nominal AUD$m excl GST as at "&TEXT($D$16, "d mmm yyyy")&", unless noted otherwise" -> Note: Access Fee in nominal AUD$m excl GST as at 1 Jul 2024, unless noted otherwise
B50: ="Access Fee components (in real "&Units&")" -> Access Fee components (in real AUD$m)
B51: Community and Employment Fee (C&E Fee) | C51: AUD$'000/MW p.a. | D51: =+IF(ISBLANK(INDEX(E51:F51,,$D$19)),E51,INDEX(E51:F51,,$D$19)) -> 2.3 | E51: 2.3 | F51: =F66 -> 2.3 | N51: SW REZ Access Fee Guidelines (May 2024), SW REZ draft Access Fee Calculator Assumptions (Appendix)
B52: SW REZ Administration Fee | C52: AUD$'000/MW p.a. | D52: =+IF(ISBLANK(INDEX(E52:F52,,$D$19)),E52,INDEX(E52:F52,,$D$19)) -> 0.691 | E52: 0.691 | F52: =F67 -> 0.691 | N52: SW REZ Access Fee Guidelines (May 2024), SW REZ draft Access Fee Calculator Assumptions (Appendix)
B53: Contribution to the NSW Electricity Infrastructure Roadmap | C53: AUD$'000/MW p.a. | D53: =+IF(ISBLANK(INDEX(E53:F53,,$D$19)),E53,INDEX(E53:F53,,$D$19)) -> 1.009 | E53: 1.009 | F53: =F68 -> 1.009 | N53: SW REZ Access Fee Guidelines (May 2024), SW REZ draft Access Fee Calculator Assumptions (Appendix)
B54: Access Fee - Annual cost per MW | C54: AUD$'000/MW p.a. | D54: =SUM(D51:D53) -> 4 | E54: =SUM(E51:E53) -> 4 | F54: =SUM(F51:F53) -> 4
A56: =ROUNDDOWN(MAX($A$8:OFFSET(A56,-One,0),$A$2*Sht)+Sxn,0) -> 402 | B56: Variation Sensitivity Assumptions
B57: ="Note: Access Fee in nominal AUD$m excl GST as at "&TEXT($D$16, "d mmm yyyy")&", unless noted otherwise" -> Note: Access Fee in nominal AUD$m excl GST as at 1 Jul 2024, unless noted otherwise
B58: Note: Threshold Change per the Draft Access Fee Determination (April 2024)
A60: =MAX(A$2:OFFSET($A60,-One,0))+Sbsxn -> 402.01 | B60: Approved Maximum Capacity Change
B62: Maximum Capacity Change | D62: Sensitivity (+/-) % | E62: Access Fee | F62: Applicable Variation Figure | H62: Test Variation Case | J62: Threshold Change | L62: Calculated Change
B63: Maximum Capacity | C63: MW | D63: 0 | E63: =E27 -> 500 | F63: =H63 -> 500 | H63: =E63*(1+D63) -> 500 | N63: ◀ Placeholder assumption of 0%. Input alternative Project Maximum Capacity for the variation case
B65: Access Fee | C65: AUD$'000/MW p.a. | E65: =E54 -> 4 | F65: =(1+MAX(L65,J65))*(E65) -> 4 | H65: =$E65*(1+$D$63) -> 4 | J65: -0.05 | L65: =IF(E65<=0,0,H65/E65-1) -> 0
B66: Community and Employment Fee (C&E Fee) | C66: AUD$'000/MW p.a. | E66: =E51 -> 2.3 | F66: =(1+MAX(L66,J66))*(E66) -> 2.3 | H66: =$E66*(1+$D$63) -> 2.3 | J66: =J65 -> -0.05 | L66: =IF(E66<=0,0,H66/E66-1) -> 0
B67: SW REZ Administration Fee | C67: AUD$'000/MW p.a. | E67: =E52 -> 0.691 | F67: =(1+MAX(L67,J67))*(E67) -> 0.691 | H67: =$E67*(1+$D$63) -> 0.691 | J67: =J65 -> -0.05 | L67: =IF(E67<=0,0,H67/E67-1) -> 0
B68: Contribution to the NSW Electricity Infrastructure Roadmap | C68: AUD$'000/MW p.a. | E68: =E53 -> 1.009 | F68: =(1+MAX(L68,J68))*(E68) -> 1.009 | H68: =$E68*(1+$D$63) -> 1.009 | J68: =J65 -> -0.05 | L68: =IF(E68<=0,0,H68/E68-1) -> 0
A70: =MAX(A$2:OFFSET($A70,-One,0))+Sbsxn -> 402.02 | B70: Scheme Term Extension
B72: Scheme Term Extension | D72: Sensitivity (+/-) % | E72: Base Case | F72: Applicable Variation Figure
B73: Scheme, end date | C73: date | E73: =E36 -> 2041-04-30 | F73: 2041-04-30 | N73: ◀ Placeholder assumption of 30 April 2041. In the event of a Scheme Term Extension, if a Project wishes to continue it's Access Right, the Payment Term will need to be extended to match the term of the Scheme Term Extension.
A75: END

Sheet Calculations
A1: =MdlTtl -> SW REZ - DRAFT - Access Fee Calculator | J1: Period Start | K1: =Start -> 2026-01-01 | L1: =K2+1 -> 2026-04-01 | M1: 2026-07-01 | N1: 2026-10-01 | O1: 2027-01-01 | P1: 2027-04-01 | Q1: 2027-07-01 | R1: 2027-10-01 | S1: 2028-01-01 | T1: 2028-04-01 | U1: 2028-07-01 | V1: 2028-10-01 | W1: 2029-01-01 | X1: 2029-04-01 | Y1: 2029-07-01 | Z1: 2029-10-01 | AA1: 2030-01-01 | AB1: 2030-04-01 | AC1: 2030-07-01 | AD1: 2030-10-01 | AE1: 2031-01-01 | AF1: 2031-04-01 | AG1: 2031-07-01 | AH1: 2031-10-01 | AI1: 2032-01-01 | AJ1: 2032-04-01 | AK1: 2032-07-01 | AL1: 2032-10-01 | AM1: 2033-01-01 | AN1: 2033-04-01 | AO1: 2033-07-01 | AP1: 2033-10-01 | AQ1: 2034-01-01 | AR1: 2034-04-01 | AS1: 2034-07-01 | AT1: 2034-10-01 | AU1: 2035-01-01 | AV1: 2035-04-01 | AW1: 2035-07-01 | AX1: 2035-10-01 | AY1: 2036-01-01 | AZ1: 2036-04-01 | BA1: 2036-07-01 | BB1: 2036-10-01 | BC1: 2037-01-01 | BD1: 2037-04-01 | BE1: 2037-07-01 | BF1: 2037-10-01 | BG1: 2038-01-01 | BH1: 2038-04-01 | BI1: 2038-07-01 | BJ1: 2038-10-01 | BK1: 2039-01-01 | BL1: 2039-04-01 | BM1: 2039-07-01 | BN1: 2039-10-01 | BO1: 2040-01-01 | BP1: 2040-04-01 | BQ1: 2040-07-01 | BR1: 2040-10-01 | BS1: 2041-01-01 | BT1: 2041-04-01 | BU1: 2041-07-01 | BV1: 2041-10-01 | BW1: 2042-01-01 | BX1: =BW2+1 -> 2042-04-01 | BY1: 2042-07-01 | BZ1: 2042-10-01 | CA1: 2043-01-01 | CB1: 2043-04-01 | CC1: 2043-07-01 | CD1: 2043-10-01 | CE1: 2044-01-01 | CF1: 2044-04-01 | CG1: 2044-07-01 | CH1: 2044-10-01 | CI1: 2045-01-01 | CJ1: 2045-04-01 | CK1: 2045-07-01 | CL1: 2045-10-01 | CM1: 2046-01-01 | CN1: 2046-04-01 | CO1: 2046-07-01 | CP1: 2046-10-01 | CQ1: 2047-01-01 | CR1: 2047-04-01 | CS1: 2047-07-01 | CT1: 2047-10-01 | CU1: 2048-01-01 | CV1: 2048-04-01 | CW1: 2048-07-01 | CX1: 2048-10-01 | CY1: 2049-01-01 | CZ1: 2049-04-01 | DA1: 2049-07-01 | DB1: 2049-10-01 | DC1: 2050-01-01 | DD1: 2050-04-01 | DE1: 2050-07-01 | DF1: 2050-10-01
A2: =_xlfn.SHEET() -> 5 | B2: =_xlfn.TEXTAFTER(CELL("filename",A1),"]") -> Calculations | J2: Period End | K2: =EOMONTH(K1,MiP-1) -> 2026-03-31 | L2: =EOMONTH(L1,MiP-1) -> 2026-06-30 | M2: =EOMONTH(M1,MiP-1) -> 2026-09-30 | N2: 2026-12-31 | O2: 2027-03-31 | P2: 2027-06-30 | Q2: 2027-09-30 | R2: 2027-12-31 | S2: 2028-03-31 | T2: 2028-06-30 | U2: 2028-09-30 | V2: 2028-12-31 | W2: 2029-03-31 | X2: 2029-06-30 | Y2: 2029-09-30 | Z2: 2029-12-31 | AA2: 2030-03-31 | AB2: 2030-06-30 | AC2: 2030-09-30 | AD2: 2030-12-31 | AE2: 2031-03-31 | AF2: 2031-06-30 | AG2: 2031-09-30 | AH2: 2031-12-31 | AI2: 2032-03-31 | AJ2: 2032-06-30 | AK2: 2032-09-30 | AL2: 2032-12-31 | AM2: 2033-03-31 | AN2: 2033-06-30 | AO2: 2033-09-30 | AP2: 2033-12-31 | AQ2: 2034-03-31 | AR2: 2034-06-30 | AS2: 2034-09-30 | AT2: 2034-12-31 | AU2: 2035-03-31 | AV2: 2035-06-30 | AW2: 2035-09-30 | AX2: 2035-12-31 | AY2: 2036-03-31 | AZ2: 2036-06-30 | BA2: 2036-09-30 | BB2: 2036-12-31 | BC2: 2037-03-31 | BD2: 2037-06-30 | BE2: 2037-09-30 | BF2: 2037-12-31 | BG2: 2038-03-31 | BH2: 2038-06-30 | BI2: 2038-09-30 | BJ2: 2038-12-31 | BK2: 2039-03-31 | BL2: 2039-06-30 | BM2: 2039-09-30 | BN2: 2039-12-31 | BO2: 2040-03-31 | BP2: 2040-06-30 | BQ2: 2040-09-30 | BR2: 2040-12-31 | BS2: 2041-03-31 | BT2: 2041-06-30 | BU2: 2041-09-30 | BV2: 2041-12-31 | BW2: 2042-03-31 | BX2: 2042-06-30 | BY2: =EOMONTH(BY1,MiP-1) -> 2042-09-30 | BZ2: 2042-12-31 | CA2: 2043-03-31 | CB2: 2043-06-30 | CC2: 2043-09-30 | CD2: 2043-12-31 | CE2: 2044-03-31 | CF2: 2044-06-30 | CG2: 2044-09-30 | CH2: 2044-12-31 | CI2: 2045-03-31 | CJ2: 2045-06-30 | CK2: 2045-09-30 | CL2: 2045-12-31 | CM2: 2046-03-31 | CN2: 2046-06-30 | CO2: 2046-09-30 | CP2: 2046-12-31 | CQ2: 2047-03-31 | CR2: 2047-06-30 | CS2: 2047-09-30 | CT2: 2047-12-31 | CU2: 2048-03-31 | CV2: 2048-06-30 | CW2: 2048-09-30 | CX2: 2048-12-31 | CY2: 2049-03-31 | CZ2: 2049-06-30 | DA2: 2049-09-30 | DB2: 2049-12-31 | DC2: 2050-03-31 | DD2: 2050-06-30 | DE2: 2050-09-30 | DF2: 2050-12-31
B3: Main calculation engine for the model | G3: Sum Chks
G4: =SUM(G7:G206) -> 0
A5: =Table!B25 -> All Checks are OK | C5: Units | D5: Assumptions | G5: Checks | H5: Alerts | I5: Total | J5: Seed
A8: =ROUNDDOWN(MAX($A$7:OFFSET(A8,-One,0),$A$2*Sht)+Sxn,0) -> 501 | B8: Assumptions
A10: =MAX(A$2:OFFSET($A10,-One,0))+Sbsxn -> 501.01 | B10: General Flags & Counters
B12: Period start month number | C12: # | K12: =MONTH(K1) -> 1 | L12: 4 | M12: 7 | N12: 10 | O12: 1 | P12: 4 | Q12: 7 | R12: 10 | S12: 1 | T12: 4 | U12: 7 | V12: 10 | W12: 1 | X12: 4 | Y12: 7 | Z12: 10 | AA12: 1 | AB12: 4 | AC12: 7 | AD12: 10 | AE12: 1 | AF12: 4 | AG12: 7 | AH12: 10 | AI12: 1 | AJ12: 4 | AK12: 7 | AL12: 10 | AM12: 1 | AN12: 4 | AO12: 7 | AP12: 10 | AQ12: =MONTH(AQ1) -> 1 | AR12: 4 | AS12: 7 | AT12: 10 | AU12: 1 | AV12: 4 | AW12: 7 | AX12: 10 | AY12: 1 | AZ12: 4 | BA12: 7 | BB12: 10 | BC12: 1 | BD12: 4 | BE12: 7 | BF12: 10 | BG12: 1 | BH12: 4 | BI12: 7 | BJ12: 10 | BK12: 1 | BL12: 4 | BM12: 7 | BN12: 10 | BO12: 1 | BP12: 4 | BQ12: 7 | BR12: 10 | BS12: 1 | BT12: 4 | BU12: 7 | BV12: 10 | BW12: =MONTH(BW1) -> 1 | BX12: 4 | BY12: 7 | BZ12: 10 | CA12: 1 | CB12: 4 | CC12: 7 | CD12: 10 | CE12: 1 | CF12: 4 | CG12: 7 | CH12: 10 | CI12: 1 | CJ12: 4 | CK12: 7 | CL12: 10 | CM12: 1 | CN12: 4 | CO12: 7 | CP12: 10 | CQ12: 1 | CR12: 4 | CS12: 7 | CT12: 10 | CU12: 1 | CV12: 4 | CW12: 7 | CX12: 10 | CY12: 1 | CZ12: 4 | DA12: 7 | DB12: 10 | DC12: 1 | DD12: 4 | DE12: 7 | DF12: 10
B13: Period end month number | C13: # | K13: =MONTH(K2) -> 3 | L13: 6 | M13: 9 | N13: 12 | O13: 3 | P13: 6 | Q13: 9 | R13: 12 | S13: 3 | T13: 6 | U13: 9 | V13: 12 | W13: 3 | X13: 6 | Y13: 9 | Z13: 12 | AA13: 3 | AB13: 6 | AC13: 9 | AD13: 12 | AE13: 3 | AF13: 6 | AG13: 9 | AH13: 12 | AI13: 3 | AJ13: 6 | AK13: 9 | AL13: 12 | AM13: 3 | AN13: 6 | AO13: 9 | AP13: 12 | AQ13: =MONTH(AQ2) -> 3 | AR13: 6 | AS13: 9 | AT13: 12 | AU13: 3 | AV13: 6 | AW13: 9 | AX13: 12 | AY13: 3 | AZ13: 6 | BA13: 9 | BB13: 12 | BC13: 3 | BD13: 6 | BE13: 9 | BF13: 12 | BG13: 3 | BH13: 6 | BI13: 9 | BJ13: 12 | BK13: 3 | BL13: 6 | BM13: 9 | BN13: 12 | BO13: 3 | BP13: 6 | BQ13: 9 | BR13: 12 | BS13: 3 | BT13: 6 | BU13: 9 | BV13: 12 | BW13: =MONTH(BW2) -> 3 | BX13: 6 | BY13: 9 | BZ13: 12 | CA13: 3 | CB13: 6 | CC13: 9 | CD13: 12 | CE13: 3 | CF13: 6 | CG13: 9 | CH13: 12 | CI13: 3 | CJ13: 6 | CK13: 9 | CL13: 12 | CM13: 3 | CN13: 6 | CO13: 9 | CP13: 12 | CQ13: 3 | CR13: 6 | CS13: 9 | CT13: 12 | CU13: 3 | CV13: 6 | CW13: 9 | CX13: 12 | CY13: 3 | CZ13: 6 | DA13: 9 | DB13: 12 | DC13: 3 | DD13: 6 | DE13: 9 | DF13: 12
B15: Calendar year | C15: year | K15: =YEAR(K2) -> 2026 | L15: 2026 | M15: 2026 | N15: 2026 | O15: 2027 | P15: 2027 | Q15: 2027 | R15: 2027 | S15: 2028 | T15: 2028 | U15: 2028 | V15: 2028 | W15: 2029 | X15: 2029 | Y15: 2029 | Z15: 2029 | AA15: 2030 | AB15: 2030 | AC15: 2030 | AD15: 2030 | AE15: 2031 | AF15: 2031 | AG15: 2031 | AH15: 2031 | AI15: 2032 | AJ15: 2032 | AK15: 2032 | AL15: 2032 | AM15: 2033 | AN15: 2033 | AO15: 2033 | AP15: 2033 | AQ15: =YEAR(AQ2) -> 2034 | AR15: 2034 | AS15: 2034 | AT15: 2034 | AU15: 2035 | AV15: 2035 | AW15: 2035 | AX15: 2035 | AY15: 2036 | AZ15: 2036 | BA15: 2036 | BB15: 2036 | BC15: 2037 | BD15: 2037 | BE15: 2037 | BF15: 2037 | BG15: 2038 | BH15: 2038 | BI15: 2038 | BJ15: 2038 | BK15: 2039 | BL15: 2039 | BM15: 2039 | BN15: 2039 | BO15: 2040 | BP15: 2040 | BQ15: 2040 | BR15: 2040 | BS15: 2041 | BT15: 2041 | BU15: 2041 | BV15: 2041 | BW15: =YEAR(BW2) -> 2042 | BX15: 2042 | BY15: 2042 | BZ15: 2042 | CA15: 2043 | CB15: 2043 | CC15: 2043 | CD15: 2043 | CE15: 2044 | CF15: 2044 | CG15: 2044 | CH15: 2044 | CI15: 2045 | CJ15: 2045 | CK15: 2045 | CL15: 2045 | CM15: 2046 | CN15: 2046 | CO15: 2046 | CP15: 2046 | CQ15: 2047 | CR15: 2047 | CS15: 2047 | CT15: 2047 | CU15: 2048 | CV15: 2048 | CW15: 2048 | CX15: 2048 | CY15: 2049 | CZ15: 2049 | DA15: 2049 | DB15: 2049 | DC15: 2050 | DD15: 2050 | DE15: 2050 | DF15: 2050
B16: Financial year | C16: year | D16: =Assumptions!D17 -> 6 | K16: =YEAR(K1)+IF(MONTH(K1)>Assumptions!$D$17,1,0) -> 2026 | L16: =YEAR(L1)+IF(MONTH(L1)>Assumptions!$D$17,1,0) -> 2026 | M16: =YEAR(M1)+IF(MONTH(M1)>Assumptions!$D$17,1,0) -> 2027 | N16: =YEAR(N1)+IF(MONTH(N1)>Assumptions!$D$17,1,0) -> 2027 | O16: =YEAR(O1)+IF(MONTH(O1)>Assumptions!$D$17,1,0) -> 2027 | P16: =YEAR(P1)+IF(MONTH(P1)>Assumptions!$D$17,1,0) -> 2027 | Q16: =YEAR(Q1)+IF(MONTH(Q1)>Assumptions!$D$17,1,0) -> 2028 | R16: =YEAR(R1)+IF(MONTH(R1)>Assumptions!$D$17,1,0) -> 2028 | S16: =YEAR(S1)+IF(MONTH(S1)>Assumptions!$D$17,1,0) -> 2028 | T16: =YEAR(T1)+IF(MONTH(T1)>Assumptions!$D$17,1,0) -> 2028 | U16: =YEAR(U1)+IF(MONTH(U1)>Assumptions!$D$17,1,0) -> 2029 | V16: =YEAR(V1)+IF(MONTH(V1)>Assumptions!$D$17,1,0) -> 2029 | W16: =YEAR(W1)+IF(MONTH(W1)>Assumptions!$D$17,1,0) -> 2029 | X16: =YEAR(X1)+IF(MONTH(X1)>Assumptions!$D$17,1,0) -> 2029 | Y16: =YEAR(Y1)+IF(MONTH(Y1)>Assumptions!$D$17,1,0) -> 2030 | Z16: =YEAR(Z1)+IF(MONTH(Z1)>Assumptions!$D$17,1,0) -> 2030 | AA16: =YEAR(AA1)+IF(MONTH(AA1)>Assumptions!$D$17,1,0) -> 2030 | AB16: =YEAR(AB1)+IF(MONTH(AB1)>Assumptions!$D$17,1,0) -> 2030 | AC16: =YEAR(AC1)+IF(MONTH(AC1)>Assumptions!$D$17,1,0) -> 2031 | AD16: =YEAR(AD1)+IF(MONTH(AD1)>Assumptions!$D$17,1,0) -> 2031 | AE16: =YEAR(AE1)+IF(MONTH(AE1)>Assumptions!$D$17,1,0) -> 2031 | AF16: =YEAR(AF1)+IF(MONTH(AF1)>Assumptions!$D$17,1,0) -> 2031 | AG16: =YEAR(AG1)+IF(MONTH(AG1)>Assumptions!$D$17,1,0) -> 2032 | AH16: =YEAR(AH1)+IF(MONTH(AH1)>Assumptions!$D$17,1,0) -> 2032 | AI16: =YEAR(AI1)+IF(MONTH(AI1)>Assumptions!$D$17,1,0) -> 2032 | AJ16: =YEAR(AJ1)+IF(MONTH(AJ1)>Assumptions!$D$17,1,0) -> 2032 | AK16: =YEAR(AK1)+IF(MONTH(AK1)>Assumptions!$D$17,1,0) -> 2033 | AL16: =YEAR(AL1)+IF(MONTH(AL1)>Assumptions!$D$17,1,0) -> 2033 | AM16: =YEAR(AM1)+IF(MONTH(AM1)>Assumptions!$D$17,1,0) -> 2033 | AN16: =YEAR(AN1)+IF(MONTH(AN1)>Assumptions!$D$17,1,0) -> 2033 | AO16: =YEAR(AO1)+IF(MONTH(AO1)>Assumptions!$D$17,1,0) -> 2034 | AP16: =YEAR(AP1)+IF(MONTH(AP1)>Assumptions!$D$17,1,0) -> 2034 | AQ16: =YEAR(AQ1)+IF(MONTH(AQ1)>Assumptions!$D$17,1,0) -> 2034 | AR16: =YEAR(AR1)+IF(MONTH(AR1)>Assumptions!$D$17,1,0) -> 2034 | AS16: =YEAR(AS1)+IF(MONTH(AS1)>Assumptions!$D$17,1,0) -> 2035 | AT16: =YEAR(AT1)+IF(MONTH(AT1)>Assumptions!$D$17,1,0) -> 2035 | AU16: =YEAR(AU1)+IF(MONTH(AU1)>Assumptions!$D$17,1,0) -> 2035 | AV16: =YEAR(AV1)+IF(MONTH(AV1)>Assumptions!$D$17,1,0) -> 2035 | AW16: =YEAR(AW1)+IF(MONTH(AW1)>Assumptions!$D$17,1,0) -> 2036 | AX16: =YEAR(AX1)+IF(MONTH(AX1)>Assumptions!$D$17,1,0) -> 2036 | AY16: =YEAR(AY1)+IF(MONTH(AY1)>Assumptions!$D$17,1,0) -> 2036 | AZ16: =YEAR(AZ1)+IF(MONTH(AZ1)>Assumptions!$D$17,1,0) -> 2036 | BA16: =YEAR(BA1)+IF(MONTH(BA1)>Assumptions!$D$17,1,0) -> 2037 | BB16: =YEAR(BB1)+IF(MONTH(BB1)>Assumptions!$D$17,1,0) -> 2037 | BC16: =YEAR(BC1)+IF(MONTH(BC1)>Assumptions!$D$17,1,0) -> 2037 | BD16: =YEAR(BD1)+IF(MONTH(BD1)>Assumptions!$D$17,1,0) -> 2037 | BE16: =YEAR(BE1)+IF(MONTH(BE1)>Assumptions!$D$17,1,0) -> 2038 | BF16: =YEAR(BF1)+IF(MONTH(BF1)>Assumptions!$D$17,1,0) -> 2038 | BG16: =YEAR(BG1)+IF(MONTH(BG1)>Assumptions!$D$17,1,0) -> 2038 | BH16: =YEAR(BH1)+IF(MONTH(BH1)>Assumptions!$D$17,1,0) -> 2038 | BI16: =YEAR(BI1)+IF(MONTH(BI1)>Assumptions!$D$17,1,0) -> 2039 | BJ16: =YEAR(BJ1)+IF(MONTH(BJ1)>Assumptions!$D$17,1,0) -> 2039 | BK16: =YEAR(BK1)+IF(MONTH(BK1)>Assumptions!$D$17,1,0) -> 2039 | BL16: =YEAR(BL1)+IF(MONTH(BL1)>Assumptions!$D$17,1,0) -> 2039 | BM16: =YEAR(BM1)+IF(MONTH(BM1)>Assumptions!$D$17,1,0) -> 2040 | BN16: =YEAR(BN1)+IF(MONTH(BN1)>Assumptions!$D$17,1,0) -> 2040 | BO16: =YEAR(BO1)+IF(MONTH(BO1)>Assumptions!$D$17,1,0) -> 2040 | BP16: =YEAR(BP1)+IF(MONTH(BP1)>Assumptions!$D$17,1,0) -> 2040 | BQ16: =YEAR(BQ1)+IF(MONTH(BQ1)>Assumptions!$D$17,1,0) -> 2041 | BR16: =YEAR(BR1)+IF(MONTH(BR1)>Assumptions!$D$17,1,0) -> 2041 | BS16: =YEAR(BS1)+IF(MONTH(BS1)>Assumptions!$D$17,1,0) -> 2041 | BT16: =YEAR(BT1)+IF(MONTH(BT1)>Assumptions!$D$17,1,0) -> 2041 | BU16: =YEAR(BU1)+IF(MONTH(BU1)>Assumptions!$D$17,1,0) -> 2042 | BV16: =YEAR(BV1)+IF(MONTH(BV1)>Assumptions!$D$17,1,0) -> 2042 | BW16: =YEAR(BW1)+IF(MONTH(BW1)>Assumptions!$D$17,1,0) -> 2042 | BX16: =YEAR(BX1)+IF(MONTH(BX1)>Assumptions!$D$17,1,0) -> 2042 | BY16: =YEAR(BY1)+IF(MONTH(BY1)>Assumptions!$D$17,1,0) -> 2043 | BZ16: =YEAR(BZ1)+IF(MONTH(BZ1)>Assumptions!$D$17,1,0) -> 2043 | CA16: =YEAR(CA1)+IF(MONTH(CA1)>Assumptions!$D$17,1,0) -> 2043 | CB16: =YEAR(CB1)+IF(MONTH(CB1)>Assumptions!$D$17,1,0) -> 2043 | CC16: =YEAR(CC1)+IF(MONTH(CC1)>Assumptions!$D$17,1,0) -> 2044 | CD16: =YEAR(CD1)+IF(MONTH(CD1)>Assumptions!$D$17,1,0) -> 2044 | CE16: =YEAR(CE1)+IF(MONTH(CE1)>Assumptions!$D$17,1,0) -> 2044 | CF16: =YEAR(CF1)+IF(MONTH(CF1)>Assumptions!$D$17,1,0) -> 2044 | CG16: =YEAR(CG1)+IF(MONTH(CG1)>Assumptions!$D$17,1,0) -> 2045 | CH16: =YEAR(CH1)+IF(MONTH(CH1)>Assumptions!$D$17,1,0) -> 2045 | CI16: =YEAR(CI1)+IF(MONTH(CI1)>Assumptions!$D$17,1,0) -> 2045 | CJ16: =YEAR(CJ1)+IF(MONTH(CJ1)>Assumptions!$D$17,1,0) -> 2045 | CK16: =YEAR(CK1)+IF(MONTH(CK1)>Assumptions!$D$17,1,0) -> 2046 | CL16: =YEAR(CL1)+IF(MONTH(CL1)>Assumptions!$D$17,1,0) -> 2046 | CM16: =YEAR(CM1)+IF(MONTH(CM1)>Assumptions!$D$17,1,0) -> 2046 | CN16: =YEAR(CN1)+IF(MONTH(CN1)>Assumptions!$D$17,1,0) -> 2046 | CO16: =YEAR(CO1)+IF(MONTH(CO1)>Assumptions!$D$17,1,0) -> 2047 | CP16: =YEAR(CP1)+IF(MONTH(CP1)>Assumptions!$D$17,1,0) -> 2047 | CQ16: =YEAR(CQ1)+IF(MONTH(CQ1)>Assumptions!$D$17,1,0) -> 2047 | CR16: =YEAR(CR1)+IF(MONTH(CR1)>Assumptions!$D$17,1,0) -> 2047 | CS16: =YEAR(CS1)+IF(MONTH(CS1)>Assumptions!$D$17,1,0) -> 2048 | CT16: =YEAR(CT1)+IF(MONTH(CT1)>Assumptions!$D$17,1,0) -> 2048 | CU16: =YEAR(CU1)+IF(MONTH(CU1)>Assumptions!$D$17,1,0) -> 2048 | CV16: =YEAR(CV1)+IF(MONTH(CV1)>Assumptions!$D$17,1,0) -> 2048 | CW16: =YEAR(CW1)+IF(MONTH(CW1)>Assumptions!$D$17,1,0) -> 2049 | CX16: =YEAR(CX1)+IF(MONTH(CX1)>Assumptions!$D$17,1,0) -> 2049 | CY16: =YEAR(CY1)+IF(MONTH(CY1)>Assumptions!$D$17,1,0) -> 2049 | CZ16: =YEAR(CZ1)+IF(MONTH(CZ1)>Assumptions!$D$17,1,0) -> 2049 | DA16: =YEAR(DA1)+IF(MONTH(DA1)>Assumptions!$D$17,1,0) -> 2050 | DB16: =YEAR(DB1)+IF(MONTH(DB1)>Assumptions!$D$17,1,0) -> 2050 | DC16: =YEAR(DC1)+IF(MONTH(DC1)>Assumptions!$D$17,1,0) -> 2050 | DD16: =YEAR(DD1)+IF(MONTH(DD1)>Assumptions!$D$17,1,0) -> 2050 | DE16: =YEAR(DE1)+IF(MONTH(DE1)>Assumptions!$D$17,1,0) -> 2051 | DF16: =YEAR(DF1)+IF(MONTH(DF1)>Assumptions!$D$17,1,0) -> 2051
A18: =MAX(A$2:OFFSET($A18,-One,0))+Sbsxn -> 501.02 | B18: Project Flags & Counters
B20: Flags
B21: Payment Term start | C21: # | D21: =Assumptions!D40 -> 2027-05-01 | G21: =N(AND(I21<>One,D21<>Zero)) -> 0 | I21: =SUM(K21:DF21) -> 1 | K21: =IF(AND($D21<=K$2,$D21>=K$1),One,Zero) -> 0 | L21: 0 | M21: 0 | N21: 0 | O21: 0 | P21: 1 | Q21: 0 | R21: 0 | S21: 0 | T21: 0 | U21: =IF(AND($D21<=U$2,$D21>=U$1),One,Zero) -> 0 | V21: 0 | W21: 0 | X21: 0 | Y21: 0 | Z21: 0 | AA21: 0 | AB21: 0 | AC21: 0 | AD21: 0 | AE21: =IF(AND($D21<=AE$2,$D21>=AE$1),One,Zero) -> 0 | AF21: 0 | AG21: 0 | AH21: 0 | AI21: 0 | AJ21: 0 | AK21: 0 | AL21: 0 | AM21: 0 | AN21: 0 | AO21: =IF(AND($D21<=AO$2,$D21>=AO$1),One,Zero) -> 0 | AP21: 0 | AQ21: 0 | AR21: 0 | AS21: 0 | AT21: 0 | AU21: 0 | AV21: 0 | AW21: 0 | AX21: 0 | AY21: =IF(AND($D21<=AY$2,$D21>=AY$1),One,Zero) -> 0 | AZ21: 0 | BA21: 0 | BB21: 0 | BC21: 0 | BD21: 0 | BE21: 0 | BF21: 0 | BG21: 0 | BH21: 0 | BI21: =IF(AND($D21<=BI$2,$D21>=BI$1),One,Zero) -> 0 | BJ21: 0 | BK21: 0 | BL21: 0 | BM21: 0 | BN21: 0 | BO21: 0 | BP21: 0 | BQ21: 0 | BR21: 0 | BS21: =IF(AND($D21<=BS$2,$D21>=BS$1),One,Zero) -> 0 | BT21: 0 | BU21: 0 | BV21: 0 | BW21: 0 | BX21: 0 | BY21: 0 | BZ21: 0 | CA21: 0 | CB21: 0 | CC21: =IF(AND($D21<=CC$2,$D21>=CC$1),One,Zero) -> 0 | CD21: 0 | CE21: 0 | CF21: 0 | CG21: 0 | CH21: 0 | CI21: 0 | CJ21: 0 | CK21: 0 | CL21: 0 | CM21: =IF(AND($D21<=CM$2,$D21>=CM$1),One,Zero) -> 0 | CN21: 0 | CO21: 0 | CP21: 0 | CQ21: 0 | CR21: 0 | CS21: 0 | CT21: 0 | CU21: 0 | CV21: 0 | CW21: =IF(AND($D21<=CW$2,$D21>=CW$1),One,Zero) -> 0 | CX21: 0 | CY21: 0 | CZ21: 0 | DA21: 0 | DB21: 0 | DC21: 0 | DD21: 0 | DE21: 0 | DF21: 0
B22: Payment Term end | C22: # | D22: =Assumptions!D41 -> 2041-04-30 | G22: =N(AND(I22<>One,D22<>Zero)) -> 0 | I22: =SUM(K22:DF22) -> 1 | K22: 0 | L22: 0 | M22: 0 | N22: 0 | O22: 0 | P22: 0 | Q22: 0 | R22: 0 | S22: 0 | T22: 0 | U22: 0 | V22: 0 | W22: 0 | X22: 0 | Y22: 0 | Z22: 0 | AA22: 0 | AB22: 0 | AC22: 0 | AD22: 0 | AE22: 0 | AF22: 0 | AG22: 0 | AH22: 0 | AI22: 0 | AJ22: 0 | AK22: 0 | AL22: 0 | AM22: 0 | AN22: 0 | AO22: 0 | AP22: 0 | AQ22: 0 | AR22: 0 | AS22: 0 | AT22: 0 | AU22: 0 | AV22: 0 | AW22: 0 | AX22: 0 | AY22: 0 | AZ22: 0 | BA22: 0 | BB22: 0 | BC22: 0 | BD22: 0 | BE22: 0 | BF22: 0 | BG22: 0 | BH22: 0 | BI22: 0 | BJ22: 0 | BK22: 0 | BL22: 0 | BM22: 0 | BN22: 0 | BO22: 0 | BP22: 0 | BQ22: 0 | BR22: 0 | BS22: 0 | BT22: 1 | BU22: 0 | BV22: 0 | BW22: 0 | BX22: 0 | BY22: 0 | BZ22: 0 | CA22: 0 | CB22: 0 | CC22: 0 | CD22: 0 | CE22: 0 | CF22: 0 | CG22: 0 | CH22: 0 | CI22: 0 | CJ22: 0 | CK22: 0 | CL22: 0 | CM22: 0 | CN22: 0 | CO22: 0 | CP22: 0 | CQ22: 0 | CR22: 0 | CS22: 0 | CT22: 0 | CU22: 0 | CV22: 0 | CW22: 0 | CX22: 0 | CY22: 0 | CZ22: 0 | DA22: 0 | DB22: 0 | DC22: 0 | DD22: 0 | DE22: 0 | DF22: 0
B23: Scheme Term start | C23: # | D23: =Assumptions!D34 -> 2026-05-01 | G23: =N(AND(I23<>One,D23<>Zero)) -> 0 | I23: =SUM(K23:DF23) -> 1 | K23: 0 | L23: 1 | M23: 0 | N23: 0 | O23: 0 | P23: 0 | Q23: 0 | R23: 0 | S23: 0 | T23: 0 | U23: 0 | V23: 0 | W23: 0 | X23: 0 | Y23: 0 | Z23: 0 | AA23: 0 | AB23: 0 | AC23: 0 | AD23: 0 | AE23: 0 | AF23: 0 | AG23: 0 | AH23: 0 | AI23: 0 | AJ23: 0 | AK23: 0 | AL23: 0 | AM23: 0 | AN23: 0 | AO23: 0 | AP23: 0 | AQ23: 0 | AR23: 0 | AS23: 0 | AT23: 0 | AU23: 0 | AV23: 0 | AW23: 0 | AX23: 0 | AY23: 0 | AZ23: 0 | BA23: 0 | BB23: 0 | BC23: 0 | BD23: 0 | BE23: 0 | BF23: 0 | BG23: 0 | BH23: 0 | BI23: 0 | BJ23: 0 | BK23: 0 | BL23: 0 | BM23: 0 | BN23: 0 | BO23: 0 | BP23: 0 | BQ23: 0 | BR23: 0 | BS23: 0 | BT23: 0 | BU23: 0 | BV23: 0 | BW23: 0 | BX23: 0 | BY23: 0 | BZ23: 0 | CA23: 0 | CB23: 0 | CC23: 0 | CD23: 0 | CE23: 0 | CF23: 0 | CG23: 0 | CH23: 0 | CI23: 0 | CJ23: 0 | CK23: 0 | CL23: 0 | CM23: 0 | CN23: 0 | CO23: 0 | CP23: 0 | CQ23: 0 | CR23: 0 | CS23: 0 | CT23: 0 | CU23: 0 | CV23: 0 | CW23: 0 | CX23: 0 | CY23: 0 | CZ23: 0 | DA23: 0 | DB23: 0 | DC23: 0 | DD23: 0 | DE23: 0 | DF23: 0
B24: Scheme Term end | C24: # | D24: =Assumptions!D36 -> 2041-04-30 | G24: =N(AND(I24<>One,D24<>Zero)) -> 0 | I24: =SUM(K24:DF24) -> 1 | K24: 0 | L24: 0 | M24: 0 | N24: 0 | O24: 0 | P24: 0 | Q24: 0 | R24: 0 | S24: 0 | T24: 0 | U24: 0 | V24: 0 | W24: 0 | X24: 0 | Y24: 0 | Z24: 0 | AA24: 0 | AB24: 0 | AC24: 0 | AD24: 0 | AE24: 0 | AF24: 0 | AG24: 0 | AH24: 0 | AI24: 0 | AJ24: 0 | AK24: 0 | AL24: 0 | AM24: 0 | AN24: 0 | AO24: 0 | AP24: 0 | AQ24: 0 | AR24: 0 | AS24: 0 | AT24: 0 | AU24: 0 | AV24: 0 | AW24: 0 | AX24: 0 | AY24: 0 | AZ24: 0 | BA24: 0 | BB24: 0 | BC24: 0 | BD24: 0 | BE24: 0 | BF24: 0 | BG24: 0 | BH24: 0 | BI24: 0 | BJ24: 0 | BK24: 0 | BL24: 0 | BM24: 0 | BN24: 0 | BO24: 0 | BP24: 0 | BQ24: 0 | BR24: 0 | BS24: 0 | BT24: 1 | BU24: 0 | BV24: 0 | BW24: 0 | BX24: 0 | BY24: 0 | BZ24: 0 | CA24: 0 | CB24: 0 | CC24: 0 | CD24: 0 | CE24: 0 | CF24: 0 | CG24: 0 | CH24: 0 | CI24: 0 | CJ24: 0 | CK24: 0 | CL24: 0 | CM24: 0 | CN24: 0 | CO24: 0 | CP24: 0 | CQ24: 0 | CR24: 0 | CS24: 0 | CT24: 0 | CU24: 0 | CV24: 0 | CW24: 0 | CX24: 0 | CY24: 0 | CZ24: 0 | DA24: 0 | DB24: 0 | DC24: 0 | DD24: 0 | DE24: 0 | DF24: 0
B26: Payment Term flag | C26: # | D26: =D21 -> 2027-05-01 | E26: =D22 -> 2041-04-30 | I26: =SUM(K26:DF26) -> 57 | K26: =IF(AND(K$2>=$D26,K$1<=$E26),One,Zero) -> 0 | L26: 0 | M26: 0 | N26: 0 | O26: 0 | P26: 1 | Q26: 1 | R26: 1 | S26: 1 | T26: 1 | U26: =IF(AND(U$2>=$D26,U$1<=$E26),One,Zero) -> 1 | V26: 1 | W26: 1 | X26: 1 | Y26: 1 | Z26: 1 | AA26: 1 | AB26: 1 | AC26: 1 | AD26: 1 | AE26: =IF(AND(AE$2>=$D26,AE$1<=$E26),One,Zero) -> 1 | AF26: 1 | AG26: 1 | AH26: 1 | AI26: 1 | AJ26: 1 | AK26: 1 | AL26: 1 | AM26: 1 | AN26: 1 | AO26: =IF(AND(AO$2>=$D26,AO$1<=$E26),One,Zero) -> 1 | AP26: 1 | AQ26: 1 | AR26: 1 | AS26: 1 | AT26: 1 | AU26: 1 | AV26: 1 | AW26: 1 | AX26: 1 | AY26: =IF(AND(AY$2>=$D26,AY$1<=$E26),One,Zero) -> 1 | AZ26: 1 | BA26: 1 | BB26: 1 | BC26: 1 | BD26: 1 | BE26: 1 | BF26: 1 | BG26: 1 | BH26: 1 | BI26: =IF(AND(BI$2>=$D26,BI$1<=$E26),One,Zero) -> 1 | BJ26: 1 | BK26: 1 | BL26: 1 | BM26: 1 | BN26: 1 | BO26: 1 | BP26: 1 | BQ26: 1 | BR26: 1 | BS26: =IF(AND(BS$2>=$D26,BS$1<=$E26),One,Zero) -> 1 | BT26: 1 | BU26: 0 | BV26: 0 | BW26: 0 | BX26: 0 | BY26: 0 | BZ26: 0 | CA26: 0 | CB26: 0 | CC26: =IF(AND(CC$2>=$D26,CC$1<=$E26),One,Zero) -> 0 | CD26: 0 | CE26: 0 | CF26: 0 | CG26: 0 | CH26: 0 | CI26: 0 | CJ26: 0 | CK26: 0 | CL26: 0 | CM26: =IF(AND(CM$2>=$D26,CM$1<=$E26),One,Zero) -> 0 | CN26: 0 | CO26: 0 | CP26: 0 | CQ26: 0 | CR26: 0 | CS26: 0 | CT26: 0 | CU26: 0 | CV26: 0 | CW26: =IF(AND(CW$2>=$D26,CW$1<=$E26),One,Zero) -> 0 | CX26: 0 | CY26: 0 | CZ26: 0 | DA26: 0 | DB26: 0 | DC26: 0 | DD26: 0 | DE26: 0 | DF26: 0
B27: Scheme Term flag | C27: # | D27: =D23 -> 2026-05-01 | E27: =D24 -> 2041-04-30 | I27: =SUM(K27:DF27) -> 61 | K27: 0 | L27: 1 | M27: 1 | N27: 1 | O27: 1 | P27: 1 | Q27: 1 | R27: 1 | S27: 1 | T27: 1 | U27: 1 | V27: 1 | W27: 1 | X27: 1 | Y27: 1 | Z27: 1 | AA27: 1 | AB27: 1 | AC27: 1 | AD27: 1 | AE27: 1 | AF27: 1 | AG27: 1 | AH27: 1 | AI27: 1 | AJ27: 1 | AK27: 1 | AL27: 1 | AM27: 1 | AN27: 1 | AO27: 1 | AP27: 1 | AQ27: 1 | AR27: 1 | AS27: 1 | AT27: 1 | AU27: 1 | AV27: 1 | AW27: 1 | AX27: 1 | AY27: 1 | AZ27: 1 | BA27: 1 | BB27: 1 | BC27: 1 | BD27: 1 | BE27: 1 | BF27: 1 | BG27: 1 | BH27: 1 | BI27: 1 | BJ27: 1 | BK27: 1 | BL27: 1 | BM27: 1 | BN27: 1 | BO27: 1 | BP27: 1 | BQ27: 1 | BR27: 1 | BS27: 1 | BT27: 1 | BU27: 0 | BV27: 0 | BW27: 0 | BX27: 0 | BY27: 0 | BZ27: 0 | CA27: 0 | CB27: 0 | CC27: 0 | CD27: 0 | CE27: 0 | CF27: 0 | CG27: 0 | CH27: 0 | CI27: 0 | CJ27: 0 | CK27: 0 | CL27: 0 | CM27: 0 | CN27: 0 | CO27: 0 | CP27: 0 | CQ27: 0 | CR27: 0 | CS27: 0 | CT27: 0 | CU27: 0 | CV27: 0 | CW27: 0 | CX27: 0 | CY27: 0 | CZ27: 0 | DA27: 0 | DB27: 0 | DC27: 0 | DD27: 0 | DE27: 0 | DF27: 0
B29: Payment Term cumulative flag | C29: # | G29: =N(ABS(I26-I29)>=Tolerance1) -> 0 | I29: =MAX(K29:DF29) -> 57 | K29: =N(K26>0)*SUM(K$26:$K26) -> 0 | L29: =N(L26>0)*SUM($K$26:L26) -> 0 | M29: =N(M26>0)*SUM($K$26:M26) -> 0 | N29: =N(N26>0)*SUM($K$26:N26) -> 0 | O29: =N(O26>0)*SUM($K$26:O26) -> 0 | P29: =N(P26>0)*SUM($K$26:P26) -> 1 | Q29: =N(Q26>0)*SUM($K$26:Q26) -> 2 | R29: =N(R26>0)*SUM($K$26:R26) -> 3 | S29: =N(S26>0)*SUM($K$26:S26) -> 4 | T29: =N(T26>0)*SUM($K$26:T26) -> 5 | U29: =N(U26>0)*SUM($K$26:U26) -> 6 | V29: =N(V26>0)*SUM($K$26:V26) -> 7 | W29: =N(W26>0)*SUM($K$26:W26) -> 8 | X29: =N(X26>0)*SUM($K$26:X26) -> 9 | Y29: =N(Y26>0)*SUM($K$26:Y26) -> 10 | Z29: =N(Z26>0)*SUM($K$26:Z26) -> 11 | AA29: =N(AA26>0)*SUM($K$26:AA26) -> 12 | AB29: =N(AB26>0)*SUM($K$26:AB26) -> 13 | AC29: =N(AC26>0)*SUM($K$26:AC26) -> 14 | AD29: =N(AD26>0)*SUM($K$26:AD26) -> 15 | AE29: =N(AE26>0)*SUM($K$26:AE26) -> 16 | AF29: =N(AF26>0)*SUM($K$26:AF26) -> 17 | AG29: =N(AG26>0)*SUM($K$26:AG26) -> 18 | AH29: =N(AH26>0)*SUM($K$26:AH26) -> 19 | AI29: =N(AI26>0)*SUM($K$26:AI26) -> 20 | AJ29: =N(AJ26>0)*SUM($K$26:AJ26) -> 21 | AK29: =N(AK26>0)*SUM($K$26:AK26) -> 22 | AL29: =N(AL26>0)*SUM($K$26:AL26) -> 23 | AM29: =N(AM26>0)*SUM($K$26:AM26) -> 24 | AN29: =N(AN26>0)*SUM($K$26:AN26) -> 25 | AO29: =N(AO26>0)*SUM($K$26:AO26) -> 26 | AP29: =N(AP26>0)*SUM($K$26:AP26) -> 27 | AQ29: =N(AQ26>0)*SUM($K$26:AQ26) -> 28 | AR29: =N(AR26>0)*SUM($K$26:AR26) -> 29 | AS29: =N(AS26>0)*SUM($K$26:AS26) -> 30 | AT29: =N(AT26>0)*SUM($K$26:AT26) -> 31 | AU29: =N(AU26>0)*SUM($K$26:AU26) -> 32 | AV29: =N(AV26>0)*SUM($K$26:AV26) -> 33 | AW29: =N(AW26>0)*SUM($K$26:AW26) -> 34 | AX29: =N(AX26>0)*SUM($K$26:AX26) -> 35 | AY29: =N(AY26>0)*SUM($K$26:AY26) -> 36 | AZ29: =N(AZ26>0)*SUM($K$26:AZ26) -> 37 | BA29: =N(BA26>0)*SUM($K$26:BA26) -> 38 | BB29: =N(BB26>0)*SUM($K$26:BB26) -> 39 | BC29: =N(BC26>0)*SUM($K$26:BC26) -> 40 | BD29: =N(BD26>0)*SUM($K$26:BD26) -> 41 | BE29: =N(BE26>0)*SUM($K$26:BE26) -> 42 | BF29: =N(BF26>0)*SUM($K$26:BF26) -> 43 | BG29: =N(BG26>0)*SUM($K$26:BG26) -> 44 | BH29: =N(BH26>0)*SUM($K$26:BH26) -> 45 | BI29: =N(BI26>0)*SUM($K$26:BI26) -> 46 | BJ29: =N(BJ26>0)*SUM($K$26:BJ26) -> 47 | BK29: =N(BK26>0)*SUM($K$26:BK26) -> 48 | BL29: =N(BL26>0)*SUM($K$26:BL26) -> 49 | BM29: =N(BM26>0)*SUM($K$26:BM26) -> 50 | BN29: =N(BN26>0)*SUM($K$26:BN26) -> 51 | BO29: =N(BO26>0)*SUM($K$26:BO26) -> 52 | BP29: =N(BP26>0)*SUM($K$26:BP26) -> 53 | BQ29: =N(BQ26>0)*SUM($K$26:BQ26) -> 54 | BR29: =N(BR26>0)*SUM($K$26:BR26) -> 55 | BS29: =N(BS26>0)*SUM($K$26:BS26) -> 56 | BT29: =N(BT26>0)*SUM($K$26:BT26) -> 57 | BU29: =N(BU26>0)*SUM($K$26:BU26) -> 0 | BV29: =N(BV26>0)*SUM($K$26:BV26) -> 0 | BW29: =N(BW26>0)*SUM($K$26:BW26) -> 0 | BX29: =N(BX26>0)*SUM($K$26:BX26) -> 0 | BY29: =N(BY26>0)*SUM($K$26:BY26) -> 0 | BZ29: =N(BZ26>0)*SUM($K$26:BZ26) -> 0 | CA29: =N(CA26>0)*SUM($K$26:CA26) -> 0 | CB29: =N(CB26>0)*SUM($K$26:CB26) -> 0 | CC29: =N(CC26>0)*SUM($K$26:CC26) -> 0 | CD29: =N(CD26>0)*SUM($K$26:CD26) -> 0 | CE29: =N(CE26>0)*SUM($K$26:CE26) -> 0 | CF29: =N(CF26>0)*SUM($K$26:CF26) -> 0 | CG29: =N(CG26>0)*SUM($K$26:CG26) -> 0 | CH29: =N(CH26>0)*SUM($K$26:CH26) -> 0 | CI29: =N(CI26>0)*SUM($K$26:CI26) -> 0 | CJ29: =N(CJ26>0)*SUM($K$26:CJ26) -> 0 | CK29: =N(CK26>0)*SUM($K$26:CK26) -> 0 | CL29: =N(CL26>0)*SUM($K$26:CL26) -> 0 | CM29: =N(CM26>0)*SUM($K$26:CM26) -> 0 | CN29: =N(CN26>0)*SUM($K$26:CN26) -> 0 | CO29: =N(CO26>0)*SUM($K$26:CO26) -> 0 | CP29: =N(CP26>0)*SUM($K$26:CP26) -> 0 | CQ29: =N(CQ26>0)*SUM($K$26:CQ26) -> 0 | CR29: =N(CR26>0)*SUM($K$26:CR26) -> 0 | CS29: =N(CS26>0)*SUM($K$26:CS26) -> 0 | CT29: =N(CT26>0)*SUM($K$26:CT26) -> 0 | CU29: =N(CU26>0)*SUM($K$26:CU26) -> 0 | CV29: =N(CV26>0)*SUM($K$26:CV26) -> 0 | CW29: =N(CW26>0)*SUM($K$26:CW26) -> 0 | CX29: =N(CX26>0)*SUM($K$26:CX26) -> 0 | CY29: =N(CY26>0)*SUM($K$26:CY26) -> 0 | CZ29: =N(CZ26>0)*SUM($K$26:CZ26) -> 0 | DA29: =N(DA26>0)*SUM($K$26:DA26) -> 0 | DB29: =N(DB26>0)*SUM($K$26:DB26) -> 0 | DC29: =N(DC26>0)*SUM($K$26:DC26) -> 0 | DD29: =N(DD26>0)*SUM($K$26:DD26) -> 0 | DE29: =N(DE26>0)*SUM($K$26:DE26) -> 0 | DF29: =N(DF26>0)*SUM($K$26:DF26) -> 0
B30: Scheme Term cumulative flag | C30: # | G30: =N(ABS(I27-I30)>=Tolerance1) -> 0 | I30: =MAX(K30:DF30) -> 61 | K30: =N(K27>0)*SUM(K$27:$K27) -> 0 | L30: =N(L27>0)*SUM($K$27:L27) -> 1 | M30: =N(M27>0)*SUM($K$27:M27) -> 2 | N30: =N(N27>0)*SUM($K$27:N27) -> 3 | O30: =N(O27>0)*SUM($K$27:O27) -> 4 | P30: =N(P27>0)*SUM($K$27:P27) -> 5 | Q30: =N(Q27>0)*SUM($K$27:Q27) -> 6 | R30: =N(R27>0)*SUM($K$27:R27) -> 7 | S30: =N(S27>0)*SUM($K$27:S27) -> 8 | T30: =N(T27>0)*SUM($K$27:T27) -> 9 | U30: =N(U27>0)*SUM($K$27:U27) -> 10 | V30: =N(V27>0)*SUM($K$27:V27) -> 11 | W30: =N(W27>0)*SUM($K$27:W27) -> 12 | X30: =N(X27>0)*SUM($K$27:X27) -> 13 | Y30: =N(Y27>0)*SUM($K$27:Y27) -> 14 | Z30: =N(Z27>0)*SUM($K$27:Z27) -> 15 | AA30: =N(AA27>0)*SUM($K$27:AA27) -> 16 | AB30: =N(AB27>0)*SUM($K$27:AB27) -> 17 | AC30: =N(AC27>0)*SUM($K$27:AC27) -> 18 | AD30: =N(AD27>0)*SUM($K$27:AD27) -> 19 | AE30: =N(AE27>0)*SUM($K$27:AE27) -> 20 | AF30: =N(AF27>0)*SUM($K$27:AF27) -> 21 | AG30: =N(AG27>0)*SUM($K$27:AG27) -> 22 | AH30: =N(AH27>0)*SUM($K$27:AH27) -> 23 | AI30: =N(AI27>0)*SUM($K$27:AI27) -> 24 | AJ30: =N(AJ27>0)*SUM($K$27:AJ27) -> 25 | AK30: =N(AK27>0)*SUM($K$27:AK27) -> 26 | AL30: =N(AL27>0)*SUM($K$27:AL27) -> 27 | AM30: =N(AM27>0)*SUM($K$27:AM27) -> 28 | AN30: =N(AN27>0)*SUM($K$27:AN27) -> 29 | AO30: =N(AO27>0)*SUM($K$27:AO27) -> 30 | AP30: =N(AP27>0)*SUM($K$27:AP27) -> 31 | AQ30: =N(AQ27>0)*SUM($K$27:AQ27) -> 32 | AR30: =N(AR27>0)*SUM($K$27:AR27) -> 33 | AS30: =N(AS27>0)*SUM($K$27:AS27) -> 34 | AT30: =N(AT27>0)*SUM($K$27:AT27) -> 35 | AU30: =N(AU27>0)*SUM($K$27:AU27) -> 36 | AV30: =N(AV27>0)*SUM($K$27:AV27) -> 37 | AW30: =N(AW27>0)*SUM($K$27:AW27) -> 38 | AX30: =N(AX27>0)*SUM($K$27:AX27) -> 39 | AY30: =N(AY27>0)*SUM($K$27:AY27) -> 40 | AZ30: =N(AZ27>0)*SUM($K$27:AZ27) -> 41 | BA30: =N(BA27>0)*SUM($K$27:BA27) -> 42 | BB30: =N(BB27>0)*SUM($K$27:BB27) -> 43 | BC30: =N(BC27>0)*SUM($K$27:BC27) -> 44 | BD30: =N(BD27>0)*SUM($K$27:BD27) -> 45 | BE30: =N(BE27>0)*SUM($K$27:BE27) -> 46 | BF30: =N(BF27>0)*SUM($K$27:BF27) -> 47 | BG30: =N(BG27>0)*SUM($K$27:BG27) -> 48 | BH30: =N(BH27>0)*SUM($K$27:BH27) -> 49 | BI30: =N(BI27>0)*SUM($K$27:BI27) -> 50 | BJ30: =N(BJ27>0)*SUM($K$27:BJ27) -> 51 | BK30: =N(BK27>0)*SUM($K$27:BK27) -> 52 | BL30: =N(BL27>0)*SUM($K$27:BL27) -> 53 | BM30: =N(BM27>0)*SUM($K$27:BM27) -> 54 | BN30: =N(BN27>0)*SUM($K$27:BN27) -> 55 | BO30: =N(BO27>0)*SUM($K$27:BO27) -> 56 | BP30: =N(BP27>0)*SUM($K$27:BP27) -> 57 | BQ30: =N(BQ27>0)*SUM($K$27:BQ27) -> 58 | BR30: =N(BR27>0)*SUM($K$27:BR27) -> 59 | BS30: =N(BS27>0)*SUM($K$27:BS27) -> 60 | BT30: =N(BT27>0)*SUM($K$27:BT27) -> 61 | BU30: =N(BU27>0)*SUM($K$27:BU27) -> 0 | BV30: =N(BV27>0)*SUM($K$27:BV27) -> 0 | BW30: =N(BW27>0)*SUM($K$27:BW27) -> 0 | BX30: =N(BX27>0)*SUM($K$27:BX27) -> 0 | BY30: =N(BY27>0)*SUM($K$27:BY27) -> 0 | BZ30: =N(BZ27>0)*SUM($K$27:BZ27) -> 0 | CA30: =N(CA27>0)*SUM($K$27:CA27) -> 0 | CB30: =N(CB27>0)*SUM($K$27:CB27) -> 0 | CC30: =N(CC27>0)*SUM($K$27:CC27) -> 0 | CD30: =N(CD27>0)*SUM($K$27:CD27) -> 0 | CE30: =N(CE27>0)*SUM($K$27:CE27) -> 0 | CF30: =N(CF27>0)*SUM($K$27:CF27) -> 0 | CG30: =N(CG27>0)*SUM($K$27:CG27) -> 0 | CH30: =N(CH27>0)*SUM($K$27:CH27) -> 0 | CI30: =N(CI27>0)*SUM($K$27:CI27) -> 0 | CJ30: =N(CJ27>0)*SUM($K$27:CJ27) -> 0 | CK30: =N(CK27>0)*SUM($K$27:CK27) -> 0 | CL30: =N(CL27>0)*SUM($K$27:CL27) -> 0 | CM30: =N(CM27>0)*SUM($K$27:CM27) -> 0 | CN30: =N(CN27>0)*SUM($K$27:CN27) -> 0 | CO30: =N(CO27>0)*SUM($K$27:CO27) -> 0 | CP30: =N(CP27>0)*SUM($K$27:CP27) -> 0 | CQ30: =N(CQ27>0)*SUM($K$27:CQ27) -> 0 | CR30: =N(CR27>0)*SUM($K$27:CR27) -> 0 | CS30: =N(CS27>0)*SUM($K$27:CS27) -> 0 | CT30: =N(CT27>0)*SUM($K$27:CT27) -> 0 | CU30: =N(CU27>0)*SUM($K$27:CU27) -> 0 | CV30: =N(CV27>0)*SUM($K$27:CV27) -> 0 | CW30: =N(CW27>0)*SUM($K$27:CW27) -> 0 | CX30: =N(CX27>0)*SUM($K$27:CX27) -> 0 | CY30: =N(CY27>0)*SUM($K$27:CY27) -> 0 | CZ30: =N(CZ27>0)*SUM($K$27:CZ27) -> 0 | DA30: =N(DA27>0)*SUM($K$27:DA27) -> 0 | DB30: =N(DB27>0)*SUM($K$27:DB27) -> 0 | DC30: =N(DC27>0)*SUM($K$27:DC27) -> 0 | DD30: =N(DD27>0)*SUM($K$27:DD27) -> 0 | DE30: =N(DE27>0)*SUM($K$27:DE27) -> 0 | DF30: =N(DF27>0)*SUM($K$27:DF27) -> 0
B32: Days in Period | C32: # | K32: =_xlfn.DAYS(K$2,K$1-1)*K$27 -> 0 | L32: 91 | M32: 92 | N32: 92 | O32: 90 | P32: 91 | Q32: 92 | R32: 92 | S32: 91 | T32: 91 | U32: 92 | V32: 92 | W32: 90 | X32: 91 | Y32: 92 | Z32: 92 | AA32: 90 | AB32: 91 | AC32: 92 | AD32: 92 | AE32: 90 | AF32: 91 | AG32: 92 | AH32: 92 | AI32: 91 | AJ32: 91 | AK32: 92 | AL32: 92 | AM32: 90 | AN32: 91 | AO32: 92 | AP32: 92 | AQ32: =_xlfn.DAYS(AQ$2,AQ$1-1)*AQ$27 -> 90 | AR32: 91 | AS32: 92 | AT32: 92 | AU32: 90 | AV32: 91 | AW32: 92 | AX32: 92 | AY32: 91 | AZ32: 91 | BA32: 92 | BB32: 92 | BC32: 90 | BD32: 91 | BE32: 92 | BF32: 92 | BG32: 90 | BH32: 91 | BI32: 92 | BJ32: 92 | BK32: 90 | BL32: 91 | BM32: 92 | BN32: 92 | BO32: 91 | BP32: 91 | BQ32: 92 | BR32: 92 | BS32: 90 | BT32: 91 | BU32: 0 | BV32: 0 | BW32: =_xlfn.DAYS(BW$2,BW$1-1)*BW$27 -> 0 | BX32: 0 | BY32: 0 | BZ32: 0 | CA32: 0 | CB32: 0 | CC32: 0 | CD32: 0 | CE32: 0 | CF32: 0 | CG32: 0 | CH32: 0 | CI32: 0 | CJ32: 0 | CK32: 0 | CL32: 0 | CM32: 0 | CN32: 0 | CO32: 0 | CP32: 0 | CQ32: 0 | CR32: 0 | CS32: 0 | CT32: 0 | CU32: 0 | CV32: 0 | CW32: 0 | CX32: 0 | CY32: 0 | CZ32: 0 | DA32: 0 | DB32: 0 | DC32: 0 | DD32: 0 | DE32: 0 | DF32: 0
B33: Portion of Period | C33: % | K33: =IF(OR(K21,K22),K21*_xlfn.DAYS(K$2,$D$21-1)/K$32+K22*_xlfn.DAYS($D$22,K$1-1)/K$32,K$26) -> 0 | L33: =IF(OR(L21,L22),L21*_xlfn.DAYS(L$2,$D$21-1)/L$32+L22*_xlfn.DAYS($D$22,L$1-1)/L$32,L$26) -> 0 | M33: =IF(OR(M21,M22),M21*_xlfn.DAYS(M$2,$D$21-1)/M$32+M22*_xlfn.DAYS($D$22,M$1-1)/M$32,M$26) -> 0 | N33: 0 | O33: 0 | P33: 0.6703296703 | Q33: 1 | R33: 1 | S33: 1 | T33: 1 | U33: 1 | V33: 1 | W33: 1 | X33: 1 | Y33: 1 | Z33: 1 | AA33: 1 | AB33: 1 | AC33: 1 | AD33: 1 | AE33: 1 | AF33: 1 | AG33: 1 | AH33: 1 | AI33: 1 | AJ33: 1 | AK33: 1 | AL33: 1 | AM33: 1 | AN33: 1 | AO33: 1 | AP33: 1 | AQ33: 1 | AR33: 1 | AS33: 1 | AT33: 1 | AU33: 1 | AV33: 1 | AW33: 1 | AX33: 1 | AY33: 1 | AZ33: 1 | BA33: 1 | BB33: 1 | BC33: 1 | BD33: 1 | BE33: 1 | BF33: 1 | BG33: 1 | BH33: 1 | BI33: 1 | BJ33: 1 | BK33: 1 | BL33: 1 | BM33: 1 | BN33: 1 | BO33: 1 | BP33: 1 | BQ33: 1 | BR33: 1 | BS33: 1 | BT33: 0.3296703297 | BU33: 0 | BV33: 0 | BW33: 0 | BX33: 0 | BY33: =IF(OR(BY21,BY22),BY21*_xlfn.DAYS(BY$2,$D$21-1)/BY$32+BY22*_xlfn.DAYS($D$22,BY$1-1)/BY$32,BY$26) -> 0 | BZ33: 0 | CA33: 0 | CB33: 0 | CC33: 0 | CD33: 0 | CE33: 0 | CF33: 0 | CG33: 0 | CH33: 0 | CI33: 0 | CJ33: 0 | CK33: 0 | CL33: 0 | CM33: 0 | CN33: 0 | CO33: 0 | CP33: 0 | CQ33: 0 | CR33: 0 | CS33: 0 | CT33: 0 | CU33: 0 | CV33: 0 | CW33: 0 | CX33: 0 | CY33: 0 | CZ33: 0 | DA33: 0 | DB33: 0 | DC33: 0 | DD33: 0 | DE33: 0 | DF33: 0
A35: =MAX(A$2:OFFSET($A35,-One,0))+Sbsxn -> 501.03 | B35: Indexation
B37: Escalation Base Date | D37: =Assumptions!D16 -> 2024-07-01
B39: Escalation Rates
B40: Fixed Indexation per annum | C40: % p.a. | D40: =Assumptions!D43 -> 0.025
B41: Fixed Indexation per quarter | C41: % p.q. | D41: =(1+D40)^(1/QiY)-1 -> 0.006192246326
B42: Fixed Indexation factor | C42: # | K42: =IF(K$1<=$D$37,1,(1+$D40)^YEARFRAC(K$1,$D$37)) -> 1.037733407 | L42: 1.044159308 | M42: 1.050625 | N42: 1.057130729 | O42: 1.063676743 | P42: 1.070263291 | Q42: 1.076890625 | R42: 1.083558997 | S42: 1.090268661 | T42: 1.097019873 | U42: 1.103812891 | V42: 1.110647972 | W42: 1.117525378 | X42: 1.12444537 | Y42: 1.131408213 | Z42: 1.138414171 | AA42: 1.145463512 | AB42: 1.152556504 | AC42: 1.159693418 | AD42: 1.166874526 | AE42: 1.1741001 | AF42: 1.181370417 | AG42: 1.188685754 | AH42: 1.196046389 | AI42: 1.203452603 | AJ42: 1.210904677 | AK42: 1.218402898 | AL42: 1.225947548 | AM42: 1.233538918 | AN42: 1.241177294 | AO42: 1.24886297 | AP42: 1.256596237 | AQ42: =IF(AQ$1<=$D$37,1,(1+$D40)^YEARFRAC(AQ$1,$D$37)) -> 1.264377391 | AR42: 1.272206727 | AS42: 1.280084544 | AT42: 1.288011143 | AU42: 1.295986825 | AV42: 1.304011895 | AW42: 1.312086658 | AX42: 1.320211422 | AY42: 1.328386496 | AZ42: 1.336612192 | BA42: 1.344888824 | BB42: 1.353216707 | BC42: 1.361596158 | BD42: 1.370027497 | BE42: 1.378511045 | BF42: 1.387047125 | BG42: 1.395636062 | BH42: 1.404278185 | BI42: 1.412973821 | BJ42: 1.421723303 | BK42: 1.430526964 | BL42: 1.439385139 | BM42: 1.448298166 | BN42: 1.457266385 | BO42: 1.466290138 | BP42: 1.475369768 | BQ42: 1.484505621 | BR42: 1.493698045 | BS42: 1.502947391 | BT42: 1.512254012 | BU42: 1.521618261 | BV42: 1.531040496 | BW42: =IF(BW$1<=$D$37,1,(1+$D40)^YEARFRAC(BW$1,$D$37)) -> 1.540521076 | BX42: 1.550060362 | BY42: 1.559658718 | BZ42: 1.569316509 | CA42: 1.579034103 | CB42: 1.588811871 | CC42: 1.598650186 | CD42: 1.608549421 | CE42: 1.618509956 | CF42: 1.628532168 | CG42: 1.63861644 | CH42: 1.648763157 | CI42: 1.658972705 | CJ42: 1.669245472 | CK42: 1.679581851 | CL42: 1.689982236 | CM42: 1.700447022 | CN42: 1.710976609 | CO42: 1.721571398 | CP42: 1.732231792 | CQ42: 1.742958198 | CR42: 1.753751024 | CS42: 1.764610683 | CT42: 1.775537587 | CU42: 1.786532153 | CV42: 1.7975948 | CW42: 1.80872595 | CX42: 1.819926026 | CY42: 1.831195456 | CZ42: 1.84253467 | DA42: 1.853944098 | DB42: 1.865424177 | DC42: 1.876975343 | DD42: 1.888598037 | DE42: 1.900292701 | DF42: 1.912059781
B44: Escalation Factors
B45: Escalation rate - Fixed | C45: % p.q. | K45: =(1+$D40)^(1/QiY)-1 -> 0.006192246326 | L45: =(1+$D40)^(1/QiY)-1 -> 0.006192246326 | M45: =(1+$D40)^(1/QiY)-1 -> 0.006192246326 | N45: =(1+$D40)^(1/QiY)-1 -> 0.006192246326 | O45: =(1+$D40)^(1/QiY)-1 -> 0.006192246326 | P45: =(1+$D40)^(1/QiY)-1 -> 0.006192246326 | Q45: 0.006192246326 | R45: 0.006192246326 | S45: 0.006192246326 | T45: 0.006192246326 | U45: 0.006192246326 | V45: 0.006192246326 | W45: 0.006192246326 | X45: 0.006192246326 | Y45: 0.006192246326 | Z45: 0.006192246326 | AA45: 0.006192246326 | AB45: 0.006192246326 | AC45: 0.006192246326 | AD45: 0.006192246326 | AE45: 0.006192246326 | AF45: 0.006192246326 | AG45: 0.006192246326 | AH45: 0.006192246326 | AI45: 0.006192246326 | AJ45: 0.006192246326 | AK45: 0.006192246326 | AL45: 0.006192246326 | AM45: 0.006192246326 | AN45: 0.006192246326 | AO45: 0.006192246326 | AP45: 0.006192246326 | AQ45: 0.006192246326 | AR45: 0.006192246326 | AS45: 0.006192246326 | AT45: 0.006192246326 | AU45: =(1+$D40)^(1/QiY)-1 -> 0.006192246326 | AV45: 0.006192246326 | AW45: 0.006192246326 | AX45: 0.006192246326 | AY45: 0.006192246326 | AZ45: 0.006192246326 | BA45: 0.006192246326 | BB45: 0.006192246326 | BC45: 0.006192246326 | BD45: 0.006192246326 | BE45: 0.006192246326 | BF45: 0.006192246326 | BG45: 0.006192246326 | BH45: 0.006192246326 | BI45: 0.006192246326 | BJ45: 0.006192246326 | BK45: 0.006192246326 | BL45: 0.006192246326 | BM45: 0.006192246326 | BN45: 0.006192246326 | BO45: 0.006192246326 | BP45: 0.006192246326 | BQ45: 0.006192246326 | BR45: 0.006192246326 | BS45: 0.006192246326 | BT45: 0.006192246326 | BU45: 0.006192246326 | BV45: 0.006192246326 | BW45: 0.006192246326 | BX45: 0.006192246326 | BY45: 0.006192246326 | BZ45: 0.006192246326 | CA45: =(1+$D40)^(1/QiY)-1 -> 0.006192246326 | CB45: 0.006192246326 | CC45: 0.006192246326 | CD45: 0.006192246326 | CE45: 0.006192246326 | CF45: 0.006192246326 | CG45: 0.006192246326 | CH45: 0.006192246326 | CI45: 0.006192246326 | CJ45: 0.006192246326 | CK45: 0.006192246326 | CL45: 0.006192246326 | CM45: 0.006192246326 | CN45: 0.006192246326 | CO45: 0.006192246326 | CP45: 0.006192246326 | CQ45: 0.006192246326 | CR45: 0.006192246326 | CS45: 0.006192246326 | CT45: 0.006192246326 | CU45: 0.006192246326 | CV45: 0.006192246326 | CW45: 0.006192246326 | CX45: 0.006192246326 | CY45: 0.006192246326 | CZ45: 0.006192246326 | DA45: 0.006192246326 | DB45: 0.006192246326 | DC45: 0.006192246326 | DD45: 0.006192246326 | DE45: 0.006192246326 | DF45: 0.006192246326
B46: Rebased escalation factor - Fixed | C46: # | D46: =SUMPRODUCT($K$21:$CE$21,$K42:$CE42) -> 1.070263291 | K46: =K42*K$27 -> 0 | L46: =L$42*L$27 -> 1.044159308 | M46: =M$42*M$27 -> 1.050625 | N46: =N$42*N$27 -> 1.057130729 | O46: =O$42*O$27 -> 1.063676743 | P46: =P$42*P$27 -> 1.070263291 | Q46: 1.076890625 | R46: 1.083558997 | S46: 1.090268661 | T46: 1.097019873 | U46: 1.103812891 | V46: 1.110647972 | W46: 1.117525378 | X46: 1.12444537 | Y46: 1.131408213 | Z46: 1.138414171 | AA46: 1.145463512 | AB46: 1.152556504 | AC46: 1.159693418 | AD46: 1.166874526 | AE46: 1.1741001 | AF46: 1.181370417 | AG46: 1.188685754 | AH46: 1.196046389 | AI46: 1.203452603 | AJ46: 1.210904677 | AK46: 1.218402898 | AL46: 1.225947548 | AM46: 1.233538918 | AN46: 1.241177294 | AO46: 1.24886297 | AP46: 1.256596237 | AQ46: 1.264377391 | AR46: 1.272206727 | AS46: 1.280084544 | AT46: 1.288011143 | AU46: =AU$42*AU$27 -> 1.295986825 | AV46: 1.304011895 | AW46: 1.312086658 | AX46: 1.320211422 | AY46: 1.328386496 | AZ46: 1.336612192 | BA46: 1.344888824 | BB46: 1.353216707 | BC46: 1.361596158 | BD46: 1.370027497 | BE46: 1.378511045 | BF46: 1.387047125 | BG46: 1.395636062 | BH46: 1.404278185 | BI46: 1.412973821 | BJ46: 1.421723303 | BK46: 1.430526964 | BL46: 1.439385139 | BM46: 1.448298166 | BN46: 1.457266385 | BO46: 1.466290138 | BP46: 1.475369768 | BQ46: 1.484505621 | BR46: 1.493698045 | BS46: 1.502947391 | BT46: 1.512254012 | BU46: 0 | BV46: 0 | BW46: 0 | BX46: 0 | BY46: 0 | BZ46: 0 | CA46: =CA$42*CA$27 -> 0 | CB46: 0 | CC46: 0 | CD46: 0 | CE46: 0 | CF46: 0 | CG46: 0 | CH46: 0 | CI46: 0 | CJ46: 0 | CK46: 0 | CL46: 0 | CM46: 0 | CN46: 0 | CO46: 0 | CP46: 0 | CQ46: 0 | CR46: 0 | CS46: 0 | CT46: 0 | CU46: 0 | CV46: 0 | CW46: 0 | CX46: 0 | CY46: 0 | CZ46: 0 | DA46: 0 | DB46: 0 | DC46: 0 | DD46: 0 | DE46: 0 | DF46: 0
A48: =MAX(A$2:OFFSET($A48,-One,0))+Sbsxn -> 501.04 | B48: Annual Access Fee Calculation
B50: ="Summary Access Fee (in real "&Units&")" -> Summary Access Fee (in real AUD$m)
B51: Annual Access Fee | D51: Subtotal
B52: C&E Fee | C52: AUD$m p.a. | D52: =Assumptions!D51*Assumptions!$D$27/Thousand -> 1.15
B53: SW REZ Administration Fee | C53: AUD$m p.a. | D53: =Assumptions!D52*Assumptions!$D$27/Thousand -> 0.3455
B54: Contribution to the NSW Electricity Infrastructure Roadmap | C54: AUD$m p.a. | D54: =Assumptions!D53*Assumptions!$D$27/Thousand -> 0.5045
B55: Total | C55: AUD$m p.a. | D55: =SUM(D52:D54) -> 2
B57: Annual Access Fee per MW | D57: Subtotal
B58: C&E Fee | C58: AUD$'000/MW | D58: =Assumptions!D51 -> 2.3
B59: SW REZ Administration Fee | C59: AUD$'000/MW | D59: =Assumptions!D52 -> 0.691
B60: Contribution to the NSW Electricity Infrastructure Roadmap | C60: AUD$'000/MW | D60: =Assumptions!D53 -> 1.009
B61: Total Indicative Access Fee | C61: AUD$'000/MW | D61: =SUM(D58:D60) -> 4
A63: =MAX(A$2:OFFSET($A63,-One,0))+Sbsxn -> 501.05 | B63: Quarterly Access Fee Calculation
B65: ="Summary Access Fee (in real "&Units&")" -> Summary Access Fee (in real AUD$m)
B66: Quarterly Access Fee | D66: Subtotal
B67: C&E Fee | C67: AUD$m p.q. | D67: =(Assumptions!D51/QiY)*Assumptions!$D$27/Thousand -> 0.2875
B68: SW REZ Administration Fee | C68: AUD$m p.q. | D68: =(Assumptions!D52/QiY)*Assumptions!$D$27/Thousand -> 0.086375
B69: Contribution to the NSW Electricity Infrastructure Roadmap | C69: AUD$m p.q. | D69: =(Assumptions!D53/QiY)*Assumptions!$D$27/Thousand -> 0.126125
B70: Total | C70: AUD$m p.q. | D70: =SUM(D67:D69) -> 0.5
B72: ="Summary Access Fee (in nominal "&Units&")" -> Summary Access Fee (in nominal AUD$m)
B73: Quarterly Access Fee
B74: C&E Fee | C74: =Units -> AUD$m | I74: =SUM(K74:DF74) -> 20.5630931 | K74: =($D67*K$46)*K$26*K$33 -> 0 | L74: =($D67*L$46)*L$26*L$33 -> 0 | M74: =($D67*M$46)*M$26*M$33 -> 0 | N74: =($D67*N$46)*N$26*N$33 -> 0 | O74: =($D67*O$46)*O$26*O$33 -> 0 | P74: =($D67*P$46)*P$26*P$33 -> 0.2062609062 | Q74: 0.3096060547 | R74: 0.3115232116 | S74: 0.3134522401 | T74: 0.3153932136 | U74: 0.3173462061 | V74: 0.3193112919 | W74: 0.3212885461 | X74: 0.3232780439 | Y74: 0.3252798612 | Z74: 0.3272940742 | AA74: 0.3293207598 | AB74: 0.331359995 | AC74: 0.3334118577 | AD74: 0.3354764261 | AE74: 0.3375537788 | AF74: 0.3396439949 | AG74: 0.3417471542 | AH74: 0.3438633367 | AI74: 0.3459926232 | AJ74: 0.3481350948 | AK74: 0.350290833 | AL74: 0.3524599202 | AM74: 0.3546424388 | AN74: 0.3568384721 | AO74: 0.3590481039 | AP74: 0.3612714182 | AQ74: 0.3635084998 | AR74: 0.3657594339 | AS74: 0.3680243065 | AT74: 0.3703032036 | AU74: 0.3725962123 | AV74: 0.3749034198 | AW74: 0.3772249141 | AX74: 0.3795607837 | AY74: 0.3819111176 | AZ74: 0.3842760053 | BA74: 0.386655537 | BB74: 0.3890498033 | BC74: 0.3914588955 | BD74: 0.3938829054 | BE74: 0.3963219254 | BF74: 0.3987760484 | BG74: 0.4012453679 | BH74: 0.4037299781 | BI74: 0.4062299735 | BJ74: 0.4087454496 | BK74: 0.4112765021 | BL74: 0.4138232275 | BM74: 0.4163857229 | BN74: 0.4189640858 | BO74: 0.4215584147 | BP74: 0.4241688082 | BQ74: 0.4267953659 | BR74: 0.429438188 | BS74: 0.432097375 | BT74: 0.1433317676 | BU74: 0 | BV74: 0 | BW74: 0 | BX74: 0 | BY74: 0 | BZ74: 0 | CA74: 0 | CB74: =($D67*CB$46)*CB$26*CB$33 -> 0 | CC74: 0 | CD74: 0 | CE74: 0 | CF74: 0 | CG74: 0 | CH74: 0 | CI74: 0 | CJ74: 0 | CK74: 0 | CL74: 0 | CM74: 0 | CN74: 0 | CO74: 0 | CP74: 0 | CQ74: 0 | CR74: 0 | CS74: 0 | CT74: 0 | CU74: 0 | CV74: 0 | CW74: 0 | CX74: 0 | CY74: 0 | CZ74: 0 | DA74: 0 | DB74: 0 | DC74: 0 | DD74: 0 | DE74: 0 | DF74: 0
B75: SW REZ Administration Fee | C75: =Units -> AUD$m | I75: =SUM(K75:DF75) -> 6.177868404 | K75: =($D68*K$46)*K$26*K$33 -> 0 | L75: 0 | M75: 0 | N75: 0 | O75: =($D68*O$46)*O$26*O$33 -> 0 | P75: 0.06196795052 | Q75: 0.09301642773 | R75: 0.09359240837 | S75: 0.09417195561 | T75: 0.09475509156 | U75: 0.09534183843 | V75: 0.09593221858 | W75: 0.0965262545 | X75: 0.09712396885 | Y75: 0.09772538439 | Z75: 0.09833052404 | AA75: 0.09893941087 | AB75: 0.09955206807 | AC75: 0.100168519 | AD75: 0.1007887871 | AE75: 0.1014128961 | AF75: 0.1020408698 | AG75: 0.102672732 | AH75: 0.1033085068 | AI75: 0.1039482185 | AJ75: 0.1045918915 | AK75: 0.1052395503 | AL75: 0.1058912195 | AM75: 0.106546924 | AN75: 0.1072066888 | AO75: 0.107870539 | AP75: 0.1085385 | AQ75: 0.1092105971 | AR75: 0.109886856 | AS75: 0.1105673025 | AT75: 0.1112519625 | AU75: 0.111940862 | AV75: 0.1126340274 | AW75: 0.1133314851 | AX75: 0.1140332615 | AY75: 0.1147393836 | AZ75: 0.1154498781 | BA75: 0.1161647722 | BB75: 0.1168840931 | BC75: 0.1176078682 | BD75: 0.1183361251 | BE75: 0.1190688915 | BF75: 0.1198061954 | BG75: 0.1205480649 | BH75: 0.1212945282 | BI75: 0.1220456138 | BJ75: 0.1228013503 | BK75: 0.1235617665 | BL75: 0.1243268914 | BM75: 0.1250967541 | BN75: 0.125871384 | BO75: 0.1266508107 | BP75: 0.1274350637 | BQ75: 0.128224173 | BR75: 0.1290181686 | BS75: 0.1298170809 | BT75: 0.04306184844 | BU75: 0 | BV75: 0 | BW75: 0 | BX75: 0 | BY75: 0 | BZ75: 0 | CA75: 0 | CB75: 0 | CC75: 0 | CD75: 0 | CE75: 0 | CF75: 0 | CG75: 0 | CH75: 0 | CI75: 0 | CJ75: 0 | CK75: 0 | CL75: 0 | CM75: 0 | CN75: 0 | CO75: 0 | CP75: 0 | CQ75: 0 | CR75: 0 | CS75: 0 | CT75: 0 | CU75: 0 | CV75: 0 | CW75: 0 | CX75: 0 | CY75: 0 | CZ75: 0 | DA75: 0 | DB75: 0 | DC75: 0 | DD75: 0 | DE75: 0 | DF75: 0
B76: Contribution to the NSW Electricity Infrastructure Roadmap | C76: =Units -> AUD$m | I76: =SUM(K76:DF76) -> 9.020939536 | K76: 0 | L76: 0 | M76: 0 | N76: 0 | O76: 0 | P76: =($D69*P$46)*P$26*P$33 -> 0.09048576278 | Q76: 0.1358228301 | R76: 0.1366638785 | S76: 0.1375101349 | T76: 0.1383616315 | U76: 0.1392184008 | V76: 0.1400804755 | W76: 0.1409478883 | X76: 0.1418206723 | Y76: 0.1426988609 | Z76: 0.1435824873 | AA76: 0.1444715855 | AB76: 0.1453661891 | AC76: 0.1462663324 | AD76: 0.1471720495 | AE76: 0.1480833751 | AF76: 0.1490003438 | AG76: 0.1499229907 | AH76: 0.1508513508 | AI76: 0.1517854595 | AJ76: 0.1527253524 | AK76: 0.1536710654 | AL76: 0.1546226345 | AM76: 0.155580096 | AN76: 0.1565434863 | AO76: 0.1575128421 | AP76: 0.1584882004 | AQ76: 0.1594695984 | AR76: 0.1604570734 | AS76: 0.1614506631 | AT76: 0.1624504054 | AU76: 0.1634563383 | AV76: 0.1644685002 | AW76: 0.1654869297 | AX76: 0.1665116655 | AY76: 0.1675427468 | AZ76: 0.1685802128 | BA76: 0.169624103 | BB76: 0.1706744572 | BC76: 0.1717313155 | BD76: 0.1727947181 | BE76: 0.1738647055 | BF76: 0.1749413186 | BG76: 0.1760245984 | BH76: 0.177114586 | BI76: 0.1782113232 | BJ76: 0.1793148516 | BK76: 0.1804252133 | BL76: 0.1815424507 | BM76: 0.1826666062 | BN76: 0.1837977229 | BO76: 0.1849358436 | BP76: 0.1860810119 | BQ76: 0.1872332714 | BR76: 0.1883926659 | BS76: 0.1895592397 | BT76: 0.06287902327 | BU76: 0 | BV76: 0 | BW76: 0 | BX76: 0 | BY76: 0 | BZ76: 0 | CA76: 0 | CB76: 0 | CC76: 0 | CD76: 0 | CE76: 0 | CF76: 0 | CG76: 0 | CH76: 0 | CI76: 0 | CJ76: 0 | CK76: 0 | CL76: 0 | CM76: 0 | CN76: 0 | CO76: 0 | CP76: 0 | CQ76: 0 | CR76: 0 | CS76: 0 | CT76: 0 | CU76: 0 | CV76: 0 | CW76: 0 | CX76: 0 | CY76: 0 | CZ76: 0 | DA76: 0 | DB76: 0 | DC76: 0 | DD76: 0 | DE76: 0 | DF76: 0
B77: Total Indicative Access Fee | C77: =Units -> AUD$m | I77: =SUM(K77:DF77) -> 35.76190104 | K77: =SUM(K74:K76) -> 0 | L77: =SUM(L74:L76) -> 0 | M77: =SUM(M74:M76) -> 0 | N77: =SUM(N74:N76) -> 0 | O77: =SUM(O74:O76) -> 0 | P77: =SUM(P74:P76) -> 0.3587146195 | Q77: 0.5384453125 | R77: 0.5417794985 | S77: 0.5451343306 | T77: 0.5485099367 | U77: 0.5519064453 | V77: 0.555323986 | W77: 0.5587626889 | X77: 0.5622226851 | Y77: 0.5657041064 | Z77: 0.5692070856 | AA77: 0.5727317561 | AB77: 0.5762782522 | AC77: 0.5798467091 | AD77: 0.5834372628 | AE77: 0.58705005 | AF77: 0.5906852085 | AG77: 0.5943428768 | AH77: 0.5980231943 | AI77: 0.6017263013 | AJ77: 0.6054523387 | AK77: 0.6092014488 | AL77: 0.6129737742 | AM77: 0.6167694588 | AN77: 0.6205886472 | AO77: 0.624431485 | AP77: 0.6282981185 | AQ77: 0.6321886953 | AR77: 0.6361033634 | AS77: 0.6400422721 | AT77: 0.6440055715 | AU77: 0.6479934126 | AV77: 0.6520059475 | AW77: 0.6560433289 | AX77: 0.6601057108 | AY77: 0.664193248 | AZ77: 0.6683060962 | BA77: 0.6724444121 | BB77: 0.6766083536 | BC77: 0.6807980792 | BD77: 0.6850137486 | BE77: 0.6892555224 | BF77: 0.6935235624 | BG77: 0.6978180311 | BH77: 0.7021390923 | BI77: 0.7064869105 | BJ77: 0.7108616515 | BK77: 0.7152634819 | BL77: 0.7196925696 | BM77: 0.7241490832 | BN77: 0.7286331927 | BO77: 0.733145069 | BP77: 0.7376848838 | BQ77: 0.7422528103 | BR77: 0.7468490226 | BS77: 0.7514736957 | BT77: 0.2492726393 | BU77: 0 | BV77: 0 | BW77: 0 | BX77: 0 | BY77: 0 | BZ77: 0 | CA77: 0 | CB77: =SUM(CB74:CB76) -> 0 | CC77: 0 | CD77: 0 | CE77: 0 | CF77: 0 | CG77: 0 | CH77: 0 | CI77: 0 | CJ77: 0 | CK77: 0 | CL77: 0 | CM77: 0 | CN77: 0 | CO77: 0 | CP77: 0 | CQ77: 0 | CR77: 0 | CS77: 0 | CT77: 0 | CU77: 0 | CV77: 0 | CW77: 0 | CX77: 0 | CY77: 0 | CZ77: 0 | DA77: 0 | DB77: 0 | DC77: 0 | DD77: 0 | DE77: 0 | DF77: 0
B79: GST | C79: =Units -> AUD$m | I79: =SUM(K79:DF79) -> 3.576190104 | K79: =K77*Assumptions!$D$45 -> 0 | L79: =L77*Assumptions!$D$45 -> 0 | M79: =M77*Assumptions!$D$45 -> 0 | N79: =N77*Assumptions!$D$45 -> 0 | O79: =O77*Assumptions!$D$45 -> 0 | P79: =P77*Assumptions!$D$45 -> 0.03587146195 | Q79: =Q77*Assumptions!$D$45 -> 0.05384453125 | R79: =R77*Assumptions!$D$45 -> 0.05417794985 | S79: =S77*Assumptions!$D$45 -> 0.05451343306 | T79: =T77*Assumptions!$D$45 -> 0.05485099367 | U79: =U77*Assumptions!$D$45 -> 0.05519064453 | V79: =V77*Assumptions!$D$45 -> 0.0555323986 | W79: =W77*Assumptions!$D$45 -> 0.05587626889 | X79: =X77*Assumptions!$D$45 -> 0.05622226851 | Y79: =Y77*Assumptions!$D$45 -> 0.05657041064 | Z79: =Z77*Assumptions!$D$45 -> 0.05692070856 | AA79: =AA77*Assumptions!$D$45 -> 0.05727317561 | AB79: =AB77*Assumptions!$D$45 -> 0.05762782522 | AC79: =AC77*Assumptions!$D$45 -> 0.05798467091 | AD79: =AD77*Assumptions!$D$45 -> 0.05834372628 | AE79: =AE77*Assumptions!$D$45 -> 0.058705005 | AF79: =AF77*Assumptions!$D$45 -> 0.05906852085 | AG79: =AG77*Assumptions!$D$45 -> 0.05943428768 | AH79: =AH77*Assumptions!$D$45 -> 0.05980231943 | AI79: =AI77*Assumptions!$D$45 -> 0.06017263013 | AJ79: =AJ77*Assumptions!$D$45 -> 0.06054523387 | AK79: =AK77*Assumptions!$D$45 -> 0.06092014488 | AL79: =AL77*Assumptions!$D$45 -> 0.06129737742 | AM79: =AM77*Assumptions!$D$45 -> 0.06167694588 | AN79: =AN77*Assumptions!$D$45 -> 0.06205886472 | AO79: =AO77*Assumptions!$D$45 -> 0.0624431485 | AP79: =AP77*Assumptions!$D$45 -> 0.06282981185 | AQ79: =AQ77*Assumptions!$D$45 -> 0.06321886953 | AR79: =AR77*Assumptions!$D$45 -> 0.06361033634 | AS79: =AS77*Assumptions!$D$45 -> 0.06400422721 | AT79: =AT77*Assumptions!$D$45 -> 0.06440055715 | AU79: =AU77*Assumptions!$D$45 -> 0.06479934126 | AV79: =AV77*Assumptions!$D$45 -> 0.06520059475 | AW79: =AW77*Assumptions!$D$45 -> 0.06560433289 | AX79: =AX77*Assumptions!$D$45 -> 0.06601057108 | AY79: =AY77*Assumptions!$D$45 -> 0.0664193248 | AZ79: =AZ77*Assumptions!$D$45 -> 0.06683060962 | BA79: =BA77*Assumptions!$D$45 -> 0.06724444121 | BB79: =BB77*Assumptions!$D$45 -> 0.06766083536 | BC79: =BC77*Assumptions!$D$45 -> 0.06807980792 | BD79: =BD77*Assumptions!$D$45 -> 0.06850137486 | BE79: =BE77*Assumptions!$D$45 -> 0.06892555224 | BF79: =BF77*Assumptions!$D$45 -> 0.06935235624 | BG79: =BG77*Assumptions!$D$45 -> 0.06978180311 | BH79: =BH77*Assumptions!$D$45 -> 0.07021390923 | BI79: =BI77*Assumptions!$D$45 -> 0.07064869105 | BJ79: =BJ77*Assumptions!$D$45 -> 0.07108616515 | BK79: =BK77*Assumptions!$D$45 -> 0.07152634819 | BL79: =BL77*Assumptions!$D$45 -> 0.07196925696 | BM79: =BM77*Assumptions!$D$45 -> 0.07241490832 | BN79: =BN77*Assumptions!$D$45 -> 0.07286331927 | BO79: =BO77*Assumptions!$D$45 -> 0.0733145069 | BP79: =BP77*Assumptions!$D$45 -> 0.07376848838 | BQ79: =BQ77*Assumptions!$D$45 -> 0.07422528103 | BR79: =BR77*Assumptions!$D$45 -> 0.07468490226 | BS79: =BS77*Assumptions!$D$45 -> 0.07514736957 | BT79: =BT77*Assumptions!$D$45 -> 0.02492726393 | BU79: =BU77*Assumptions!$D$45 -> 0 | BV79: =BV77*Assumptions!$D$45 -> 0 | BW79: =BW77*Assumptions!$D$45 -> 0 | BX79: =BX77*Assumptions!$D$45 -> 0 | BY79: =BY77*Assumptions!$D$45 -> 0 | BZ79: =BZ77*Assumptions!$D$45 -> 0 | CA79: =CA77*Assumptions!$D$45 -> 0 | CB79: =CB77*Assumptions!$D$45 -> 0 | CC79: =CC77*Assumptions!$D$45 -> 0 | CD79: =CD77*Assumptions!$D$45 -> 0 | CE79: =CE77*Assumptions!$D$45 -> 0 | CF79: =CF77*Assumptions!$D$45 -> 0 | CG79: =CG77*Assumptions!$D$45 -> 0 | CH79: =CH77*Assumptions!$D$45 -> 0 | CI79: =CI77*Assumptions!$D$45 -> 0 | CJ79: =CJ77*Assumptions!$D$45 -> 0 | CK79: =CK77*Assumptions!$D$45 -> 0 | CL79: =CL77*Assumptions!$D$45 -> 0 | CM79: =CM77*Assumptions!$D$45 -> 0 | CN79: =CN77*Assumptions!$D$45 -> 0 | CO79: =CO77*Assumptions!$D$45 -> 0 | CP79: =CP77*Assumptions!$D$45 -> 0 | CQ79: =CQ77*Assumptions!$D$45 -> 0 | CR79: =CR77*Assumptions!$D$45 -> 0 | CS79: =CS77*Assumptions!$D$45 -> 0 | CT79: =CT77*Assumptions!$D$45 -> 0 | CU79: =CU77*Assumptions!$D$45 -> 0 | CV79: =CV77*Assumptions!$D$45 -> 0 | CW79: =CW77*Assumptions!$D$45 -> 0 | CX79: =CX77*Assumptions!$D$45 -> 0 | CY79: =CY77*Assumptions!$D$45 -> 0 | CZ79: =CZ77*Assumptions!$D$45 -> 0 | DA79: =DA77*Assumptions!$D$45 -> 0 | DB79: =DB77*Assumptions!$D$45 -> 0 | DC79: =DC77*Assumptions!$D$45 -> 0 | DD79: =DD77*Assumptions!$D$45 -> 0 | DE79: =DE77*Assumptions!$D$45 -> 0 | DF79: =DF77*Assumptions!$D$45 -> 0
B80: Total incl GST | C80: =Units -> AUD$m | I80: =SUM(K80:DF80) -> 39.33809114 | K80: =SUM(K77,K79) -> 0 | L80: =SUM(L77,L79) -> 0 | M80: =SUM(M77,M79) -> 0 | N80: =SUM(N77,N79) -> 0 | O80: =SUM(O77,O79) -> 0 | P80: 0.3945860815 | Q80: 0.5922898437 | R80: 0.5959574484 | S80: 0.5996477637 | T80: 0.6033609303 | U80: 0.6070970898 | V80: 0.6108563846 | W80: 0.6146389578 | X80: 0.6184449536 | Y80: 0.6222745171 | Z80: 0.6261277942 | AA80: 0.6300049317 | AB80: 0.6339060774 | AC80: 0.63783138 | AD80: 0.641780989 | AE80: 0.645755055 | AF80: 0.6497537294 | AG80: 0.6537771645 | AH80: 0.6578255138 | AI80: 0.6618989314 | AJ80: 0.6659975726 | AK80: 0.6701215936 | AL80: 0.6742711516 | AM80: 0.6784464047 | AN80: 0.6826475119 | AO80: 0.6868746335 | AP80: 0.6911279304 | AQ80: 0.6954075648 | AR80: 0.6997136997 | AS80: 0.7040464993 | AT80: 0.7084061287 | AU80: =SUM(AU77,AU79) -> 0.7127927539 | AV80: 0.7172065422 | AW80: 0.7216476618 | AX80: 0.7261162819 | AY80: 0.7306125728 | AZ80: 0.7351367058 | BA80: 0.7396888533 | BB80: 0.7442691889 | BC80: 0.7488778871 | BD80: 0.7535151234 | BE80: 0.7581810747 | BF80: 0.7628759186 | BG80: 0.7675998342 | BH80: 0.7723530015 | BI80: 0.7771356015 | BJ80: 0.7819478166 | BK80: 0.7867898301 | BL80: 0.7916618265 | BM80: 0.7965639916 | BN80: 0.801496512 | BO80: 0.8064595759 | BP80: 0.8114533722 | BQ80: 0.8164780914 | BR80: 0.8215339248 | BS80: 0.8266210653 | BT80: 0.2741999032 | BU80: 0 | BV80: 0 | BW80: 0 | BX80: 0 | BY80: 0 | BZ80: 0 | CA80: =SUM(CA77,CA79) -> 0 | CB80: 0 | CC80: 0 | CD80: 0 | CE80: 0 | CF80: 0 | CG80: 0 | CH80: 0 | CI80: 0 | CJ80: 0 | CK80: 0 | CL80: 0 | CM80: 0 | CN80: 0 | CO80: 0 | CP80: 0 | CQ80: 0 | CR80: 0 | CS80: 0 | CT80: 0 | CU80: 0 | CV80: 0 | CW80: 0 | CX80: 0 | CY80: 0 | CZ80: 0 | DA80: 0 | DB80: 0 | DC80: 0 | DD80: 0 | DE80: 0 | DF80: 0
B82: Quarterly Access Fee per MW
B83: C&E Fee | C83: AUD$'000/MW | I83: =SUM(K83:DF83) -> 41.12618619 | K83: =IF(Assumptions!$D$27<>0,K74/Assumptions!$D$27*Thousand,0) -> 0 | L83: =IF(Assumptions!$D$27<>0,L74/Assumptions!$D$27*Thousand,0) -> 0 | M83: =IF(Assumptions!$D$27<>0,M74/Assumptions!$D$27*Thousand,0) -> 0 | N83: =IF(Assumptions!$D$27<>0,N74/Assumptions!$D$27*Thousand,0) -> 0 | O83: =IF(Assumptions!$D$27<>0,O74/Assumptions!$D$27*Thousand,0) -> 0 | P83: =IF(Assumptions!$D$27<>0,P74/Assumptions!$D$27*Thousand,0) -> 0.4125218125 | Q83: =IF(Assumptions!$D$27<>0,Q74/Assumptions!$D$27*Thousand,0) -> 0.6192121094 | R83: =IF(Assumptions!$D$27<>0,R74/Assumptions!$D$27*Thousand,0) -> 0.6230464233 | S83: =IF(Assumptions!$D$27<>0,S74/Assumptions!$D$27*Thousand,0) -> 0.6269044802 | T83: =IF(Assumptions!$D$27<>0,T74/Assumptions!$D$27*Thousand,0) -> 0.6307864272 | U83: =IF(Assumptions!$D$27<>0,U74/Assumptions!$D$27*Thousand,0) -> 0.6346924121 | V83: =IF(Assumptions!$D$27<>0,V74/Assumptions!$D$27*Thousand,0) -> 0.6386225839 | W83: =IF(Assumptions!$D$27<>0,W74/Assumptions!$D$27*Thousand,0) -> 0.6425770922 | X83: =IF(Assumptions!$D$27<>0,X74/Assumptions!$D$27*Thousand,0) -> 0.6465560879 | Y83: =IF(Assumptions!$D$27<>0,Y74/Assumptions!$D$27*Thousand,0) -> 0.6505597224 | Z83: =IF(Assumptions!$D$27<>0,Z74/Assumptions!$D$27*Thousand,0) -> 0.6545881485 | AA83: =IF(Assumptions!$D$27<>0,AA74/Assumptions!$D$27*Thousand,0) -> 0.6586415195 | AB83: =IF(Assumptions!$D$27<>0,AB74/Assumptions!$D$27*Thousand,0) -> 0.66271999 | AC83: =IF(Assumptions!$D$27<>0,AC74/Assumptions!$D$27*Thousand,0) -> 0.6668237155 | AD83: =IF(Assumptions!$D$27<>0,AD74/Assumptions!$D$27*Thousand,0) -> 0.6709528522 | AE83: =IF(Assumptions!$D$27<>0,AE74/Assumptions!$D$27*Thousand,0) -> 0.6751075575 | AF83: =IF(Assumptions!$D$27<>0,AF74/Assumptions!$D$27*Thousand,0) -> 0.6792879898 | AG83: =IF(Assumptions!$D$27<>0,AG74/Assumptions!$D$27*Thousand,0) -> 0.6834943084 | AH83: =IF(Assumptions!$D$27<>0,AH74/Assumptions!$D$27*Thousand,0) -> 0.6877266735 | AI83: =IF(Assumptions!$D$27<>0,AI74/Assumptions!$D$27*Thousand,0) -> 0.6919852464 | AJ83: =IF(Assumptions!$D$27<>0,AJ74/Assumptions!$D$27*Thousand,0) -> 0.6962701895 | AK83: =IF(Assumptions!$D$27<>0,AK74/Assumptions!$D$27*Thousand,0) -> 0.7005816661 | AL83: =IF(Assumptions!$D$27<>0,AL74/Assumptions!$D$27*Thousand,0) -> 0.7049198403 | AM83: =IF(Assumptions!$D$27<>0,AM74/Assumptions!$D$27*Thousand,0) -> 0.7092848776 | AN83: =IF(Assumptions!$D$27<>0,AN74/Assumptions!$D$27*Thousand,0) -> 0.7136769443 | AO83: =IF(Assumptions!$D$27<>0,AO74/Assumptions!$D$27*Thousand,0) -> 0.7180962077 | AP83: =IF(Assumptions!$D$27<>0,AP74/Assumptions!$D$27*Thousand,0) -> 0.7225428363 | AQ83: =IF(Assumptions!$D$27<>0,AQ74/Assumptions!$D$27*Thousand,0) -> 0.7270169995 | AR83: =IF(Assumptions!$D$27<>0,AR74/Assumptions!$D$27*Thousand,0) -> 0.7315188679 | AS83: =IF(Assumptions!$D$27<>0,AS74/Assumptions!$D$27*Thousand,0) -> 0.7360486129 | AT83: =IF(Assumptions!$D$27<>0,AT74/Assumptions!$D$27*Thousand,0) -> 0.7406064072 | AU83: =IF(Assumptions!$D$27<>0,AU74/Assumptions!$D$27*Thousand,0) -> 0.7451924245 | AV83: =IF(Assumptions!$D$27<>0,AV74/Assumptions!$D$27*Thousand,0) -> 0.7498068396 | AW83: =IF(Assumptions!$D$27<>0,AW74/Assumptions!$D$27*Thousand,0) -> 0.7544498282 | AX83: =IF(Assumptions!$D$27<>0,AX74/Assumptions!$D$27*Thousand,0) -> 0.7591215674 | AY83: =IF(Assumptions!$D$27<>0,AY74/Assumptions!$D$27*Thousand,0) -> 0.7638222351 | AZ83: =IF(Assumptions!$D$27<>0,AZ74/Assumptions!$D$27*Thousand,0) -> 0.7685520106 | BA83: =IF(Assumptions!$D$27<>0,BA74/Assumptions!$D$27*Thousand,0) -> 0.7733110739 | BB83: =IF(Assumptions!$D$27<>0,BB74/Assumptions!$D$27*Thousand,0) -> 0.7780996066 | BC83: =IF(Assumptions!$D$27<>0,BC74/Assumptions!$D$27*Thousand,0) -> 0.782917791 | BD83: =IF(Assumptions!$D$27<>0,BD74/Assumptions!$D$27*Thousand,0) -> 0.7877658108 | BE83: =IF(Assumptions!$D$27<>0,BE74/Assumptions!$D$27*Thousand,0) -> 0.7926438508 | BF83: =IF(Assumptions!$D$27<>0,BF74/Assumptions!$D$27*Thousand,0) -> 0.7975520968 | BG83: =IF(Assumptions!$D$27<>0,BG74/Assumptions!$D$27*Thousand,0) -> 0.8024907358 | BH83: =IF(Assumptions!$D$27<>0,BH74/Assumptions!$D$27*Thousand,0) -> 0.8074599561 | BI83: =IF(Assumptions!$D$27<>0,BI74/Assumptions!$D$27*Thousand,0) -> 0.8124599471 | BJ83: =IF(Assumptions!$D$27<>0,BJ74/Assumptions!$D$27*Thousand,0) -> 0.8174908992 | BK83: =IF(Assumptions!$D$27<>0,BK74/Assumptions!$D$27*Thousand,0) -> 0.8225530042 | BL83: =IF(Assumptions!$D$27<>0,BL74/Assumptions!$D$27*Thousand,0) -> 0.827646455 | BM83: =IF(Assumptions!$D$27<>0,BM74/Assumptions!$D$27*Thousand,0) -> 0.8327714457 | BN83: =IF(Assumptions!$D$27<>0,BN74/Assumptions!$D$27*Thousand,0) -> 0.8379281717 | BO83: =IF(Assumptions!$D$27<>0,BO74/Assumptions!$D$27*Thousand,0) -> 0.8431168293 | BP83: =IF(Assumptions!$D$27<>0,BP74/Assumptions!$D$27*Thousand,0) -> 0.8483376164 | BQ83: =IF(Assumptions!$D$27<>0,BQ74/Assumptions!$D$27*Thousand,0) -> 0.8535907319 | BR83: =IF(Assumptions!$D$27<>0,BR74/Assumptions!$D$27*Thousand,0) -> 0.858876376 | BS83: =IF(Assumptions!$D$27<>0,BS74/Assumptions!$D$27*Thousand,0) -> 0.86419475 | BT83: =IF(Assumptions!$D$27<>0,BT74/Assumptions!$D$27*Thousand,0) -> 0.2866635352 | BU83: =IF(Assumptions!$D$27<>0,BU74/Assumptions!$D$27*Thousand,0) -> 0 | BV83: =IF(Assumptions!$D$27<>0,BV74/Assumptions!$D$27*Thousand,0) -> 0 | BW83: =IF(Assumptions!$D$27<>0,BW74/Assumptions!$D$27*Thousand,0) -> 0 | BX83: =IF(Assumptions!$D$27<>0,BX74/Assumptions!$D$27*Thousand,0) -> 0 | BY83: =IF(Assumptions!$D$27<>0,BY74/Assumptions!$D$27*Thousand,0) -> 0 | BZ83: =IF(Assumptions!$D$27<>0,BZ74/Assumptions!$D$27*Thousand,0) -> 0 | CA83: =IF(Assumptions!$D$27<>0,CA74/Assumptions!$D$27*Thousand,0) -> 0 | CB83: =IF(Assumptions!$D$27<>0,CB74/Assumptions!$D$27*Thousand,0) -> 0 | CC83: =IF(Assumptions!$D$27<>0,CC74/Assumptions!$D$27*Thousand,0) -> 0 | CD83: =IF(Assumptions!$D$27<>0,CD74/Assumptions!$D$27*Thousand,0) -> 0 | CE83: =IF(Assumptions!$D$27<>0,CE74/Assumptions!$D$27*Thousand,0) -> 0 | CF83: =IF(Assumptions!$D$27<>0,CF74/Assumptions!$D$27*Thousand,0) -> 0 | CG83: =IF(Assumptions!$D$27<>0,CG74/Assumptions!$D$27*Thousand,0) -> 0 | CH83: =IF(Assumptions!$D$27<>0,CH74/Assumptions!$D$27*Thousand,0) -> 0 | CI83: =IF(Assumptions!$D$27<>0,CI74/Assumptions!$D$27*Thousand,0) -> 0 | CJ83: =IF(Assumptions!$D$27<>0,CJ74/Assumptions!$D$27*Thousand,0) -> 0 | CK83: =IF(Assumptions!$D$27<>0,CK74/Assumptions!$D$27*Thousand,0) -> 0 | CL83: =IF(Assumptions!$D$27<>0,CL74/Assumptions!$D$27*Thousand,0) -> 0 | CM83: =IF(Assumptions!$D$27<>0,CM74/Assumptions!$D$27*Thousand,0) -> 0 | CN83: =IF(Assumptions!$D$27<>0,CN74/Assumptions!$D$27*Thousand,0) -> 0 | CO83: =IF(Assumptions!$D$27<>0,CO74/Assumptions!$D$27*Thousand,0) -> 0 | CP83: =IF(Assumptions!$D$27<>0,CP74/Assumptions!$D$27*Thousand,0) -> 0 | CQ83: =IF(Assumptions!$D$27<>0,CQ74/Assumptions!$D$27*Thousand,0) -> 0 | CR83: =IF(Assumptions!$D$27<>0,CR74/Assumptions!$D$27*Thousand,0) -> 0 | CS83: =IF(Assumptions!$D$27<>0,CS74/Assumptions!$D$27*Thousand,0) -> 0 | CT83: =IF(Assumptions!$D$27<>0,CT74/Assumptions!$D$27*Thousand,0) -> 0 | CU83: =IF(Assumptions!$D$27<>0,CU74/Assumptions!$D$27*Thousand,0) -> 0 | CV83: =IF(Assumptions!$D$27<>0,CV74/Assumptions!$D$27*Thousand,0) -> 0 | CW83: =IF(Assumptions!$D$27<>0,CW74/Assumptions!$D$27*Thousand,0) -> 0 | CX83: =IF(Assumptions!$D$27<>0,CX74/Assumptions!$D$27*Thousand,0) -> 0 | CY83: =IF(Assumptions!$D$27<>0,CY74/Assumptions!$D$27*Thousand,0) -> 0 | CZ83: =IF(Assumptions!$D$27<>0,CZ74/Assumptions!$D$27*Thousand,0) -> 0 | DA83: =IF(Assumptions!$D$27<>0,DA74/Assumptions!$D$27*Thousand,0) -> 0 | DB83: =IF(Assumptions!$D$27<>0,DB74/Assumptions!$D$27*Thousand,0) -> 0 | DC83: =IF(Assumptions!$D$27<>0,DC74/Assumptions!$D$27*Thousand,0) -> 0 | DD83: =IF(Assumptions!$D$27<>0,DD74/Assumptions!$D$27*Thousand,0) -> 0 | DE83: =IF(Assumptions!$D$27<>0,DE74/Assumptions!$D$27*Thousand,0) -> 0 | DF83: =IF(Assumptions!$D$27<>0,DF74/Assumptions!$D$27*Thousand,0) -> 0
B84: SW REZ Administration Fee | C84: AUD$'000/MW | I84: =SUM(K84:DF84) -> 12.35573681 | K84: =IF(Assumptions!$D$27<>0,K75/Assumptions!$D$27*Thousand,0) -> 0 | L84: =IF(Assumptions!$D$27<>0,L75/Assumptions!$D$27*Thousand,0) -> 0 | M84: =IF(Assumptions!$D$27<>0,M75/Assumptions!$D$27*Thousand,0) -> 0 | N84: =IF(Assumptions!$D$27<>0,N75/Assumptions!$D$27*Thousand,0) -> 0 | O84: =IF(Assumptions!$D$27<>0,O75/Assumptions!$D$27*Thousand,0) -> 0 | P84: =IF(Assumptions!$D$27<>0,P75/Assumptions!$D$27*Thousand,0) -> 0.123935901 | Q84: =IF(Assumptions!$D$27<>0,Q75/Assumptions!$D$27*Thousand,0) -> 0.1860328555 | R84: =IF(Assumptions!$D$27<>0,R75/Assumptions!$D$27*Thousand,0) -> 0.1871848167 | S84: =IF(Assumptions!$D$27<>0,S75/Assumptions!$D$27*Thousand,0) -> 0.1883439112 | T84: =IF(Assumptions!$D$27<>0,T75/Assumptions!$D$27*Thousand,0) -> 0.1895101831 | U84: =IF(Assumptions!$D$27<>0,U75/Assumptions!$D$27*Thousand,0) -> 0.1906836769 | V84: =IF(Assumptions!$D$27<>0,V75/Assumptions!$D$27*Thousand,0) -> 0.1918644372 | W84: =IF(Assumptions!$D$27<>0,W75/Assumptions!$D$27*Thousand,0) -> 0.193052509 | X84: =IF(Assumptions!$D$27<>0,X75/Assumptions!$D$27*Thousand,0) -> 0.1942479377 | Y84: =IF(Assumptions!$D$27<>0,Y75/Assumptions!$D$27*Thousand,0) -> 0.1954507688 | Z84: =IF(Assumptions!$D$27<>0,Z75/Assumptions!$D$27*Thousand,0) -> 0.1966610481 | AA84: =IF(Assumptions!$D$27<>0,AA75/Assumptions!$D$27*Thousand,0) -> 0.1978788217 | AB84: =IF(Assumptions!$D$27<>0,AB75/Assumptions!$D$27*Thousand,0) -> 0.1991041361 | AC84: =IF(Assumptions!$D$27<>0,AC75/Assumptions!$D$27*Thousand,0) -> 0.200337038 | AD84: =IF(Assumptions!$D$27<>0,AD75/Assumptions!$D$27*Thousand,0) -> 0.2015775743 | AE84: =IF(Assumptions!$D$27<>0,AE75/Assumptions!$D$27*Thousand,0) -> 0.2028257923 | AF84: =IF(Assumptions!$D$27<>0,AF75/Assumptions!$D$27*Thousand,0) -> 0.2040817395 | AG84: =IF(Assumptions!$D$27<>0,AG75/Assumptions!$D$27*Thousand,0) -> 0.2053454639 | AH84: =IF(Assumptions!$D$27<>0,AH75/Assumptions!$D$27*Thousand,0) -> 0.2066170136 | AI84: =IF(Assumptions!$D$27<>0,AI75/Assumptions!$D$27*Thousand,0) -> 0.2078964371 | AJ84: =IF(Assumptions!$D$27<>0,AJ75/Assumptions!$D$27*Thousand,0) -> 0.209183783 | AK84: =IF(Assumptions!$D$27<>0,AK75/Assumptions!$D$27*Thousand,0) -> 0.2104791005 | AL84: =IF(Assumptions!$D$27<>0,AL75/Assumptions!$D$27*Thousand,0) -> 0.211782439 | AM84: =IF(Assumptions!$D$27<>0,AM75/Assumptions!$D$27*Thousand,0) -> 0.213093848 | AN84: =IF(Assumptions!$D$27<>0,AN75/Assumptions!$D$27*Thousand,0) -> 0.2144133776 | AO84: =IF(Assumptions!$D$27<>0,AO75/Assumptions!$D$27*Thousand,0) -> 0.2157410781 | AP84: =IF(Assumptions!$D$27<>0,AP75/Assumptions!$D$27*Thousand,0) -> 0.217077 | AQ84: =IF(Assumptions!$D$27<>0,AQ75/Assumptions!$D$27*Thousand,0) -> 0.2184211942 | AR84: =IF(Assumptions!$D$27<>0,AR75/Assumptions!$D$27*Thousand,0) -> 0.219773712 | AS84: =IF(Assumptions!$D$27<>0,AS75/Assumptions!$D$27*Thousand,0) -> 0.221134605 | AT84: =IF(Assumptions!$D$27<>0,AT75/Assumptions!$D$27*Thousand,0) -> 0.222503925 | AU84: =IF(Assumptions!$D$27<>0,AU75/Assumptions!$D$27*Thousand,0) -> 0.2238817241 | AV84: =IF(Assumptions!$D$27<>0,AV75/Assumptions!$D$27*Thousand,0) -> 0.2252680549 | AW84: =IF(Assumptions!$D$27<>0,AW75/Assumptions!$D$27*Thousand,0) -> 0.2266629701 | AX84: =IF(Assumptions!$D$27<>0,AX75/Assumptions!$D$27*Thousand,0) -> 0.2280665231 | AY84: =IF(Assumptions!$D$27<>0,AY75/Assumptions!$D$27*Thousand,0) -> 0.2294787672 | AZ84: =IF(Assumptions!$D$27<>0,AZ75/Assumptions!$D$27*Thousand,0) -> 0.2308997562 | BA84: =IF(Assumptions!$D$27<>0,BA75/Assumptions!$D$27*Thousand,0) -> 0.2323295444 | BB84: =IF(Assumptions!$D$27<>0,BB75/Assumptions!$D$27*Thousand,0) -> 0.2337681862 | BC84: =IF(Assumptions!$D$27<>0,BC75/Assumptions!$D$27*Thousand,0) -> 0.2352157363 | BD84: =IF(Assumptions!$D$27<>0,BD75/Assumptions!$D$27*Thousand,0) -> 0.2366722501 | BE84: =IF(Assumptions!$D$27<>0,BE75/Assumptions!$D$27*Thousand,0) -> 0.238137783 | BF84: =IF(Assumptions!$D$27<>0,BF75/Assumptions!$D$27*Thousand,0) -> 0.2396123908 | BG84: =IF(Assumptions!$D$27<>0,BG75/Assumptions!$D$27*Thousand,0) -> 0.2410961298 | BH84: =IF(Assumptions!$D$27<>0,BH75/Assumptions!$D$27*Thousand,0) -> 0.2425890564 | BI84: =IF(Assumptions!$D$27<>0,BI75/Assumptions!$D$27*Thousand,0) -> 0.2440912276 | BJ84: =IF(Assumptions!$D$27<>0,BJ75/Assumptions!$D$27*Thousand,0) -> 0.2456027006 | BK84: =IF(Assumptions!$D$27<>0,BK75/Assumptions!$D$27*Thousand,0) -> 0.247123533 | BL84: =IF(Assumptions!$D$27<>0,BL75/Assumptions!$D$27*Thousand,0) -> 0.2486537828 | BM84: =IF(Assumptions!$D$27<>0,BM75/Assumptions!$D$27*Thousand,0) -> 0.2501935083 | BN84: =IF(Assumptions!$D$27<>0,BN75/Assumptions!$D$27*Thousand,0) -> 0.2517427681 | BO84: =IF(Assumptions!$D$27<>0,BO75/Assumptions!$D$27*Thousand,0) -> 0.2533016213 | BP84: =IF(Assumptions!$D$27<>0,BP75/Assumptions!$D$27*Thousand,0) -> 0.2548701274 | BQ84: =IF(Assumptions!$D$27<>0,BQ75/Assumptions!$D$27*Thousand,0) -> 0.256448346 | BR84: =IF(Assumptions!$D$27<>0,BR75/Assumptions!$D$27*Thousand,0) -> 0.2580363373 | BS84: =IF(Assumptions!$D$27<>0,BS75/Assumptions!$D$27*Thousand,0) -> 0.2596341619 | BT84: =IF(Assumptions!$D$27<>0,BT75/Assumptions!$D$27*Thousand,0) -> 0.08612369688 | BU84: =IF(Assumptions!$D$27<>0,BU75/Assumptions!$D$27*Thousand,0) -> 0 | BV84: =IF(Assumptions!$D$27<>0,BV75/Assumptions!$D$27*Thousand,0) -> 0 | BW84: =IF(Assumptions!$D$27<>0,BW75/Assumptions!$D$27*Thousand,0) -> 0 | BX84: =IF(Assumptions!$D$27<>0,BX75/Assumptions!$D$27*Thousand,0) -> 0 | BY84: =IF(Assumptions!$D$27<>0,BY75/Assumptions!$D$27*Thousand,0) -> 0 | BZ84: =IF(Assumptions!$D$27<>0,BZ75/Assumptions!$D$27*Thousand,0) -> 0 | CA84: =IF(Assumptions!$D$27<>0,CA75/Assumptions!$D$27*Thousand,0) -> 0 | CB84: =IF(Assumptions!$D$27<>0,CB75/Assumptions!$D$27*Thousand,0) -> 0 | CC84: =IF(Assumptions!$D$27<>0,CC75/Assumptions!$D$27*Thousand,0) -> 0 | CD84: =IF(Assumptions!$D$27<>0,CD75/Assumptions!$D$27*Thousand,0) -> 0 | CE84: =IF(Assumptions!$D$27<>0,CE75/Assumptions!$D$27*Thousand,0) -> 0 | CF84: =IF(Assumptions!$D$27<>0,CF75/Assumptions!$D$27*Thousand,0) -> 0 | CG84: =IF(Assumptions!$D$27<>0,CG75/Assumptions!$D$27*Thousand,0) -> 0 | CH84: =IF(Assumptions!$D$27<>0,CH75/Assumptions!$D$27*Thousand,0) -> 0 | CI84: =IF(Assumptions!$D$27<>0,CI75/Assumptions!$D$27*Thousand,0) -> 0 | CJ84: =IF(Assumptions!$D$27<>0,CJ75/Assumptions!$D$27*Thousand,0) -> 0 | CK84: =IF(Assumptions!$D$27<>0,CK75/Assumptions!$D$27*Thousand,0) -> 0 | CL84: =IF(Assumptions!$D$27<>0,CL75/Assumptions!$D$27*Thousand,0) -> 0 | CM84: =IF(Assumptions!$D$27<>0,CM75/Assumptions!$D$27*Thousand,0) -> 0 | CN84: =IF(Assumptions!$D$27<>0,CN75/Assumptions!$D$27*Thousand,0) -> 0 | CO84: =IF(Assumptions!$D$27<>0,CO75/Assumptions!$D$27*Thousand,0) -> 0 | CP84: =IF(Assumptions!$D$27<>0,CP75/Assumptions!$D$27*Thousand,0) -> 0 | CQ84: =IF(Assumptions!$D$27<>0,CQ75/Assumptions!$D$27*Thousand,0) -> 0 | CR84: =IF(Assumptions!$D$27<>0,CR75/Assumptions!$D$27*Thousand,0) -> 0 | CS84: =IF(Assumptions!$D$27<>0,CS75/Assumptions!$D$27*Thousand,0) -> 0 | CT84: =IF(Assumptions!$D$27<>0,CT75/Assumptions!$D$27*Thousand,0) -> 0 | CU84: =IF(Assumptions!$D$27<>0,CU75/Assumptions!$D$27*Thousand,0) -> 0 | CV84: =IF(Assumptions!$D$27<>0,CV75/Assumptions!$D$27*Thousand,0) -> 0 | CW84: =IF(Assumptions!$D$27<>0,CW75/Assumptions!$D$27*Thousand,0) -> 0 | CX84: =IF(Assumptions!$D$27<>0,CX75/Assumptions!$D$27*Thousand,0) -> 0 | CY84: =IF(Assumptions!$D$27<>0,CY75/Assumptions!$D$27*Thousand,0) -> 0 | CZ84: =IF(Assumptions!$D$27<>0,CZ75/Assumptions!$D$27*Thousand,0) -> 0 | DA84: =IF(Assumptions!$D$27<>0,DA75/Assumptions!$D$27*Thousand,0) -> 0 | DB84: =IF(Assumptions!$D$27<>0,DB75/Assumptions!$D$27*Thousand,0) -> 0 | DC84: =IF(Assumptions!$D$27<>0,DC75/Assumptions!$D$27*Thousand,0) -> 0 | DD84: =IF(Assumptions!$D$27<>0,DD75/Assumptions!$D$27*Thousand,0) -> 0 | DE84: =IF(Assumptions!$D$27<>0,DE75/Assumptions!$D$27*Thousand,0) -> 0 | DF84: =IF(Assumptions!$D$27<>0,DF75/Assumptions!$D$27*Thousand,0) -> 0
B85: Contribution to the NSW Electricity Infrastructure Roadmap | C85: AUD$'000/MW | I85: =SUM(K85:DF85) -> 18.04187907 | K85: =IF(Assumptions!$D$27<>0,K76/Assumptions!$D$27*Thousand,0) -> 0 | L85: =IF(Assumptions!$D$27<>0,L76/Assumptions!$D$27*Thousand,0) -> 0 | M85: =IF(Assumptions!$D$27<>0,M76/Assumptions!$D$27*Thousand,0) -> 0 | N85: =IF(Assumptions!$D$27<>0,N76/Assumptions!$D$27*Thousand,0) -> 0 | O85: =IF(Assumptions!$D$27<>0,O76/Assumptions!$D$27*Thousand,0) -> 0 | P85: =IF(Assumptions!$D$27<>0,P76/Assumptions!$D$27*Thousand,0) -> 0.1809715256 | Q85: =IF(Assumptions!$D$27<>0,Q76/Assumptions!$D$27*Thousand,0) -> 0.2716456602 | R85: =IF(Assumptions!$D$27<>0,R76/Assumptions!$D$27*Thousand,0) -> 0.273327757 | S85: =IF(Assumptions!$D$27<>0,S76/Assumptions!$D$27*Thousand,0) -> 0.2750202698 | T85: =IF(Assumptions!$D$27<>0,T76/Assumptions!$D$27*Thousand,0) -> 0.2767232631 | U85: =IF(Assumptions!$D$27<>0,U76/Assumptions!$D$27*Thousand,0) -> 0.2784368017 | V85: =IF(Assumptions!$D$27<>0,V76/Assumptions!$D$27*Thousand,0) -> 0.2801609509 | W85: =IF(Assumptions!$D$27<>0,W76/Assumptions!$D$27*Thousand,0) -> 0.2818957765 | X85: =IF(Assumptions!$D$27<>0,X76/Assumptions!$D$27*Thousand,0) -> 0.2836413446 | Y85: =IF(Assumptions!$D$27<>0,Y76/Assumptions!$D$27*Thousand,0) -> 0.2853977217 | Z85: =IF(Assumptions!$D$27<>0,Z76/Assumptions!$D$27*Thousand,0) -> 0.2871649747 | AA85: =IF(Assumptions!$D$27<>0,AA76/Assumptions!$D$27*Thousand,0) -> 0.288943171 | AB85: =IF(Assumptions!$D$27<>0,AB76/Assumptions!$D$27*Thousand,0) -> 0.2907323782 | AC85: =IF(Assumptions!$D$27<>0,AC76/Assumptions!$D$27*Thousand,0) -> 0.2925326647 | AD85: =IF(Assumptions!$D$27<>0,AD76/Assumptions!$D$27*Thousand,0) -> 0.2943440991 | AE85: =IF(Assumptions!$D$27<>0,AE76/Assumptions!$D$27*Thousand,0) -> 0.2961667502 | AF85: =IF(Assumptions!$D$27<>0,AF76/Assumptions!$D$27*Thousand,0) -> 0.2980006877 | AG85: =IF(Assumptions!$D$27<>0,AG76/Assumptions!$D$27*Thousand,0) -> 0.2998459814 | AH85: =IF(Assumptions!$D$27<>0,AH76/Assumptions!$D$27*Thousand,0) -> 0.3017027015 | AI85: =IF(Assumptions!$D$27<>0,AI76/Assumptions!$D$27*Thousand,0) -> 0.303570919 | AJ85: =IF(Assumptions!$D$27<>0,AJ76/Assumptions!$D$27*Thousand,0) -> 0.3054507049 | AK85: =IF(Assumptions!$D$27<>0,AK76/Assumptions!$D$27*Thousand,0) -> 0.3073421309 | AL85: =IF(Assumptions!$D$27<>0,AL76/Assumptions!$D$27*Thousand,0) -> 0.3092452691 | AM85: =IF(Assumptions!$D$27<>0,AM76/Assumptions!$D$27*Thousand,0) -> 0.311160192 | AN85: =IF(Assumptions!$D$27<>0,AN76/Assumptions!$D$27*Thousand,0) -> 0.3130869725 | AO85: =IF(Assumptions!$D$27<>0,AO76/Assumptions!$D$27*Thousand,0) -> 0.3150256842 | AP85: =IF(Assumptions!$D$27<>0,AP76/Assumptions!$D$27*Thousand,0) -> 0.3169764008 | AQ85: =IF(Assumptions!$D$27<>0,AQ76/Assumptions!$D$27*Thousand,0) -> 0.3189391968 | AR85: =IF(Assumptions!$D$27<>0,AR76/Assumptions!$D$27*Thousand,0) -> 0.3209141468 | AS85: =IF(Assumptions!$D$27<>0,AS76/Assumptions!$D$27*Thousand,0) -> 0.3229013263 | AT85: =IF(Assumptions!$D$27<>0,AT76/Assumptions!$D$27*Thousand,0) -> 0.3249008108 | AU85: =IF(Assumptions!$D$27<>0,AU76/Assumptions!$D$27*Thousand,0) -> 0.3269126767 | AV85: =IF(Assumptions!$D$27<>0,AV76/Assumptions!$D$27*Thousand,0) -> 0.3289370005 | AW85: =IF(Assumptions!$D$27<>0,AW76/Assumptions!$D$27*Thousand,0) -> 0.3309738594 | AX85: =IF(Assumptions!$D$27<>0,AX76/Assumptions!$D$27*Thousand,0) -> 0.3330233311 | AY85: =IF(Assumptions!$D$27<>0,AY76/Assumptions!$D$27*Thousand,0) -> 0.3350854936 | AZ85: =IF(Assumptions!$D$27<>0,AZ76/Assumptions!$D$27*Thousand,0) -> 0.3371604255 | BA85: =IF(Assumptions!$D$27<>0,BA76/Assumptions!$D$27*Thousand,0) -> 0.3392482059 | BB85: =IF(Assumptions!$D$27<>0,BB76/Assumptions!$D$27*Thousand,0) -> 0.3413489144 | BC85: =IF(Assumptions!$D$27<>0,BC76/Assumptions!$D$27*Thousand,0) -> 0.3434626309 | BD85: =IF(Assumptions!$D$27<>0,BD76/Assumptions!$D$27*Thousand,0) -> 0.3455894361 | BE85: =IF(Assumptions!$D$27<>0,BE76/Assumptions!$D$27*Thousand,0) -> 0.3477294111 | BF85: =IF(Assumptions!$D$27<>0,BF76/Assumptions!$D$27*Thousand,0) -> 0.3498826372 | BG85: =IF(Assumptions!$D$27<>0,BG76/Assumptions!$D$27*Thousand,0) -> 0.3520491967 | BH85: =IF(Assumptions!$D$27<>0,BH76/Assumptions!$D$27*Thousand,0) -> 0.3542291721 | BI85: =IF(Assumptions!$D$27<>0,BI76/Assumptions!$D$27*Thousand,0) -> 0.3564226463 | BJ85: =IF(Assumptions!$D$27<>0,BJ76/Assumptions!$D$27*Thousand,0) -> 0.3586297032 | BK85: =IF(Assumptions!$D$27<>0,BK76/Assumptions!$D$27*Thousand,0) -> 0.3608504266 | BL85: =IF(Assumptions!$D$27<>0,BL76/Assumptions!$D$27*Thousand,0) -> 0.3630849014 | BM85: =IF(Assumptions!$D$27<>0,BM76/Assumptions!$D$27*Thousand,0) -> 0.3653332125 | BN85: =IF(Assumptions!$D$27<>0,BN76/Assumptions!$D$27*Thousand,0) -> 0.3675954457 | BO85: =IF(Assumptions!$D$27<>0,BO76/Assumptions!$D$27*Thousand,0) -> 0.3698716873 | BP85: =IF(Assumptions!$D$27<>0,BP76/Assumptions!$D$27*Thousand,0) -> 0.3721620239 | BQ85: =IF(Assumptions!$D$27<>0,BQ76/Assumptions!$D$27*Thousand,0) -> 0.3744665428 | BR85: =IF(Assumptions!$D$27<>0,BR76/Assumptions!$D$27*Thousand,0) -> 0.3767853319 | BS85: =IF(Assumptions!$D$27<>0,BS76/Assumptions!$D$27*Thousand,0) -> 0.3791184795 | BT85: =IF(Assumptions!$D$27<>0,BT76/Assumptions!$D$27*Thousand,0) -> 0.1257580465 | BU85: =IF(Assumptions!$D$27<>0,BU76/Assumptions!$D$27*Thousand,0) -> 0 | BV85: =IF(Assumptions!$D$27<>0,BV76/Assumptions!$D$27*Thousand,0) -> 0 | BW85: =IF(Assumptions!$D$27<>0,BW76/Assumptions!$D$27*Thousand,0) -> 0 | BX85: =IF(Assumptions!$D$27<>0,BX76/Assumptions!$D$27*Thousand,0) -> 0 | BY85: =IF(Assumptions!$D$27<>0,BY76/Assumptions!$D$27*Thousand,0) -> 0 | BZ85: =IF(Assumptions!$D$27<>0,BZ76/Assumptions!$D$27*Thousand,0) -> 0 | CA85: =IF(Assumptions!$D$27<>0,CA76/Assumptions!$D$27*Thousand,0) -> 0 | CB85: =IF(Assumptions!$D$27<>0,CB76/Assumptions!$D$27*Thousand,0) -> 0 | CC85: =IF(Assumptions!$D$27<>0,CC76/Assumptions!$D$27*Thousand,0) -> 0 | CD85: =IF(Assumptions!$D$27<>0,CD76/Assumptions!$D$27*Thousand,0) -> 0 | CE85: =IF(Assumptions!$D$27<>0,CE76/Assumptions!$D$27*Thousand,0) -> 0 | CF85: =IF(Assumptions!$D$27<>0,CF76/Assumptions!$D$27*Thousand,0) -> 0 | CG85: =IF(Assumptions!$D$27<>0,CG76/Assumptions!$D$27*Thousand,0) -> 0 | CH85: =IF(Assumptions!$D$27<>0,CH76/Assumptions!$D$27*Thousand,0) -> 0 | CI85: =IF(Assumptions!$D$27<>0,CI76/Assumptions!$D$27*Thousand,0) -> 0 | CJ85: =IF(Assumptions!$D$27<>0,CJ76/Assumptions!$D$27*Thousand,0) -> 0 | CK85: =IF(Assumptions!$D$27<>0,CK76/Assumptions!$D$27*Thousand,0) -> 0 | CL85: =IF(Assumptions!$D$27<>0,CL76/Assumptions!$D$27*Thousand,0) -> 0 | CM85: =IF(Assumptions!$D$27<>0,CM76/Assumptions!$D$27*Thousand,0) -> 0 | CN85: =IF(Assumptions!$D$27<>0,CN76/Assumptions!$D$27*Thousand,0) -> 0 | CO85: =IF(Assumptions!$D$27<>0,CO76/Assumptions!$D$27*Thousand,0) -> 0 | CP85: =IF(Assumptions!$D$27<>0,CP76/Assumptions!$D$27*Thousand,0) -> 0 | CQ85: =IF(Assumptions!$D$27<>0,CQ76/Assumptions!$D$27*Thousand,0) -> 0 | CR85: =IF(Assumptions!$D$27<>0,CR76/Assumptions!$D$27*Thousand,0) -> 0 | CS85: =IF(Assumptions!$D$27<>0,CS76/Assumptions!$D$27*Thousand,0) -> 0 | CT85: =IF(Assumptions!$D$27<>0,CT76/Assumptions!$D$27*Thousand,0) -> 0 | CU85: =IF(Assumptions!$D$27<>0,CU76/Assumptions!$D$27*Thousand,0) -> 0 | CV85: =IF(Assumptions!$D$27<>0,CV76/Assumptions!$D$27*Thousand,0) -> 0 | CW85: =IF(Assumptions!$D$27<>0,CW76/Assumptions!$D$27*Thousand,0) -> 0 | CX85: =IF(Assumptions!$D$27<>0,CX76/Assumptions!$D$27*Thousand,0) -> 0 | CY85: =IF(Assumptions!$D$27<>0,CY76/Assumptions!$D$27*Thousand,0) -> 0 | CZ85: =IF(Assumptions!$D$27<>0,CZ76/Assumptions!$D$27*Thousand,0) -> 0 | DA85: =IF(Assumptions!$D$27<>0,DA76/Assumptions!$D$27*Thousand,0) -> 0 | DB85: =IF(Assumptions!$D$27<>0,DB76/Assumptions!$D$27*Thousand,0) -> 0 | DC85: =IF(Assumptions!$D$27<>0,DC76/Assumptions!$D$27*Thousand,0) -> 0 | DD85: =IF(Assumptions!$D$27<>0,DD76/Assumptions!$D$27*Thousand,0) -> 0 | DE85: =IF(Assumptions!$D$27<>0,DE76/Assumptions!$D$27*Thousand,0) -> 0 | DF85: =IF(Assumptions!$D$27<>0,DF76/Assumptions!$D$27*Thousand,0) -> 0
B86: Total Indicative Access Fee | C86: AUD$'000/MW | I86: =SUM(K86:DF86) -> 71.52380207 | K86: =SUM(K83:K85) -> 0 | L86: =SUM(L83:L85) -> 0 | M86: =SUM(M83:M85) -> 0 | N86: =SUM(N83:N85) -> 0 | O86: =SUM(O83:O85) -> 0 | P86: =SUM(P83:P85) -> 0.7174292391 | Q86: 1.076890625 | R86: 1.083558997 | S86: 1.090268661 | T86: 1.097019873 | U86: 1.103812891 | V86: 1.110647972 | W86: 1.117525378 | X86: 1.12444537 | Y86: 1.131408213 | Z86: 1.138414171 | AA86: 1.145463512 | AB86: 1.152556504 | AC86: 1.159693418 | AD86: 1.166874526 | AE86: 1.1741001 | AF86: 1.181370417 | AG86: 1.188685754 | AH86: 1.196046389 | AI86: 1.203452603 | AJ86: 1.210904677 | AK86: 1.218402898 | AL86: 1.225947548 | AM86: 1.233538918 | AN86: 1.241177294 | AO86: 1.24886297 | AP86: 1.256596237 | AQ86: 1.264377391 | AR86: 1.272206727 | AS86: 1.280084544 | AT86: 1.288011143 | AU86: 1.295986825 | AV86: 1.304011895 | AW86: 1.312086658 | AX86: 1.320211422 | AY86: 1.328386496 | AZ86: 1.336612192 | BA86: 1.344888824 | BB86: 1.353216707 | BC86: 1.361596158 | BD86: 1.370027497 | BE86: 1.378511045 | BF86: 1.387047125 | BG86: 1.395636062 | BH86: 1.404278185 | BI86: 1.412973821 | BJ86: 1.421723303 | BK86: 1.430526964 | BL86: 1.439385139 | BM86: 1.448298166 | BN86: 1.457266385 | BO86: 1.466290138 | BP86: 1.475369768 | BQ86: 1.484505621 | BR86: 1.493698045 | BS86: 1.502947391 | BT86: 0.4985452786 | BU86: 0 | BV86: 0 | BW86: 0 | BX86: 0 | BY86: 0 | BZ86: 0 | CA86: 0 | CB86: =SUM(CB83:CB85) -> 0 | CC86: 0 | CD86: 0 | CE86: 0 | CF86: 0 | CG86: 0 | CH86: 0 | CI86: 0 | CJ86: 0 | CK86: 0 | CL86: 0 | CM86: 0 | CN86: 0 | CO86: 0 | CP86: 0 | CQ86: 0 | CR86: 0 | CS86: 0 | CT86: 0 | CU86: 0 | CV86: 0 | CW86: 0 | CX86: 0 | CY86: 0 | CZ86: 0 | DA86: 0 | DB86: 0 | DC86: 0 | DD86: 0 | DE86: 0 | DF86: 0
B88: GST | C88: AUD$'000/MW | I88: =SUM(K88:DF88) -> 7.152380207 | K88: =K86*Assumptions!$D$45 -> 0 | L88: =L86*Assumptions!$D$45 -> 0 | M88: =M86*Assumptions!$D$45 -> 0 | N88: =N86*Assumptions!$D$45 -> 0 | O88: =O86*Assumptions!$D$45 -> 0 | P88: =P86*Assumptions!$D$45 -> 0.07174292391 | Q88: =Q86*Assumptions!$D$45 -> 0.1076890625 | R88: =R86*Assumptions!$D$45 -> 0.1083558997 | S88: =S86*Assumptions!$D$45 -> 0.1090268661 | T88: =T86*Assumptions!$D$45 -> 0.1097019873 | U88: =U86*Assumptions!$D$45 -> 0.1103812891 | V88: =V86*Assumptions!$D$45 -> 0.1110647972 | W88: =W86*Assumptions!$D$45 -> 0.1117525378 | X88: =X86*Assumptions!$D$45 -> 0.112444537 | Y88: =Y86*Assumptions!$D$45 -> 0.1131408213 | Z88: =Z86*Assumptions!$D$45 -> 0.1138414171 | AA88: =AA86*Assumptions!$D$45 -> 0.1145463512 | AB88: =AB86*Assumptions!$D$45 -> 0.1152556504 | AC88: =AC86*Assumptions!$D$45 -> 0.1159693418 | AD88: =AD86*Assumptions!$D$45 -> 0.1166874526 | AE88: =AE86*Assumptions!$D$45 -> 0.11741001 | AF88: =AF86*Assumptions!$D$45 -> 0.1181370417 | AG88: =AG86*Assumptions!$D$45 -> 0.1188685754 | AH88: =AH86*Assumptions!$D$45 -> 0.1196046389 | AI88: =AI86*Assumptions!$D$45 -> 0.1203452603 | AJ88: =AJ86*Assumptions!$D$45 -> 0.1210904677 | AK88: =AK86*Assumptions!$D$45 -> 0.1218402898 | AL88: =AL86*Assumptions!$D$45 -> 0.1225947548 | AM88: =AM86*Assumptions!$D$45 -> 0.1233538918 | AN88: =AN86*Assumptions!$D$45 -> 0.1241177294 | AO88: =AO86*Assumptions!$D$45 -> 0.124886297 | AP88: =AP86*Assumptions!$D$45 -> 0.1256596237 | AQ88: =AQ86*Assumptions!$D$45 -> 0.1264377391 | AR88: =AR86*Assumptions!$D$45 -> 0.1272206727 | AS88: =AS86*Assumptions!$D$45 -> 0.1280084544 | AT88: =AT86*Assumptions!$D$45 -> 0.1288011143 | AU88: =AU86*Assumptions!$D$45 -> 0.1295986825 | AV88: =AV86*Assumptions!$D$45 -> 0.1304011895 | AW88: =AW86*Assumptions!$D$45 -> 0.1312086658 | AX88: =AX86*Assumptions!$D$45 -> 0.1320211422 | AY88: =AY86*Assumptions!$D$45 -> 0.1328386496 | AZ88: =AZ86*Assumptions!$D$45 -> 0.1336612192 | BA88: =BA86*Assumptions!$D$45 -> 0.1344888824 | BB88: =BB86*Assumptions!$D$45 -> 0.1353216707 | BC88: =BC86*Assumptions!$D$45 -> 0.1361596158 | BD88: =BD86*Assumptions!$D$45 -> 0.1370027497 | BE88: =BE86*Assumptions!$D$45 -> 0.1378511045 | BF88: =BF86*Assumptions!$D$45 -> 0.1387047125 | BG88: =BG86*Assumptions!$D$45 -> 0.1395636062 | BH88: =BH86*Assumptions!$D$45 -> 0.1404278185 | BI88: =BI86*Assumptions!$D$45 -> 0.1412973821 | BJ88: =BJ86*Assumptions!$D$45 -> 0.1421723303 | BK88: =BK86*Assumptions!$D$45 -> 0.1430526964 | BL88: =BL86*Assumptions!$D$45 -> 0.1439385139 | BM88: =BM86*Assumptions!$D$45 -> 0.1448298166 | BN88: =BN86*Assumptions!$D$45 -> 0.1457266385 | BO88: =BO86*Assumptions!$D$45 -> 0.1466290138 | BP88: =BP86*Assumptions!$D$45 -> 0.1475369768 | BQ88: =BQ86*Assumptions!$D$45 -> 0.1484505621 | BR88: =BR86*Assumptions!$D$45 -> 0.1493698045 | BS88: =BS86*Assumptions!$D$45 -> 0.1502947391 | BT88: =BT86*Assumptions!$D$45 -> 0.04985452786 | BU88: =BU86*Assumptions!$D$45 -> 0 | BV88: =BV86*Assumptions!$D$45 -> 0 | BW88: =BW86*Assumptions!$D$45 -> 0 | BX88: =BX86*Assumptions!$D$45 -> 0 | BY88: =BY86*Assumptions!$D$45 -> 0 | BZ88: =BZ86*Assumptions!$D$45 -> 0 | CA88: =CA86*Assumptions!$D$45 -> 0 | CB88: =CB86*Assumptions!$D$45 -> 0 | CC88: =CC86*Assumptions!$D$45 -> 0 | CD88: =CD86*Assumptions!$D$45 -> 0 | CE88: =CE86*Assumptions!$D$45 -> 0 | CF88: =CF86*Assumptions!$D$45 -> 0 | CG88: =CG86*Assumptions!$D$45 -> 0 | CH88: =CH86*Assumptions!$D$45 -> 0 | CI88: =CI86*Assumptions!$D$45 -> 0 | CJ88: =CJ86*Assumptions!$D$45 -> 0 | CK88: =CK86*Assumptions!$D$45 -> 0 | CL88: =CL86*Assumptions!$D$45 -> 0 | CM88: =CM86*Assumptions!$D$45 -> 0 | CN88: =CN86*Assumptions!$D$45 -> 0 | CO88: =CO86*Assumptions!$D$45 -> 0 | CP88: =CP86*Assumptions!$D$45 -> 0 | CQ88: =CQ86*Assumptions!$D$45 -> 0 | CR88: =CR86*Assumptions!$D$45 -> 0 | CS88: =CS86*Assumptions!$D$45 -> 0 | CT88: =CT86*Assumptions!$D$45 -> 0 | CU88: =CU86*Assumptions!$D$45 -> 0 | CV88: =CV86*Assumptions!$D$45 -> 0 | CW88: =CW86*Assumptions!$D$45 -> 0 | CX88: =CX86*Assumptions!$D$45 -> 0 | CY88: =CY86*Assumptions!$D$45 -> 0 | CZ88: =CZ86*Assumptions!$D$45 -> 0 | DA88: =DA86*Assumptions!$D$45 -> 0 | DB88: =DB86*Assumptions!$D$45 -> 0 | DC88: =DC86*Assumptions!$D$45 -> 0 | DD88: =DD86*Assumptions!$D$45 -> 0 | DE88: =DE86*Assumptions!$D$45 -> 0 | DF88: =DF86*Assumptions!$D$45 -> 0
B89: Total incl GST | C89: AUD$'000/MW | I89: =SUM(K89:DF89) -> 78.67618228 | K89: =SUM(K86,K88) -> 0 | L89: =SUM(L86,L88) -> 0 | M89: =SUM(M86,M88) -> 0 | N89: =SUM(N86,N88) -> 0 | O89: =SUM(O86,O88) -> 0 | P89: 0.789172163 | Q89: 1.184579687 | R89: 1.191914897 | S89: 1.199295527 | T89: 1.206721861 | U89: 1.21419418 | V89: 1.221712769 | W89: 1.229277916 | X89: 1.236889907 | Y89: 1.244549034 | Z89: 1.252255588 | AA89: 1.260009863 | AB89: 1.267812155 | AC89: 1.27566276 | AD89: 1.283561978 | AE89: 1.29151011 | AF89: 1.299507459 | AG89: 1.307554329 | AH89: 1.315651028 | AI89: 1.323797863 | AJ89: 1.331995145 | AK89: 1.340243187 | AL89: 1.348542303 | AM89: 1.356892809 | AN89: 1.365295024 | AO89: 1.373749267 | AP89: 1.382255861 | AQ89: 1.39081513 | AR89: 1.399427399 | AS89: 1.408092999 | AT89: 1.416812257 | AU89: =SUM(AU86,AU88) -> 1.425585508 | AV89: 1.434413084 | AW89: 1.443295324 | AX89: 1.452232564 | AY89: 1.461225146 | AZ89: 1.470273412 | BA89: 1.479377707 | BB89: 1.488538378 | BC89: 1.497755774 | BD89: 1.507030247 | BE89: 1.516362149 | BF89: 1.525751837 | BG89: 1.535199668 | BH89: 1.544706003 | BI89: 1.554271203 | BJ89: 1.563895633 | BK89: 1.57357966 | BL89: 1.583323653 | BM89: 1.593127983 | BN89: 1.602993024 | BO89: 1.612919152 | BP89: 1.622906744 | BQ89: 1.632956183 | BR89: 1.64306785 | BS89: 1.653242131 | BT89: 0.5483998065 | BU89: 0 | BV89: 0 | BW89: 0 | BX89: 0 | BY89: 0 | BZ89: 0 | CA89: =SUM(CA86,CA88) -> 0 | CB89: 0 | CC89: 0 | CD89: 0 | CE89: 0 | CF89: 0 | CG89: 0 | CH89: 0 | CI89: 0 | CJ89: 0 | CK89: 0 | CL89: 0 | CM89: 0 | CN89: 0 | CO89: 0 | CP89: 0 | CQ89: 0 | CR89: 0 | CS89: 0 | CT89: 0 | CU89: 0 | CV89: 0 | CW89: 0 | CX89: 0 | CY89: 0 | CZ89: 0 | DA89: 0 | DB89: 0 | DC89: 0 | DD89: 0 | DE89: 0 | DF89: 0
A91: END

Sheet Fee Schedule - Annual
A1: =MdlTtl -> SW REZ - DRAFT - Access Fee Calculator
A2: =_xlfn.SHEET() -> 6 | B2: =_xlfn.TEXTAFTER(CELL("filename",A1),"]") -> Fee Schedule - Annual
B3: Initial Access Fee Schedule | F3: Sum Chks
F4: =SUM(F63) -> 0
A6: All Checks are OK
B8: Annexure A Initial Access Fee Schedule
B9: Annual fees in AUD$m nominal (including GST)
B10: GST Included: | C10: =Assumptions!D44 -> 1
B11: Project: | C11: =Assumptions!D24 -> [Insert Project Name]
B12: Date (annual) | C12: C&E Fee ($m) | D12: SW REZ Administration Fee ($m) | E12: Contribution to the NSW Electricity Infrastructure Roadmap ($m) | F12: Total Access Fee ($m)
B13: =Calculations!$K$16 -> 2026 | C13: =SUMIF(Calculations!$K$16:$DF$16,$B13, Calculations!$K$74:$DF$74)*(1+Assumptions!$D$45) -> 0 | D13: =SUMIF(Calculations!$K$16:$DF$16,$B13,Calculations!$K$75:$DF$75)*(1+Assumptions!$D$45) -> 0 | E13: =SUMIF(Calculations!$K$16:$DF$16,$B13, Calculations!$K$76:$DF$76)*(1+Assumptions!$D$45) -> 0 | F13: =SUM(C13:E13) -> 0
B14: =B13+1 -> 2027 | C14: =SUMIF(Calculations!$K$16:$DF$16,$B14, Calculations!$K$74:$DF$74)*(1+Assumptions!$D$45) -> 0.2268869969 | D14: =SUMIF(Calculations!$K$16:$DF$16,$B14,Calculations!$K$75:$DF$75)*(1+Assumptions!$D$45) -> 0.06816474558 | E14: =SUMIF(Calculations!$K$16:$DF$16,$B14, Calculations!$K$76:$DF$76)*(1+Assumptions!$D$45) -> 0.09953433906 | F14: =SUM(C14:E14) -> 0.3945860815
B15: =B14+1 -> 2028 | C15: =SUMIF(Calculations!$K$16:$DF$16,$B15, Calculations!$K$74:$DF$74)*(1+Assumptions!$D$45) -> 1.374972192 | D15: =SUMIF(Calculations!$K$16:$DF$16,$B15,Calculations!$K$75:$DF$75)*(1+Assumptions!$D$45) -> 0.4130894716 | E15: =SUMIF(Calculations!$K$16:$DF$16,$B15, Calculations!$K$76:$DF$76)*(1+Assumptions!$D$45) -> 0.6031943225 | F15: 2.391255986
B16: =B15+1 -> 2029 | C16: =SUMIF(Calculations!$K$16:$DF$16,$B16, Calculations!$K$74:$DF$74)*(1+Assumptions!$D$45) -> 1.409346497 | D16: =SUMIF(Calculations!$K$16:$DF$16,$B16,Calculations!$K$75:$DF$75)*(1+Assumptions!$D$45) -> 0.4234167084 | E16: =SUMIF(Calculations!$K$16:$DF$16,$B16, Calculations!$K$76:$DF$76)*(1+Assumptions!$D$45) -> 0.6182741806 | F16: 2.451037386
B17: 2030 | C17: =SUMIF(Calculations!$K$16:$DF$16,$B17, Calculations!$K$74:$DF$74)*(1+Assumptions!$D$45) -> 1.444580159 | D17: =SUMIF(Calculations!$K$16:$DF$16,$B17,Calculations!$K$75:$DF$75)*(1+Assumptions!$D$45) -> 0.4340021261 | E17: =SUMIF(Calculations!$K$16:$DF$16,$B17, Calculations!$K$76:$DF$76)*(1+Assumptions!$D$45) -> 0.6337310351 | F17: 2.51231332
B18: 2031 | C18: =SUMIF(Calculations!$K$16:$DF$16,$B18, Calculations!$K$74:$DF$74)*(1+Assumptions!$D$45) -> 1.480694663 | D18: =SUMIF(Calculations!$K$16:$DF$16,$B18,Calculations!$K$75:$DF$75)*(1+Assumptions!$D$45) -> 0.4448521793 | E18: =SUMIF(Calculations!$K$16:$DF$16,$B18, Calculations!$K$76:$DF$76)*(1+Assumptions!$D$45) -> 0.649574311 | F18: 2.575121153
B19: 2032 | C19: =SUMIF(Calculations!$K$16:$DF$16,$B19, Calculations!$K$74:$DF$74)*(1+Assumptions!$D$45) -> 1.51771203 | D19: =SUMIF(Calculations!$K$16:$DF$16,$B19,Calculations!$K$75:$DF$75)*(1+Assumptions!$D$45) -> 0.4559734837 | E19: =SUMIF(Calculations!$K$16:$DF$16,$B19, Calculations!$K$76:$DF$76)*(1+Assumptions!$D$45) -> 0.6658136687 | F19: 2.639499182
B20: 2033 | C20: =SUMIF(Calculations!$K$16:$DF$16,$B20, Calculations!$K$74:$DF$74)*(1+Assumptions!$D$45) -> 1.555654831 | D20: =SUMIF(Calculations!$K$16:$DF$16,$B20,Calculations!$K$75:$DF$75)*(1+Assumptions!$D$45) -> 0.4673728208 | E20: =SUMIF(Calculations!$K$16:$DF$16,$B20, Calculations!$K$76:$DF$76)*(1+Assumptions!$D$45) -> 0.6824590104 | F20: 2.705486662
B21: 2034 | C21: =SUMIF(Calculations!$K$16:$DF$16,$B21, Calculations!$K$74:$DF$74)*(1+Assumptions!$D$45) -> 1.594546201 | D21: =SUMIF(Calculations!$K$16:$DF$16,$B21,Calculations!$K$75:$DF$75)*(1+Assumptions!$D$45) -> 0.4790571414 | E21: =SUMIF(Calculations!$K$16:$DF$16,$B21, Calculations!$K$76:$DF$76)*(1+Assumptions!$D$45) -> 0.6995204857 | F21: 2.773123828
B22: 2035 | C22: =SUMIF(Calculations!$K$16:$DF$16,$B22, Calculations!$K$74:$DF$74)*(1+Assumptions!$D$45) -> 1.634409856 | D22: =SUMIF(Calculations!$K$16:$DF$16,$B22,Calculations!$K$75:$DF$75)*(1+Assumptions!$D$45) -> 0.4910335699 | E22: =SUMIF(Calculations!$K$16:$DF$16,$B22, Calculations!$K$76:$DF$76)*(1+Assumptions!$D$45) -> 0.7170084978 | F22: 2.842451924
B23: 2036 | C23: =SUMIF(Calculations!$K$16:$DF$16,$B23, Calculations!$K$74:$DF$74)*(1+Assumptions!$D$45) -> 1.675270103 | D23: =SUMIF(Calculations!$K$16:$DF$16,$B23,Calculations!$K$75:$DF$75)*(1+Assumptions!$D$45) -> 0.5033094091 | E23: =SUMIF(Calculations!$K$16:$DF$16,$B23, Calculations!$K$76:$DF$76)*(1+Assumptions!$D$45) -> 0.7349337103 | F23: 2.913513222
B24: 2037 | C24: =SUMIF(Calculations!$K$16:$DF$16,$B24, Calculations!$K$74:$DF$74)*(1+Assumptions!$D$45) -> 1.717151855 | D24: =SUMIF(Calculations!$K$16:$DF$16,$B24,Calculations!$K$75:$DF$75)*(1+Assumptions!$D$45) -> 0.5158921444 | E24: =SUMIF(Calculations!$K$16:$DF$16,$B24, Calculations!$K$76:$DF$76)*(1+Assumptions!$D$45) -> 0.7533070531 | F24: 2.986351053
B25: 2038 | C25: =SUMIF(Calculations!$K$16:$DF$16,$B25, Calculations!$K$74:$DF$74)*(1+Assumptions!$D$45) -> 1.760080652 | D25: =SUMIF(Calculations!$K$16:$DF$16,$B25,Calculations!$K$75:$DF$75)*(1+Assumptions!$D$45) -> 0.528789448 | E25: =SUMIF(Calculations!$K$16:$DF$16,$B25, Calculations!$K$76:$DF$76)*(1+Assumptions!$D$45) -> 0.7721397294 | F25: 3.061009829
B26: 2039 | C26: =SUMIF(Calculations!$K$16:$DF$16,$B26, Calculations!$K$74:$DF$74)*(1+Assumptions!$D$45) -> 1.804082668 | D26: =SUMIF(Calculations!$K$16:$DF$16,$B26,Calculations!$K$75:$DF$75)*(1+Assumptions!$D$45) -> 0.5420091842 | E26: =SUMIF(Calculations!$K$16:$DF$16,$B26, Calculations!$K$76:$DF$76)*(1+Assumptions!$D$45) -> 0.7914432226 | F26: 3.137535075
B27: 2040 | C27: =SUMIF(Calculations!$K$16:$DF$16,$B27, Calculations!$K$74:$DF$74)*(1+Assumptions!$D$45) -> 1.849184735 | D27: =SUMIF(Calculations!$K$16:$DF$16,$B27,Calculations!$K$75:$DF$75)*(1+Assumptions!$D$45) -> 0.5555594138 | E27: =SUMIF(Calculations!$K$16:$DF$16,$B27, Calculations!$K$76:$DF$76)*(1+Assumptions!$D$45) -> 0.8112293032 | F27: 3.215973452
B28: =B27+1 -> 2041 | C28: =SUMIF(Calculations!$K$16:$DF$16,$B28, Calculations!$K$74:$DF$74)*(1+Assumptions!$D$45) -> 1.574828966 | D28: =SUMIF(Calculations!$K$16:$DF$16,$B28,Calculations!$K$75:$DF$75)*(1+Assumptions!$D$45) -> 0.4731333981 | E28: =SUMIF(Calculations!$K$16:$DF$16,$B28, Calculations!$K$76:$DF$76)*(1+Assumptions!$D$45) -> 0.6908706204 | F28: 2.738832985
B29: =B28+1 -> 2042 | C29: =SUMIF(Calculations!$K$16:$DF$16,$B29, Calculations!$K$74:$DF$74)*(1+Assumptions!$D$45) -> 0 | D29: =SUMIF(Calculations!$K$16:$DF$16,$B29,Calculations!$K$75:$DF$75)*(1+Assumptions!$D$45) -> 0 | E29: =SUMIF(Calculations!$K$16:$DF$16,$B29, Calculations!$K$76:$DF$76)*(1+Assumptions!$D$45) -> 0 | F29: 0
B30: 2043 | C30: =SUMIF(Calculations!$K$16:$DF$16,$B30, Calculations!$K$74:$DF$74)*(1+Assumptions!$D$45) -> 0 | D30: =SUMIF(Calculations!$K$16:$DF$16,$B30,Calculations!$K$75:$DF$75)*(1+Assumptions!$D$45) -> 0 | E30: =SUMIF(Calculations!$K$16:$DF$16,$B30, Calculations!$K$76:$DF$76)*(1+Assumptions!$D$45) -> 0 | F30: 0
B31: 2044 | C31: =SUMIF(Calculations!$K$16:$DF$16,$B31, Calculations!$K$74:$DF$74)*(1+Assumptions!$D$45) -> 0 | D31: =SUMIF(Calculations!$K$16:$DF$16,$B31,Calculations!$K$75:$DF$75)*(1+Assumptions!$D$45) -> 0 | E31: =SUMIF(Calculations!$K$16:$DF$16,$B31, Calculations!$K$76:$DF$76)*(1+Assumptions!$D$45) -> 0 | F31: 0
B32: 2045 | C32: =SUMIF(Calculations!$K$16:$DF$16,$B32, Calculations!$K$74:$DF$74)*(1+Assumptions!$D$45) -> 0 | D32: =SUMIF(Calculations!$K$16:$DF$16,$B32,Calculations!$K$75:$DF$75)*(1+Assumptions!$D$45) -> 0 | E32: =SUMIF(Calculations!$K$16:$DF$16,$B32, Calculations!$K$76:$DF$76)*(1+Assumptions!$D$45) -> 0 | F32: 0
B33: 2046 | C33: =SUMIF(Calculations!$K$16:$DF$16,$B33, Calculations!$K$74:$DF$74)*(1+Assumptions!$D$45) -> 0 | D33: =SUMIF(Calculations!$K$16:$DF$16,$B33,Calculations!$K$75:$DF$75)*(1+Assumptions!$D$45) -> 0 | E33: =SUMIF(Calculations!$K$16:$DF$16,$B33, Calculations!$K$76:$DF$76)*(1+Assumptions!$D$45) -> 0 | F33: 0
B34: 2047 | C34: =SUMIF(Calculations!$K$16:$DF$16,$B34, Calculations!$K$74:$DF$74)*(1+Assumptions!$D$45) -> 0 | D34: =SUMIF(Calculations!$K$16:$DF$16,$B34,Calculations!$K$75:$DF$75)*(1+Assumptions!$D$45) -> 0 | E34: =SUMIF(Calculations!$K$16:$DF$16,$B34, Calculations!$K$76:$DF$76)*(1+Assumptions!$D$45) -> 0 | F34: 0
B35: 2048 | C35: =SUMIF(Calculations!$K$16:$DF$16,$B35, Calculations!$K$74:$DF$74)*(1+Assumptions!$D$45) -> 0 | D35: =SUMIF(Calculations!$K$16:$DF$16,$B35,Calculations!$K$75:$DF$75)*(1+Assumptions!$D$45) -> 0 | E35: =SUMIF(Calculations!$K$16:$DF$16,$B35, Calculations!$K$76:$DF$76)*(1+Assumptions!$D$45) -> 0 | F35: 0
B36: 2049 | C36: =SUMIF(Calculations!$K$16:$DF$16,$B36, Calculations!$K$74:$DF$74)*(1+Assumptions!$D$45) -> 0 | D36: =SUMIF(Calculations!$K$16:$DF$16,$B36,Calculations!$K$75:$DF$75)*(1+Assumptions!$D$45) -> 0 | E36: =SUMIF(Calculations!$K$16:$DF$16,$B36, Calculations!$K$76:$DF$76)*(1+Assumptions!$D$45) -> 0 | F36: 0
B37: Total Amount over the Payment Term | C37: =SUM(C13:C36) -> 22.6194024 | D37: =SUM(D13:D36) -> 6.795655244 | E37: =SUM(E13:E36) -> 9.92303349 | F37: =SUM(F13:F36) -> 39.33809114
B39: Access Fee Profile over Payment Term (AUD$m p.a. nominal excl. GST)
B63: Checks | F63: =N(ABS(F37-Calculations!$I$80)>=Tolerance1) -> 0
A65: END

Sheet Fee Schedule - QTR
A1: =MdlTtl -> SW REZ - DRAFT - Access Fee Calculator
A2: =_xlfn.SHEET() -> 7 | B2: =_xlfn.TEXTAFTER(CELL("filename",A1),"]") -> Fee Schedule - QTR
B3: Initial Access Fee Schedule | F3: Sum Chks
F4: =SUM(F115) -> 0
A6: All Checks are OK
B8: Annexure A Initial Access Fee Schedule
B9: Quarterly fees in AUD$M nominal (including GST)
B10: GST Included: | C10: =Assumptions!D44 -> 1
B11: Project: | C11: =Assumptions!D24 -> [Insert Project Name]
B12: Date (quarterly) | C12: C&E Fee ($m) | D12: SW REZ Administration Fee ($m) | E12: Contribution to the NSW Electricity Infrastructure Roadmap ($m) | F12: Total Access Fee ($m)
B13: =Calculations!$K$2 -> 2026-03-31 | C13: =SUMIF(Calculations!$K$2:$DF$2,$B13, Calculations!$K$74:$DF$74)*(1+Assumptions!$D$45) -> 0 | D13: =SUMIF(Calculations!$K$2:$DF$2,$B13, Calculations!$K$75:$DF$75)*(1+Assumptions!$D$45) -> 0 | E13: =SUMIF(Calculations!$K$2:$DF$2,$B13, Calculations!$K$76:$DF$76)*(1+Assumptions!$D$45) -> 0 | F13: =SUM(C13:E13) -> 0
B14: =EOMONTH(B13,MiP) -> 2026-06-30 | C14: =SUMIF(Calculations!$K$2:$DF$2,$B14, Calculations!$K$74:$DF$74)*(1+Assumptions!$D$45) -> 0 | D14: =SUMIF(Calculations!$K$2:$DF$2,$B14, Calculations!$K$75:$DF$75)*(1+Assumptions!$D$45) -> 0 | E14: =SUMIF(Calculations!$K$2:$DF$2,$B14, Calculations!$K$76:$DF$76)*(1+Assumptions!$D$45) -> 0 | F14: =SUM(C14:E14) -> 0
B15: 2026-09-30 | C15: =SUMIF(Calculations!$K$2:$DF$2,$B15, Calculations!$K$74:$DF$74)*(1+Assumptions!$D$45) -> 0 | D15: =SUMIF(Calculations!$K$2:$DF$2,$B15, Calculations!$K$75:$DF$75)*(1+Assumptions!$D$45) -> 0 | E15: =SUMIF(Calculations!$K$2:$DF$2,$B15, Calculations!$K$76:$DF$76)*(1+Assumptions!$D$45) -> 0 | F15: =SUM(C15:E15) -> 0
B16: 2026-12-31 | C16: =SUMIF(Calculations!$K$2:$DF$2,$B16, Calculations!$K$74:$DF$74)*(1+Assumptions!$D$45) -> 0 | D16: =SUMIF(Calculations!$K$2:$DF$2,$B16, Calculations!$K$75:$DF$75)*(1+Assumptions!$D$45) -> 0 | E16: =SUMIF(Calculations!$K$2:$DF$2,$B16, Calculations!$K$76:$DF$76)*(1+Assumptions!$D$45) -> 0 | F16: =SUM(C16:E16) -> 0
B17: 2027-03-31 | C17: =SUMIF(Calculations!$K$2:$DF$2,$B17, Calculations!$K$74:$DF$74)*(1+Assumptions!$D$45) -> 0 | D17: =SUMIF(Calculations!$K$2:$DF$2,$B17, Calculations!$K$75:$DF$75)*(1+Assumptions!$D$45) -> 0 | E17: =SUMIF(Calculations!$K$2:$DF$2,$B17, Calculations!$K$76:$DF$76)*(1+Assumptions!$D$45) -> 0 | F17: =SUM(C17:E17) -> 0
B18: 2027-06-30 | C18: =SUMIF(Calculations!$K$2:$DF$2,$B18, Calculations!$K$74:$DF$74)*(1+Assumptions!$D$45) -> 0.2268869969 | D18: =SUMIF(Calculations!$K$2:$DF$2,$B18, Calculations!$K$75:$DF$75)*(1+Assumptions!$D$45) -> 0.06816474558 | E18: =SUMIF(Calculations!$K$2:$DF$2,$B18, Calculations!$K$76:$DF$76)*(1+Assumptions!$D$45) -> 0.09953433906 | F18: =SUM(C18:E18) -> 0.3945860815
B19: 2027-09-30 | C19: =SUMIF(Calculations!$K$2:$DF$2,$B19, Calculations!$K$74:$DF$74)*(1+Assumptions!$D$45) -> 0.3405666602 | D19: =SUMIF(Calculations!$K$2:$DF$2,$B19, Calculations!$K$75:$DF$75)*(1+Assumptions!$D$45) -> 0.1023180705 | E19: =SUMIF(Calculations!$K$2:$DF$2,$B19, Calculations!$K$76:$DF$76)*(1+Assumptions!$D$45) -> 0.1494051131 | F19: 0.5922898438
B20: 2027-12-31 | C20: =SUMIF(Calculations!$K$2:$DF$2,$B20, Calculations!$K$74:$DF$74)*(1+Assumptions!$D$45) -> 0.3426755328 | D20: =SUMIF(Calculations!$K$2:$DF$2,$B20, Calculations!$K$75:$DF$75)*(1+Assumptions!$D$45) -> 0.1029516492 | E20: =SUMIF(Calculations!$K$2:$DF$2,$B20, Calculations!$K$76:$DF$76)*(1+Assumptions!$D$45) -> 0.1503302663 | F20: 0.5959574484
B21: 2028-03-31 | C21: =SUMIF(Calculations!$K$2:$DF$2,$B21, Calculations!$K$74:$DF$74)*(1+Assumptions!$D$45) -> 0.3447974641 | D21: =SUMIF(Calculations!$K$2:$DF$2,$B21, Calculations!$K$75:$DF$75)*(1+Assumptions!$D$45) -> 0.1035891512 | E21: =SUMIF(Calculations!$K$2:$DF$2,$B21, Calculations!$K$76:$DF$76)*(1+Assumptions!$D$45) -> 0.1512611484 | F21: 0.5996477637
B22: 2028-06-30 | C22: =SUMIF(Calculations!$K$2:$DF$2,$B22, Calculations!$K$74:$DF$74)*(1+Assumptions!$D$45) -> 0.3469325349 | D22: =SUMIF(Calculations!$K$2:$DF$2,$B22, Calculations!$K$75:$DF$75)*(1+Assumptions!$D$45) -> 0.1042306007 | E22: =SUMIF(Calculations!$K$2:$DF$2,$B22, Calculations!$K$76:$DF$76)*(1+Assumptions!$D$45) -> 0.1521977947 | F22: 0.6033609303
B23: 2028-09-30 | C23: =SUMIF(Calculations!$K$2:$DF$2,$B23, Calculations!$K$74:$DF$74)*(1+Assumptions!$D$45) -> 0.3490808267 | D23: =SUMIF(Calculations!$K$2:$DF$2,$B23, Calculations!$K$75:$DF$75)*(1+Assumptions!$D$45) -> 0.1048760223 | E23: =SUMIF(Calculations!$K$2:$DF$2,$B23, Calculations!$K$76:$DF$76)*(1+Assumptions!$D$45) -> 0.1531402409 | F23: 0.6070970898
B24: 2028-12-31 | C24: =SUMIF(Calculations!$K$2:$DF$2,$B24, Calculations!$K$74:$DF$74)*(1+Assumptions!$D$45) -> 0.3512424211 | D24: =SUMIF(Calculations!$K$2:$DF$2,$B24, Calculations!$K$75:$DF$75)*(1+Assumptions!$D$45) -> 0.1055254404 | E24: =SUMIF(Calculations!$K$2:$DF$2,$B24, Calculations!$K$76:$DF$76)*(1+Assumptions!$D$45) -> 0.154088523 | F24: 0.6108563846
B25: 2029-03-31 | C25: =SUMIF(Calculations!$K$2:$DF$2,$B25, Calculations!$K$74:$DF$74)*(1+Assumptions!$D$45) -> 0.3534174007 | D25: =SUMIF(Calculations!$K$2:$DF$2,$B25, Calculations!$K$75:$DF$75)*(1+Assumptions!$D$45) -> 0.10617888 | E25: =SUMIF(Calculations!$K$2:$DF$2,$B25, Calculations!$K$76:$DF$76)*(1+Assumptions!$D$45) -> 0.1550426771 | F25: 0.6146389578
B26: 2029-06-30 | C26: =SUMIF(Calculations!$K$2:$DF$2,$B26, Calculations!$K$74:$DF$74)*(1+Assumptions!$D$45) -> 0.3556058483 | D26: =SUMIF(Calculations!$K$2:$DF$2,$B26, Calculations!$K$75:$DF$75)*(1+Assumptions!$D$45) -> 0.1068363657 | E26: =SUMIF(Calculations!$K$2:$DF$2,$B26, Calculations!$K$76:$DF$76)*(1+Assumptions!$D$45) -> 0.1560027395 | F26: 0.6184449536
B27: 2029-09-30 | C27: =SUMIF(Calculations!$K$2:$DF$2,$B27, Calculations!$K$74:$DF$74)*(1+Assumptions!$D$45) -> 0.3578078473 | D27: =SUMIF(Calculations!$K$2:$DF$2,$B27, Calculations!$K$75:$DF$75)*(1+Assumptions!$D$45) -> 0.1074979228 | E27: =SUMIF(Calculations!$K$2:$DF$2,$B27, Calculations!$K$76:$DF$76)*(1+Assumptions!$D$45) -> 0.1569687469 | F27: 0.6222745171
B28: 2029-12-31 | C28: =SUMIF(Calculations!$K$2:$DF$2,$B28, Calculations!$K$74:$DF$74)*(1+Assumptions!$D$45) -> 0.3600234817 | D28: =SUMIF(Calculations!$K$2:$DF$2,$B28, Calculations!$K$75:$DF$75)*(1+Assumptions!$D$45) -> 0.1081635764 | E28: =SUMIF(Calculations!$K$2:$DF$2,$B28, Calculations!$K$76:$DF$76)*(1+Assumptions!$D$45) -> 0.1579407361 | F28: 0.6261277942
B29: 2030-03-31 | C29: =SUMIF(Calculations!$K$2:$DF$2,$B29, Calculations!$K$74:$DF$74)*(1+Assumptions!$D$45) -> 0.3622528357 | D29: =SUMIF(Calculations!$K$2:$DF$2,$B29, Calculations!$K$75:$DF$75)*(1+Assumptions!$D$45) -> 0.108833352 | E29: =SUMIF(Calculations!$K$2:$DF$2,$B29, Calculations!$K$76:$DF$76)*(1+Assumptions!$D$45) -> 0.158918744 | F29: 0.6300049317
B30: 2030-06-30 | C30: =SUMIF(Calculations!$K$2:$DF$2,$B30, Calculations!$K$74:$DF$74)*(1+Assumptions!$D$45) -> 0.3644959945 | D30: =SUMIF(Calculations!$K$2:$DF$2,$B30, Calculations!$K$75:$DF$75)*(1+Assumptions!$D$45) -> 0.1095072749 | E30: =SUMIF(Calculations!$K$2:$DF$2,$B30, Calculations!$K$76:$DF$76)*(1+Assumptions!$D$45) -> 0.159902808 | F30: 0.6339060774
B31: 2030-09-30 | C31: =SUMIF(Calculations!$K$2:$DF$2,$B31, Calculations!$K$74:$DF$74)*(1+Assumptions!$D$45) -> 0.3667530435 | D31: =SUMIF(Calculations!$K$2:$DF$2,$B31, Calculations!$K$75:$DF$75)*(1+Assumptions!$D$45) -> 0.1101853709 | E31: =SUMIF(Calculations!$K$2:$DF$2,$B31, Calculations!$K$76:$DF$76)*(1+Assumptions!$D$45) -> 0.1608929656 | F31: 0.63783138
B32: 2030-12-31 | C32: =SUMIF(Calculations!$K$2:$DF$2,$B32, Calculations!$K$74:$DF$74)*(1+Assumptions!$D$45) -> 0.3690240687 | D32: =SUMIF(Calculations!$K$2:$DF$2,$B32, Calculations!$K$75:$DF$75)*(1+Assumptions!$D$45) -> 0.1108676659 | E32: =SUMIF(Calculations!$K$2:$DF$2,$B32, Calculations!$K$76:$DF$76)*(1+Assumptions!$D$45) -> 0.1618892545 | F32: 0.641780989
B33: 2031-03-31 | C33: =SUMIF(Calculations!$K$2:$DF$2,$B33, Calculations!$K$74:$DF$74)*(1+Assumptions!$D$45) -> 0.3713091566 | D33: =SUMIF(Calculations!$K$2:$DF$2,$B33, Calculations!$K$75:$DF$75)*(1+Assumptions!$D$45) -> 0.1115541858 | E33: =SUMIF(Calculations!$K$2:$DF$2,$B33, Calculations!$K$76:$DF$76)*(1+Assumptions!$D$45) -> 0.1628917126 | F33: 0.645755055
B34: 2031-06-30 | C34: =SUMIF(Calculations!$K$2:$DF$2,$B34, Calculations!$K$74:$DF$74)*(1+Assumptions!$D$45) -> 0.3736083944 | D34: =SUMIF(Calculations!$K$2:$DF$2,$B34, Calculations!$K$75:$DF$75)*(1+Assumptions!$D$45) -> 0.1122449567 | E34: =SUMIF(Calculations!$K$2:$DF$2,$B34, Calculations!$K$76:$DF$76)*(1+Assumptions!$D$45) -> 0.1639003782 | F34: 0.6497537294
B35: 2031-09-30 | C35: =SUMIF(Calculations!$K$2:$DF$2,$B35, Calculations!$K$74:$DF$74)*(1+Assumptions!$D$45) -> 0.3759218696 | D35: =SUMIF(Calculations!$K$2:$DF$2,$B35, Calculations!$K$75:$DF$75)*(1+Assumptions!$D$45) -> 0.1129400052 | E35: =SUMIF(Calculations!$K$2:$DF$2,$B35, Calculations!$K$76:$DF$76)*(1+Assumptions!$D$45) -> 0.1649152897 | F35: 0.6537771645
B36: 2031-12-31 | C36: =SUMIF(Calculations!$K$2:$DF$2,$B36, Calculations!$K$74:$DF$74)*(1+Assumptions!$D$45) -> 0.3782496704 | D36: =SUMIF(Calculations!$K$2:$DF$2,$B36, Calculations!$K$75:$DF$75)*(1+Assumptions!$D$45) -> 0.1136393575 | E36: =SUMIF(Calculations!$K$2:$DF$2,$B36, Calculations!$K$76:$DF$76)*(1+Assumptions!$D$45) -> 0.1659364858 | F36: 0.6578255138
B37: 2032-03-31 | C37: =SUMIF(Calculations!$K$2:$DF$2,$B37, Calculations!$K$74:$DF$74)*(1+Assumptions!$D$45) -> 0.3805918855 | D37: =SUMIF(Calculations!$K$2:$DF$2,$B37, Calculations!$K$75:$DF$75)*(1+Assumptions!$D$45) -> 0.1143430404 | E37: =SUMIF(Calculations!$K$2:$DF$2,$B37, Calculations!$K$76:$DF$76)*(1+Assumptions!$D$45) -> 0.1669640054 | F37: 0.6618989314
B38: 2032-06-30 | C38: =SUMIF(Calculations!$K$2:$DF$2,$B38, Calculations!$K$74:$DF$74)*(1+Assumptions!$D$45) -> 0.3829486042 | D38: =SUMIF(Calculations!$K$2:$DF$2,$B38, Calculations!$K$75:$DF$75)*(1+Assumptions!$D$45) -> 0.1150510807 | E38: =SUMIF(Calculations!$K$2:$DF$2,$B38, Calculations!$K$76:$DF$76)*(1+Assumptions!$D$45) -> 0.1679978877 | F38: 0.6659975726
B39: 2032-09-30 | C39: =SUMIF(Calculations!$K$2:$DF$2,$B39, Calculations!$K$74:$DF$74)*(1+Assumptions!$D$45) -> 0.3853199163 | D39: =SUMIF(Calculations!$K$2:$DF$2,$B39, Calculations!$K$75:$DF$75)*(1+Assumptions!$D$45) -> 0.1157635053 | E39: =SUMIF(Calculations!$K$2:$DF$2,$B39, Calculations!$K$76:$DF$76)*(1+Assumptions!$D$45) -> 0.169038172 | F39: 0.6701215936
B40: 2032-12-31 | C40: =SUMIF(Calculations!$K$2:$DF$2,$B40, Calculations!$K$74:$DF$74)*(1+Assumptions!$D$45) -> 0.3877059122 | D40: =SUMIF(Calculations!$K$2:$DF$2,$B40, Calculations!$K$75:$DF$75)*(1+Assumptions!$D$45) -> 0.1164803414 | E40: =SUMIF(Calculations!$K$2:$DF$2,$B40, Calculations!$K$76:$DF$76)*(1+Assumptions!$D$45) -> 0.170084898 | F40: 0.6742711516
B41: 2033-03-31 | C41: =SUMIF(Calculations!$K$2:$DF$2,$B41, Calculations!$K$74:$DF$74)*(1+Assumptions!$D$45) -> 0.3901066827 | D41: =SUMIF(Calculations!$K$2:$DF$2,$B41, Calculations!$K$75:$DF$75)*(1+Assumptions!$D$45) -> 0.1172016164 | E41: =SUMIF(Calculations!$K$2:$DF$2,$B41, Calculations!$K$76:$DF$76)*(1+Assumptions!$D$45) -> 0.1711381056 | F41: 0.6784464047
B42: 2033-06-30 | C42: =SUMIF(Calculations!$K$2:$DF$2,$B42, Calculations!$K$74:$DF$74)*(1+Assumptions!$D$45) -> 0.3925223194 | D42: =SUMIF(Calculations!$K$2:$DF$2,$B42, Calculations!$K$75:$DF$75)*(1+Assumptions!$D$45) -> 0.1179273577 | E42: =SUMIF(Calculations!$K$2:$DF$2,$B42, Calculations!$K$76:$DF$76)*(1+Assumptions!$D$45) -> 0.1721978349 | F42: 0.6826475119
B43: 2033-09-30 | C43: =SUMIF(Calculations!$K$2:$DF$2,$B43, Calculations!$K$74:$DF$74)*(1+Assumptions!$D$45) -> 0.3949529142 | D43: =SUMIF(Calculations!$K$2:$DF$2,$B43, Calculations!$K$75:$DF$75)*(1+Assumptions!$D$45) -> 0.1186575929 | E43: =SUMIF(Calculations!$K$2:$DF$2,$B43, Calculations!$K$76:$DF$76)*(1+Assumptions!$D$45) -> 0.1732641263 | F43: 0.6868746335
B44: 2033-12-31 | C44: =SUMIF(Calculations!$K$2:$DF$2,$B44, Calculations!$K$74:$DF$74)*(1+Assumptions!$D$45) -> 0.39739856 | D44: =SUMIF(Calculations!$K$2:$DF$2,$B44, Calculations!$K$75:$DF$75)*(1+Assumptions!$D$45) -> 0.11939235 | E44: =SUMIF(Calculations!$K$2:$DF$2,$B44, Calculations!$K$76:$DF$76)*(1+Assumptions!$D$45) -> 0.1743370204 | F44: 0.6911279304
B45: 2034-03-31 | C45: =SUMIF(Calculations!$K$2:$DF$2,$B45, Calculations!$K$74:$DF$74)*(1+Assumptions!$D$45) -> 0.3998593498 | D45: =SUMIF(Calculations!$K$2:$DF$2,$B45, Calculations!$K$75:$DF$75)*(1+Assumptions!$D$45) -> 0.1201316568 | E45: =SUMIF(Calculations!$K$2:$DF$2,$B45, Calculations!$K$76:$DF$76)*(1+Assumptions!$D$45) -> 0.1754165582 | F45: 0.6954075648
B46: =EOMONTH(B45,MiP) -> 2034-06-30 | C46: =SUMIF(Calculations!$K$2:$DF$2,$B46, Calculations!$K$74:$DF$74)*(1+Assumptions!$D$45) -> 0.4023353773 | D46: =SUMIF(Calculations!$K$2:$DF$2,$B46, Calculations!$K$75:$DF$75)*(1+Assumptions!$D$45) -> 0.1208755416 | E46: =SUMIF(Calculations!$K$2:$DF$2,$B46, Calculations!$K$76:$DF$76)*(1+Assumptions!$D$45) -> 0.1765027808 | F46: 0.6997136997
B47: 2034-09-30 | C47: =SUMIF(Calculations!$K$2:$DF$2,$B47, Calculations!$K$74:$DF$74)*(1+Assumptions!$D$45) -> 0.4048267371 | D47: =SUMIF(Calculations!$K$2:$DF$2,$B47, Calculations!$K$75:$DF$75)*(1+Assumptions!$D$45) -> 0.1216240328 | E47: =SUMIF(Calculations!$K$2:$DF$2,$B47, Calculations!$K$76:$DF$76)*(1+Assumptions!$D$45) -> 0.1775957295 | F47: 0.7040464993
B48: 2034-12-31 | C48: =SUMIF(Calculations!$K$2:$DF$2,$B48, Calculations!$K$74:$DF$74)*(1+Assumptions!$D$45) -> 0.407333524 | D48: =SUMIF(Calculations!$K$2:$DF$2,$B48, Calculations!$K$75:$DF$75)*(1+Assumptions!$D$45) -> 0.1223771587 | E48: =SUMIF(Calculations!$K$2:$DF$2,$B48, Calculations!$K$76:$DF$76)*(1+Assumptions!$D$45) -> 0.178695446 | F48: 0.7084061287
B49: 2035-03-31 | C49: =SUMIF(Calculations!$K$2:$DF$2,$B49, Calculations!$K$74:$DF$74)*(1+Assumptions!$D$45) -> 0.4098558335 | D49: =SUMIF(Calculations!$K$2:$DF$2,$B49, Calculations!$K$75:$DF$75)*(1+Assumptions!$D$45) -> 0.1231349482 | E49: =SUMIF(Calculations!$K$2:$DF$2,$B49, Calculations!$K$76:$DF$76)*(1+Assumptions!$D$45) -> 0.1798019722 | F49: 0.7127927539
B50: 2035-06-30 | C50: =SUMIF(Calculations!$K$2:$DF$2,$B50, Calculations!$K$74:$DF$74)*(1+Assumptions!$D$45) -> 0.4123937618 | D50: =SUMIF(Calculations!$K$2:$DF$2,$B50, Calculations!$K$75:$DF$75)*(1+Assumptions!$D$45) -> 0.1238974302 | E50: =SUMIF(Calculations!$K$2:$DF$2,$B50, Calculations!$K$76:$DF$76)*(1+Assumptions!$D$45) -> 0.1809153503 | F50: 0.7172065422
B51: 2035-09-30 | C51: =SUMIF(Calculations!$K$2:$DF$2,$B51, Calculations!$K$74:$DF$74)*(1+Assumptions!$D$45) -> 0.4149474055 | D51: =SUMIF(Calculations!$K$2:$DF$2,$B51, Calculations!$K$75:$DF$75)*(1+Assumptions!$D$45) -> 0.1246646336 | E51: =SUMIF(Calculations!$K$2:$DF$2,$B51, Calculations!$K$76:$DF$76)*(1+Assumptions!$D$45) -> 0.1820356227 | F51: 0.7216476618
B52: 2035-12-31 | C52: =SUMIF(Calculations!$K$2:$DF$2,$B52, Calculations!$K$74:$DF$74)*(1+Assumptions!$D$45) -> 0.4175168621 | D52: =SUMIF(Calculations!$K$2:$DF$2,$B52, Calculations!$K$75:$DF$75)*(1+Assumptions!$D$45) -> 0.1254365877 | E52: =SUMIF(Calculations!$K$2:$DF$2,$B52, Calculations!$K$76:$DF$76)*(1+Assumptions!$D$45) -> 0.1831628321 | F52: 0.7261162819
B53: 2036-03-31 | C53: =SUMIF(Calculations!$K$2:$DF$2,$B53, Calculations!$K$74:$DF$74)*(1+Assumptions!$D$45) -> 0.4201022293 | D53: =SUMIF(Calculations!$K$2:$DF$2,$B53, Calculations!$K$75:$DF$75)*(1+Assumptions!$D$45) -> 0.1262133219 | E53: =SUMIF(Calculations!$K$2:$DF$2,$B53, Calculations!$K$76:$DF$76)*(1+Assumptions!$D$45) -> 0.1842970215 | F53: 0.7306125728
B54: 2036-06-30 | C54: =SUMIF(Calculations!$K$2:$DF$2,$B54, Calculations!$K$74:$DF$74)*(1+Assumptions!$D$45) -> 0.4227036058 | D54: =SUMIF(Calculations!$K$2:$DF$2,$B54, Calculations!$K$75:$DF$75)*(1+Assumptions!$D$45) -> 0.1269948659 | E54: =SUMIF(Calculations!$K$2:$DF$2,$B54, Calculations!$K$76:$DF$76)*(1+Assumptions!$D$45) -> 0.185438234 | F54: 0.7351367058
B55: 2036-09-30 | C55: =SUMIF(Calculations!$K$2:$DF$2,$B55, Calculations!$K$74:$DF$74)*(1+Assumptions!$D$45) -> 0.4253210907 | D55: =SUMIF(Calculations!$K$2:$DF$2,$B55, Calculations!$K$75:$DF$75)*(1+Assumptions!$D$45) -> 0.1277812494 | E55: =SUMIF(Calculations!$K$2:$DF$2,$B55, Calculations!$K$76:$DF$76)*(1+Assumptions!$D$45) -> 0.1865865133 | F55: 0.7396888533
B56: 2036-12-31 | C56: =SUMIF(Calculations!$K$2:$DF$2,$B56, Calculations!$K$74:$DF$74)*(1+Assumptions!$D$45) -> 0.4279547836 | D56: =SUMIF(Calculations!$K$2:$DF$2,$B56, Calculations!$K$75:$DF$75)*(1+Assumptions!$D$45) -> 0.1285725024 | E56: =SUMIF(Calculations!$K$2:$DF$2,$B56, Calculations!$K$76:$DF$76)*(1+Assumptions!$D$45) -> 0.1877419029 | F56: 0.7442691889
B57: 2037-03-31 | C57: =SUMIF(Calculations!$K$2:$DF$2,$B57, Calculations!$K$74:$DF$74)*(1+Assumptions!$D$45) -> 0.4306047851 | D57: =SUMIF(Calculations!$K$2:$DF$2,$B57, Calculations!$K$75:$DF$75)*(1+Assumptions!$D$45) -> 0.129368655 | E57: =SUMIF(Calculations!$K$2:$DF$2,$B57, Calculations!$K$76:$DF$76)*(1+Assumptions!$D$45) -> 0.188904447 | F57: 0.7488778871
B58: 2037-06-30 | C58: =SUMIF(Calculations!$K$2:$DF$2,$B58, Calculations!$K$74:$DF$74)*(1+Assumptions!$D$45) -> 0.433271196 | D58: =SUMIF(Calculations!$K$2:$DF$2,$B58, Calculations!$K$75:$DF$75)*(1+Assumptions!$D$45) -> 0.1301697376 | E58: =SUMIF(Calculations!$K$2:$DF$2,$B58, Calculations!$K$76:$DF$76)*(1+Assumptions!$D$45) -> 0.1900741899 | F58: 0.7535151234
B59: 2037-09-30 | C59: =SUMIF(Calculations!$K$2:$DF$2,$B59, Calculations!$K$74:$DF$74)*(1+Assumptions!$D$45) -> 0.4359541179 | D59: =SUMIF(Calculations!$K$2:$DF$2,$B59, Calculations!$K$75:$DF$75)*(1+Assumptions!$D$45) -> 0.1309757806 | E59: =SUMIF(Calculations!$K$2:$DF$2,$B59, Calculations!$K$76:$DF$76)*(1+Assumptions!$D$45) -> 0.1912511761 | F59: 0.7581810747
B60: 2037-12-31 | C60: =SUMIF(Calculations!$K$2:$DF$2,$B60, Calculations!$K$74:$DF$74)*(1+Assumptions!$D$45) -> 0.4386536532 | D60: =SUMIF(Calculations!$K$2:$DF$2,$B60, Calculations!$K$75:$DF$75)*(1+Assumptions!$D$45) -> 0.1317868149 | E60: =SUMIF(Calculations!$K$2:$DF$2,$B60, Calculations!$K$76:$DF$76)*(1+Assumptions!$D$45) -> 0.1924354505 | F60: 0.7628759186
B61: 2038-03-31 | C61: =SUMIF(Calculations!$K$2:$DF$2,$B61, Calculations!$K$74:$DF$74)*(1+Assumptions!$D$45) -> 0.4413699047 | D61: =SUMIF(Calculations!$K$2:$DF$2,$B61, Calculations!$K$75:$DF$75)*(1+Assumptions!$D$45) -> 0.1326028714 | E61: =SUMIF(Calculations!$K$2:$DF$2,$B61, Calculations!$K$76:$DF$76)*(1+Assumptions!$D$45) -> 0.1936270582 | F61: 0.7675998342
B62: 2038-06-30 | C62: =SUMIF(Calculations!$K$2:$DF$2,$B62, Calculations!$K$74:$DF$74)*(1+Assumptions!$D$45) -> 0.4441029759 | D62: =SUMIF(Calculations!$K$2:$DF$2,$B62, Calculations!$K$75:$DF$75)*(1+Assumptions!$D$45) -> 0.133423981 | E62: =SUMIF(Calculations!$K$2:$DF$2,$B62, Calculations!$K$76:$DF$76)*(1+Assumptions!$D$45) -> 0.1948260446 | F62: 0.7723530015
B63: 2038-09-30 | C63: =SUMIF(Calculations!$K$2:$DF$2,$B63, Calculations!$K$74:$DF$74)*(1+Assumptions!$D$45) -> 0.4468529709 | D63: =SUMIF(Calculations!$K$2:$DF$2,$B63, Calculations!$K$75:$DF$75)*(1+Assumptions!$D$45) -> 0.1342501752 | E63: =SUMIF(Calculations!$K$2:$DF$2,$B63, Calculations!$K$76:$DF$76)*(1+Assumptions!$D$45) -> 0.1960324555 | F63: 0.7771356015
B64: 2038-12-31 | C64: =SUMIF(Calculations!$K$2:$DF$2,$B64, Calculations!$K$74:$DF$74)*(1+Assumptions!$D$45) -> 0.4496199946 | D64: =SUMIF(Calculations!$K$2:$DF$2,$B64, Calculations!$K$75:$DF$75)*(1+Assumptions!$D$45) -> 0.1350814853 | E64: =SUMIF(Calculations!$K$2:$DF$2,$B64, Calculations!$K$76:$DF$76)*(1+Assumptions!$D$45) -> 0.1972463367 | F64: 0.7819478166
B65: 2039-03-31 | C65: =SUMIF(Calculations!$K$2:$DF$2,$B65, Calculations!$K$74:$DF$74)*(1+Assumptions!$D$45) -> 0.4524041523 | D65: =SUMIF(Calculations!$K$2:$DF$2,$B65, Calculations!$K$75:$DF$75)*(1+Assumptions!$D$45) -> 0.1359179432 | E65: =SUMIF(Calculations!$K$2:$DF$2,$B65, Calculations!$K$76:$DF$76)*(1+Assumptions!$D$45) -> 0.1984677346 | F65: 0.7867898301
B66: 2039-06-30 | C66: =SUMIF(Calculations!$K$2:$DF$2,$B66, Calculations!$K$74:$DF$74)*(1+Assumptions!$D$45) -> 0.4552055503 | D66: =SUMIF(Calculations!$K$2:$DF$2,$B66, Calculations!$K$75:$DF$75)*(1+Assumptions!$D$45) -> 0.1367595805 | E66: =SUMIF(Calculations!$K$2:$DF$2,$B66, Calculations!$K$76:$DF$76)*(1+Assumptions!$D$45) -> 0.1996966957 | F66: 0.7916618265
B67: 2039-09-30 | C67: =SUMIF(Calculations!$K$2:$DF$2,$B67, Calculations!$K$74:$DF$74)*(1+Assumptions!$D$45) -> 0.4580242952 | D67: =SUMIF(Calculations!$K$2:$DF$2,$B67, Calculations!$K$75:$DF$75)*(1+Assumptions!$D$45) -> 0.1376064295 | E67: =SUMIF(Calculations!$K$2:$DF$2,$B67, Calculations!$K$76:$DF$76)*(1+Assumptions!$D$45) -> 0.2009332669 | F67: 0.7965639916
B68: 2039-12-31 | C68: =SUMIF(Calculations!$K$2:$DF$2,$B68, Calculations!$K$74:$DF$74)*(1+Assumptions!$D$45) -> 0.4608604944 | D68: =SUMIF(Calculations!$K$2:$DF$2,$B68, Calculations!$K$75:$DF$75)*(1+Assumptions!$D$45) -> 0.1384585225 | E68: =SUMIF(Calculations!$K$2:$DF$2,$B68, Calculations!$K$76:$DF$76)*(1+Assumptions!$D$45) -> 0.2021774952 | F68: 0.801496512
B69: 2040-03-31 | C69: =SUMIF(Calculations!$K$2:$DF$2,$B69, Calculations!$K$74:$DF$74)*(1+Assumptions!$D$45) -> 0.4637142561 | D69: =SUMIF(Calculations!$K$2:$DF$2,$B69, Calculations!$K$75:$DF$75)*(1+Assumptions!$D$45) -> 0.1393158917 | E69: =SUMIF(Calculations!$K$2:$DF$2,$B69, Calculations!$K$76:$DF$76)*(1+Assumptions!$D$45) -> 0.203429428 | F69: 0.8064595759
B70: 2040-06-30 | C70: =SUMIF(Calculations!$K$2:$DF$2,$B70, Calculations!$K$74:$DF$74)*(1+Assumptions!$D$45) -> 0.466585689 | D70: =SUMIF(Calculations!$K$2:$DF$2,$B70, Calculations!$K$75:$DF$75)*(1+Assumptions!$D$45) -> 0.14017857 | E70: =SUMIF(Calculations!$K$2:$DF$2,$B70, Calculations!$K$76:$DF$76)*(1+Assumptions!$D$45) -> 0.2046891131 | F70: 0.8114533722
B71: 2040-09-30 | C71: =SUMIF(Calculations!$K$2:$DF$2,$B71, Calculations!$K$74:$DF$74)*(1+Assumptions!$D$45) -> 0.4694749025 | D71: =SUMIF(Calculations!$K$2:$DF$2,$B71, Calculations!$K$75:$DF$75)*(1+Assumptions!$D$45) -> 0.1410465903 | E71: =SUMIF(Calculations!$K$2:$DF$2,$B71, Calculations!$K$76:$DF$76)*(1+Assumptions!$D$45) -> 0.2059565985 | F71: 0.8164780914
B72: 2040-12-31 | C72: =SUMIF(Calculations!$K$2:$DF$2,$B72, Calculations!$K$74:$DF$74)*(1+Assumptions!$D$45) -> 0.4723820068 | D72: =SUMIF(Calculations!$K$2:$DF$2,$B72, Calculations!$K$75:$DF$75)*(1+Assumptions!$D$45) -> 0.1419199855 | E72: =SUMIF(Calculations!$K$2:$DF$2,$B72, Calculations!$K$76:$DF$76)*(1+Assumptions!$D$45) -> 0.2072319325 | F72: 0.8215339248
B73: 2041-03-31 | C73: =SUMIF(Calculations!$K$2:$DF$2,$B73, Calculations!$K$74:$DF$74)*(1+Assumptions!$D$45) -> 0.4753071125 | D73: =SUMIF(Calculations!$K$2:$DF$2,$B73, Calculations!$K$75:$DF$75)*(1+Assumptions!$D$45) -> 0.142798789 | E73: =SUMIF(Calculations!$K$2:$DF$2,$B73, Calculations!$K$76:$DF$76)*(1+Assumptions!$D$45) -> 0.2085151637 | F73: 0.8266210653
B74: 2041-06-30 | C74: =SUMIF(Calculations!$K$2:$DF$2,$B74, Calculations!$K$74:$DF$74)*(1+Assumptions!$D$45) -> 0.1576649444 | D74: =SUMIF(Calculations!$K$2:$DF$2,$B74, Calculations!$K$75:$DF$75)*(1+Assumptions!$D$45) -> 0.04736803329 | E74: =SUMIF(Calculations!$K$2:$DF$2,$B74, Calculations!$K$76:$DF$76)*(1+Assumptions!$D$45) -> 0.06916692559 | F74: 0.2741999032
B75: 2041-09-30 | C75: =SUMIF(Calculations!$K$2:$DF$2,$B75, Calculations!$K$74:$DF$74)*(1+Assumptions!$D$45) -> 0 | D75: =SUMIF(Calculations!$K$2:$DF$2,$B75, Calculations!$K$75:$DF$75)*(1+Assumptions!$D$45) -> 0 | E75: =SUMIF(Calculations!$K$2:$DF$2,$B75, Calculations!$K$76:$DF$76)*(1+Assumptions!$D$45) -> 0 | F75: 0
B76: 2041-12-31 | C76: =SUMIF(Calculations!$K$2:$DF$2,$B76, Calculations!$K$74:$DF$74)*(1+Assumptions!$D$45) -> 0 | D76: =SUMIF(Calculations!$K$2:$DF$2,$B76, Calculations!$K$75:$DF$75)*(1+Assumptions!$D$45) -> 0 | E76: =SUMIF(Calculations!$K$2:$DF$2,$B76, Calculations!$K$76:$DF$76)*(1+Assumptions!$D$45) -> 0 | F76: 0
B77: 2042-03-31 | C77: =SUMIF(Calculations!$K$2:$DF$2,$B77, Calculations!$K$74:$DF$74)*(1+Assumptions!$D$45) -> 0 | D77: =SUMIF(Calculations!$K$2:$DF$2,$B77, Calculations!$K$75:$DF$75)*(1+Assumptions!$D$45) -> 0 | E77: =SUMIF(Calculations!$K$2:$DF$2,$B77, Calculations!$K$76:$DF$76)*(1+Assumptions!$D$45) -> 0 | F77: 0
B78: =EOMONTH(B77,MiP) -> 2042-06-30 | C78: =SUMIF(Calculations!$K$2:$DF$2,$B78, Calculations!$K$74:$DF$74)*(1+Assumptions!$D$45) -> 0 | D78: =SUMIF(Calculations!$K$2:$DF$2,$B78, Calculations!$K$75:$DF$75)*(1+Assumptions!$D$45) -> 0 | E78: =SUMIF(Calculations!$K$2:$DF$2,$B78, Calculations!$K$76:$DF$76)*(1+Assumptions!$D$45) -> 0 | F78: 0
B79: 2042-09-30 | C79: =SUMIF(Calculations!$K$2:$DF$2,$B79, Calculations!$K$74:$DF$74)*(1+Assumptions!$D$45) -> 0 | D79: =SUMIF(Calculations!$K$2:$DF$2,$B79, Calculations!$K$75:$DF$75)*(1+Assumptions!$D$45) -> 0 | E79: =SUMIF(Calculations!$K$2:$DF$2,$B79, Calculations!$K$76:$DF$76)*(1+Assumptions!$D$45) -> 0 | F79: 0
B80: 2042-12-31 | C80: =SUMIF(Calculations!$K$2:$DF$2,$B80, Calculations!$K$74:$DF$74)*(1+Assumptions!$D$45) -> 0 | D80: =SUMIF(Calculations!$K$2:$DF$2,$B80, Calculations!$K$75:$DF$75)*(1+Assumptions!$D$45) -> 0 | E80: =SUMIF(Calculations!$K$2:$DF$2,$B80, Calculations!$K$76:$DF$76)*(1+Assumptions!$D$45) -> 0 | F80: 0
B81: 2043-03-31 | C81: =SUMIF(Calculations!$K$2:$DF$2,$B81, Calculations!$K$74:$DF$74)*(1+Assumptions!$D$45) -> 0 | D81: =SUMIF(Calculations!$K$2:$DF$2,$B81, Calculations!$K$75:$DF$75)*(1+Assumptions!$D$45) -> 0 | E81: =SUMIF(Calculations!$K$2:$DF$2,$B81, Calculations!$K$76:$DF$76)*(1+Assumptions!$D$45) -> 0 | F81: 0
B82: 2043-06-30 | C82: =SUMIF(Calculations!$K$2:$DF$2,$B82, Calculations!$K$74:$DF$74)*(1+Assumptions!$D$45) -> 0 | D82: =SUMIF(Calculations!$K$2:$DF$2,$B82, Calculations!$K$75:$DF$75)*(1+Assumptions!$D$45) -> 0 | E82: =SUMIF(Calculations!$K$2:$DF$2,$B82, Calculations!$K$76:$DF$76)*(1+Assumptions!$D$45) -> 0 | F82: =SUM(C82:E82) -> 0
B83: 2043-09-30 | C83: =SUMIF(Calculations!$K$2:$DF$2,$B83, Calculations!$K$74:$DF$74)*(1+Assumptions!$D$45) -> 0 | D83: =SUMIF(Calculations!$K$2:$DF$2,$B83, Calculations!$K$75:$DF$75)*(1+Assumptions!$D$45) -> 0 | E83: =SUMIF(Calculations!$K$2:$DF$2,$B83, Calculations!$K$76:$DF$76)*(1+Assumptions!$D$45) -> 0 | F83: 0
B84: 2043-12-31 | C84: =SUMIF(Calculations!$K$2:$DF$2,$B84, Calculations!$K$74:$DF$74)*(1+Assumptions!$D$45) -> 0 | D84: =SUMIF(Calculations!$K$2:$DF$2,$B84, Calculations!$K$75:$DF$75)*(1+Assumptions!$D$45) -> 0 | E84: =SUMIF(Calculations!$K$2:$DF$2,$B84, Calculations!$K$76:$DF$76)*(1+Assumptions!$D$45) -> 0 | F84: 0
B85: 2044-03-31 | C85: =SUMIF(Calculations!$K$2:$DF$2,$B85, Calculations!$K$74:$DF$74)*(1+Assumptions!$D$45) -> 0 | D85: =SUMIF(Calculations!$K$2:$DF$2,$B85, Calculations!$K$75:$DF$75)*(1+Assumptions!$D$45) -> 0 | E85: =SUMIF(Calculations!$K$2:$DF$2,$B85, Calculations!$K$76:$DF$76)*(1+Assumptions!$D$45) -> 0 | F85: 0
B86: 2044-06-30 | C86: =SUMIF(Calculations!$K$2:$DF$2,$B86, Calculations!$K$74:$DF$74)*(1+Assumptions!$D$45) -> 0 | D86: =SUMIF(Calculations!$K$2:$DF$2,$B86, Calculations!$K$75:$DF$75)*(1+Assumptions!$D$45) -> 0 | E86: =SUMIF(Calculations!$K$2:$DF$2,$B86, Calculations!$K$76:$DF$76)*(1+Assumptions!$D$45) -> 0 | F86: 0
B87: 2044-09-30 | C87: =SUMIF(Calculations!$K$2:$DF$2,$B87, Calculations!$K$74:$DF$74)*(1+Assumptions!$D$45) -> 0 | D87: =SUMIF(Calculations!$K$2:$DF$2,$B87, Calculations!$K$75:$DF$75)*(1+Assumptions!$D$45) -> 0 | E87: =SUMIF(Calculations!$K$2:$DF$2,$B87, Calculations!$K$76:$DF$76)*(1+Assumptions!$D$45) -> 0 | F87: 0
B88: 2044-12-31 | C88: =SUMIF(Calculations!$K$2:$DF$2,$B88, Calculations!$K$74:$DF$74)*(1+Assumptions!$D$45) -> 0 | D88: =SUMIF(Calculations!$K$2:$DF$2,$B88, Calculations!$K$75:$DF$75)*(1+Assumptions!$D$45) -> 0 | E88: =SUMIF(Calculations!$K$2:$DF$2,$B88, Calculations!$K$76:$DF$76)*(1+Assumptions!$D$45) -> 0 | F88: 0
B89: 2045-03-31 | C89: =SUMIF(Calculations!$K$2:$DF$2,$B89, Calculations!$K$74:$DF$74)*(1+Assumptions!$D$45) -> 0 | D89: =SUMIF(Calculations!$K$2:$DF$2,$B89, Calculations!$K$75:$DF$75)*(1+Assumptions!$D$45) -> 0 | E89: =SUMIF(Calculations!$K$2:$DF$2,$B89, Calculations!$K$76:$DF$76)*(1+Assumptions!$D$45) -> 0 | F89: 0
B90: 2045-06-30 | C90: =SUMIF(Calculations!$K$2:$DF$2,$B90, Calculations!$K$74:$DF$74)*(1+Assumptions!$D$45) -> 0 | D90: =SUMIF(Calculations!$K$2:$DF$2,$B90, Calculations!$K$75:$DF$75)*(1+Assumptions!$D$45) -> 0 | E90: =SUMIF(Calculations!$K$2:$DF$2,$B90, Calculations!$K$76:$DF$76)*(1+Assumptions!$D$45) -> 0 | F90: 0
B91: 2045-09-30 | C91: =SUMIF(Calculations!$K$2:$DF$2,$B91, Calculations!$K$74:$DF$74)*(1+Assumptions!$D$45) -> 0 | D91: =SUMIF(Calculations!$K$2:$DF$2,$B91, Calculations!$K$75:$DF$75)*(1+Assumptions!$D$45) -> 0 | E91: =SUMIF(Calculations!$K$2:$DF$2,$B91, Calculations!$K$76:$DF$76)*(1+Assumptions!$D$45) -> 0 | F91: 0
B92: 2045-12-31 | C92: =SUMIF(Calculations!$K$2:$DF$2,$B92, Calculations!$K$74:$DF$74)*(1+Assumptions!$D$45) -> 0 | D92: =SUMIF(Calculations!$K$2:$DF$2,$B92, Calculations!$K$75:$DF$75)*(1+Assumptions!$D$45) -> 0 | E92: =SUMIF(Calculations!$K$2:$DF$2,$B92, Calculations!$K$76:$DF$76)*(1+Assumptions!$D$45) -> 0 | F92: 0
B93: 2046-03-31 | C93: =SUMIF(Calculations!$K$2:$DF$2,$B93, Calculations!$K$74:$DF$74)*(1+Assumptions!$D$45) -> 0 | D93: =SUMIF(Calculations!$K$2:$DF$2,$B93, Calculations!$K$75:$DF$75)*(1+Assumptions!$D$45) -> 0 | E93: =SUMIF(Calculations!$K$2:$DF$2,$B93, Calculations!$K$76:$DF$76)*(1+Assumptions!$D$45) -> 0 | F93: 0
B94: 2046-06-30 | C94: =SUMIF(Calculations!$K$2:$DF$2,$B94, Calculations!$K$74:$DF$74)*(1+Assumptions!$D$45) -> 0 | D94: =SUMIF(Calculations!$K$2:$DF$2,$B94, Calculations!$K$75:$DF$75)*(1+Assumptions!$D$45) -> 0 | E94: =SUMIF(Calculations!$K$2:$DF$2,$B94, Calculations!$K$76:$DF$76)*(1+Assumptions!$D$45) -> 0 | F94: 0
B95: 2046-09-30 | C95: =SUMIF(Calculations!$K$2:$DF$2,$B95, Calculations!$K$74:$DF$74)*(1+Assumptions!$D$45) -> 0 | D95: =SUMIF(Calculations!$K$2:$DF$2,$B95, Calculations!$K$75:$DF$75)*(1+Assumptions!$D$45) -> 0 | E95: =SUMIF(Calculations!$K$2:$DF$2,$B95, Calculations!$K$76:$DF$76)*(1+Assumptions!$D$45) -> 0 | F95: 0
B96: 2046-12-31 | C96: =SUMIF(Calculations!$K$2:$DF$2,$B96, Calculations!$K$74:$DF$74)*(1+Assumptions!$D$45) -> 0 | D96: =SUMIF(Calculations!$K$2:$DF$2,$B96, Calculations!$K$75:$DF$75)*(1+Assumptions!$D$45) -> 0 | E96: =SUMIF(Calculations!$K$2:$DF$2,$B96, Calculations!$K$76:$DF$76)*(1+Assumptions!$D$45) -> 0 | F96: 0
B97: 2047-03-31 | C97: =SUMIF(Calculations!$K$2:$DF$2,$B97, Calculations!$K$74:$DF$74)*(1+Assumptions!$D$45) -> 0 | D97: =SUMIF(Calculations!$K$2:$DF$2,$B97, Calculations!$K$75:$DF$75)*(1+Assumptions!$D$45) -> 0 | E97: =SUMIF(Calculations!$K$2:$DF$2,$B97, Calculations!$K$76:$DF$76)*(1+Assumptions!$D$45) -> 0 | F97: 0
B98: 2047-06-30 | C98: =SUMIF(Calculations!$K$2:$DF$2,$B98, Calculations!$K$74:$DF$74)*(1+Assumptions!$D$45) -> 0 | D98: =SUMIF(Calculations!$K$2:$DF$2,$B98, Calculations!$K$75:$DF$75)*(1+Assumptions!$D$45) -> 0 | E98: =SUMIF(Calculations!$K$2:$DF$2,$B98, Calculations!$K$76:$DF$76)*(1+Assumptions!$D$45) -> 0 | F98: 0
B99: 2047-09-30 | C99: =SUMIF(Calculations!$K$2:$DF$2,$B99, Calculations!$K$74:$DF$74)*(1+Assumptions!$D$45) -> 0 | D99: =SUMIF(Calculations!$K$2:$DF$2,$B99, Calculations!$K$75:$DF$75)*(1+Assumptions!$D$45) -> 0 | E99: =SUMIF(Calculations!$K$2:$DF$2,$B99, Calculations!$K$76:$DF$76)*(1+Assumptions!$D$45) -> 0 | F99: 0
B100: 2047-12-31 | C100: =SUMIF(Calculations!$K$2:$DF$2,$B100, Calculations!$K$74:$DF$74)*(1+Assumptions!$D$45) -> 0 | D100: =SUMIF(Calculations!$K$2:$DF$2,$B100, Calculations!$K$75:$DF$75)*(1+Assumptions!$D$45) -> 0 | E100: =SUMIF(Calculations!$K$2:$DF$2,$B100, Calculations!$K$76:$DF$76)*(1+Assumptions!$D$45) -> 0 | F100: 0
B101: 2048-03-31 | C101: =SUMIF(Calculations!$K$2:$DF$2,$B101, Calculations!$K$74:$DF$74)*(1+Assumptions!$D$45) -> 0 | D101: =SUMIF(Calculations!$K$2:$DF$2,$B101, Calculations!$K$75:$DF$75)*(1+Assumptions!$D$45) -> 0 | E101: =SUMIF(Calculations!$K$2:$DF$2,$B101, Calculations!$K$76:$DF$76)*(1+Assumptions!$D$45) -> 0 | F101: 0
B102: 2048-06-30 | C102: =SUMIF(Calculations!$K$2:$DF$2,$B102, Calculations!$K$74:$DF$74)*(1+Assumptions!$D$45) -> 0 | D102: =SUMIF(Calculations!$K$2:$DF$2,$B102, Calculations!$K$75:$DF$75)*(1+Assumptions!$D$45) -> 0 | E102: =SUMIF(Calculations!$K$2:$DF$2,$B102, Calculations!$K$76:$DF$76)*(1+Assumptions!$D$45) -> 0 | F102: 0
B103: 2048-09-30 | C103: =SUMIF(Calculations!$K$2:$DF$2,$B103, Calculations!$K$74:$DF$74)*(1+Assumptions!$D$45) -> 0 | D103: =SUMIF(Calculations!$K$2:$DF$2,$B103, Calculations!$K$75:$DF$75)*(1+Assumptions!$D$45) -> 0 | E103: =SUMIF(Calculations!$K$2:$DF$2,$B103, Calculations!$K$76:$DF$76)*(1+Assumptions!$D$45) -> 0 | F103: 0
B104: 2048-12-31 | C104: =SUMIF(Calculations!$K$2:$DF$2,$B104, Calculations!$K$74:$DF$74)*(1+Assumptions!$D$45) -> 0 | D104: =SUMIF(Calculations!$K$2:$DF$2,$B104, Calculations!$K$75:$DF$75)*(1+Assumptions!$D$45) -> 0 | E104: =SUMIF(Calculations!$K$2:$DF$2,$B104, Calculations!$K$76:$DF$76)*(1+Assumptions!$D$45) -> 0 | F104: 0
B105: 2049-03-31 | C105: =SUMIF(Calculations!$K$2:$DF$2,$B105, Calculations!$K$74:$DF$74)*(1+Assumptions!$D$45) -> 0 | D105: =SUMIF(Calculations!$K$2:$DF$2,$B105, Calculations!$K$75:$DF$75)*(1+Assumptions!$D$45) -> 0 | E105: =SUMIF(Calculations!$K$2:$DF$2,$B105, Calculations!$K$76:$DF$76)*(1+Assumptions!$D$45) -> 0 | F105: 0
B106: 2049-06-30 | C106: =SUMIF(Calculations!$K$2:$DF$2,$B106, Calculations!$K$74:$DF$74)*(1+Assumptions!$D$45) -> 0 | D106: =SUMIF(Calculations!$K$2:$DF$2,$B106, Calculations!$K$75:$DF$75)*(1+Assumptions!$D$45) -> 0 | E106: =SUMIF(Calculations!$K$2:$DF$2,$B106, Calculations!$K$76:$DF$76)*(1+Assumptions!$D$45) -> 0 | F106: 0
B107: 2049-09-30 | C107: =SUMIF(Calculations!$K$2:$DF$2,$B107, Calculations!$K$74:$DF$74)*(1+Assumptions!$D$45) -> 0 | D107: =SUMIF(Calculations!$K$2:$DF$2,$B107, Calculations!$K$75:$DF$75)*(1+Assumptions!$D$45) -> 0 | E107: =SUMIF(Calculations!$K$2:$DF$2,$B107, Calculations!$K$76:$DF$76)*(1+Assumptions!$D$45) -> 0 | F107: 0
B108: 2049-12-31 | C108: =SUMIF(Calculations!$K$2:$DF$2,$B108, Calculations!$K$74:$DF$74)*(1+Assumptions!$D$45) -> 0 | D108: =SUMIF(Calculations!$K$2:$DF$2,$B108, Calculations!$K$75:$DF$75)*(1+Assumptions!$D$45) -> 0 | E108: =SUMIF(Calculations!$K$2:$DF$2,$B108, Calculations!$K$76:$DF$76)*(1+Assumptions!$D$45) -> 0 | F108: 0
B109: 2050-03-31 | C109: =SUMIF(Calculations!$K$2:$DF$2,$B109, Calculations!$K$74:$DF$74)*(1+Assumptions!$D$45) -> 0 | D109: =SUMIF(Calculations!$K$2:$DF$2,$B109, Calculations!$K$75:$DF$75)*(1+Assumptions!$D$45) -> 0 | E109: =SUMIF(Calculations!$K$2:$DF$2,$B109, Calculations!$K$76:$DF$76)*(1+Assumptions!$D$45) -> 0 | F109: 0
B110: 2050-06-30 | C110: =SUMIF(Calculations!$K$2:$DF$2,$B110, Calculations!$K$74:$DF$74)*(1+Assumptions!$D$45) -> 0 | D110: =SUMIF(Calculations!$K$2:$DF$2,$B110, Calculations!$K$75:$DF$75)*(1+Assumptions!$D$45) -> 0 | E110: =SUMIF(Calculations!$K$2:$DF$2,$B110, Calculations!$K$76:$DF$76)*(1+Assumptions!$D$45) -> 0 | F110: =SUM(C110:E110) -> 0
B111: 2050-09-30 | C111: =SUMIF(Calculations!$K$2:$DF$2,$B111, Calculations!$K$74:$DF$74)*(1+Assumptions!$D$45) -> 0 | D111: =SUMIF(Calculations!$K$2:$DF$2,$B111, Calculations!$K$75:$DF$75)*(1+Assumptions!$D$45) -> 0 | E111: =SUMIF(Calculations!$K$2:$DF$2,$B111, Calculations!$K$76:$DF$76)*(1+Assumptions!$D$45) -> 0 | F111: =SUM(C111:E111) -> 0
B112: 2050-12-31 | C112: =SUMIF(Calculations!$K$2:$DF$2,$B112, Calculations!$K$74:$DF$74)*(1+Assumptions!$D$45) -> 0 | D112: =SUMIF(Calculations!$K$2:$DF$2,$B112, Calculations!$K$75:$DF$75)*(1+Assumptions!$D$45) -> 0 | E112: =SUMIF(Calculations!$K$2:$DF$2,$B112, Calculations!$K$76:$DF$76)*(1+Assumptions!$D$45) -> 0 | F112: =SUM(C112:E112) -> 0
B113: Total Amount over the Payment Term | C113: =SUM(C13:C112) -> 22.6194024 | D113: =SUM(D13:D112) -> 6.795655244 | E113: =SUM(E13:E112) -> 9.92303349 | F113: =SUM(F13:F112) -> 39.33809114
B115: Checks | F115: =N(ABS(F113-Calculations!$I$80)>=Tolerance1) -> 0
A117: END

Sheet Table
A1: =MdlTtl -> SW REZ - DRAFT - Access Fee Calculator
A2: =_xlfn.SHEET() -> 8 | B2: =_xlfn.TEXTAFTER(CELL("filename",A1),"]") -> Table
B3: Lists of commonly used constants / technical inputs
A6: =B25 -> All Checks are OK
A9: =ROUNDDOWN(MAX($A$8:OFFSET(A9,-One,0),$A$2*Sht)+Sxn,0) -> 801 | B9: Checks
A11: =MAX(A$2:OFFSET($A11,-One,0))+Sbsxn -> 801.01 | B11: Model Checks
B13: Master Check | K13: =SUM(K15:K16) -> 0
B15: Fee Schedule | K15: =SUM('Fee Schedule - Annual'!F4,'Fee Schedule - QTR'!F4) -> 0
B16: Calculations | K16: =Calculations!G4 -> 0
A18: =MAX(A$2:OFFSET($A18,-One,0))+Sbsxn -> 801.02 | B18: Check Messages
B20: Sheet | C20: Order | K20: Check Error
B21: Fee Schedule | C21: 1 | K21: =IF(K15<>0,"OK",) -> 0
B22: Calculations | C22: 2 | K22: =IF(K16<>0,"OK",) -> 0
B23: All Checks are OK | C23: 3 | K23: =COUNTIF(K21:K22,TRUE)=0 -> TRUE
B25: =INDEX(B21:B23,MATCH(SUMPRODUCT((K21:K23)*(C21:C23)),C21:C23,0)) -> All Checks are OK
A27: =ROUNDDOWN(MAX($A$8:OFFSET(A27,-One,0),$A$2*Sht)+Sxn,0) -> 802 | B27: Constants
A29: =MAX(A$2:OFFSET($A29,-One,0))+Sbsxn -> 802.01 | B29: Numbers
B31: One | K31: 1 | L31: [One]
B32: Zero | K32: 0 | L32: [Zero]
B33: Thousand | K33: 1000 | L33: [Thousand]
B34: Million | K34: 1000000 | L34: [Million]
B35: Sheet units | K35: 100 | L35: [Sht]
B36: Section units | K36: 1 | L36: [Sxn]
B37: Sub-section units | K37: 0.01 | L37: [Sbsxn]
A39: =MAX(A$2:OFFSET($A39,-One,0))+Sbsxn -> 802.02 | B39: Time
B41: Number of days in a year | K41: 365 | L41: [DiY]
B42: Number of days in a week | K42: 7 | L42: [DiW]
B43: Number of months in a year | K43: 12 | L43: [MiY]
B44: Number of months in a quarter year | K44: 3 | L44: [MiQ]
B45: Number of weeks in a year | K45: 52 | L45: [WiY]
B46: Number of quarters on a year | K46: 4 | L46: [QiY]
B47: Months in a period | K47: 3 | L47: [MiP]
B48: Number of hours in a day | K48: 24 | L48: [HiD]
A50: =MAX(A$2:OFFSET($A50,-One,0))+Sbsxn -> 802.03 | B50: Project Types
B52: Usage note: insert additional project types as required, by inserting entire rows about the grey row
B54: Wind Farm | K54: Wind Farm
B55: Solar Farm | K55: Solar Farm
B56: Storage Project | K56: Storage Project
B57: [Spare] | K57: [Spare]
B58: [Spare] | K58: [Spare]
B59: [Spare] | K59: [Spare] | L59: [list_project_type]
A62: =MAX(A$2:OFFSET($A62,-One,0))+Sbsxn -> 802.04 | B62: Others
B64: Not applicable | K64: n.a. | L64: [NA]
B65: Tolerance 1 | K65: 1e-06 | L65: [Tolerance1]
B67: Financial units | K67: AUD$m | L67: [Units]
B69: On | K69: 1 | L69: [On]
B70: Off | K70: 0 | L70: [Off]
B72: Yes | K72: 1 | L72: [YesNo]
B73: No | K73: 0
A75: END
